Authority,Department,Spending Area,Expense Type,Posting Date,Reference,Amount,Supplier
OXFORDSHIRE CC,CORPORATE CORE,"	MANAGEMENT & ADMIN",CATERING,26/04/2019,000008503223721,83.70,LE PAIN QUOTIDIEN LTD
OXFORDSHIRE CC,ENVIRONMENT AND ECONOMY,HARD FM,EQUIPMENT,26/04/2019,000008503223723,84.16,NEWEY & EYRE
OXFORDSHIRE CC,ENVIRONMENT AND ECONOMY,HARD FM,HARDWARE AND CROCKERY,26/04/2019,000008503223725,14.97,SCREWFIX DIDCOT
OXFORDSHIRE CC,ENVIRONMENT AND ECONOMY,HARD FM,HARDWARE AND CROCKERY,26/04/2019,000008503223727,13.07,BUILDBASE - WANTAGE
OXFORDSHIRE CC,ENVIRONMENT AND ECONOMY,HARD FM,HARDWARE AND CROCKERY,26/04/2019,000008503223729,9.59,JEWSON LTD
OXFORDSHIRE CC,ENVIRONMENT AND ECONOMY,HARD FM,HARDWARE AND CROCKERY,26/04/2019,000008503223731,18.71,JEWSON LTD
OXFORDSHIRE CC,ENVIRONMENT AND ECONOMY,HARD FM,HARDWARE AND CROCKERY,26/04/2019,000008503223733,129.86,SCREWFIX OXFORD BOTLEY
OXFORDSHIRE CC,SOCIAL AND COMMUNITY SERVICES,VIVA,MATERIALS,26/04/2019,000008503224105,114.48,AMAZON.CO.UK MZ3937R84
OXFORDSHIRE CC,CORPORATE CORE,SNR LEADERSHIP TEAM,PAYMENTS TO TRANSPORT OPERATORS,26/04/2019,000008503224107,148.25,WWW.GWR.COM
OXFORDSHIRE CC,CORPORATE CORE,"	COMMUNICATIONS",IT SOFTWARE,26/04/2019,000008503224111,78.97,ADOBE  CREATIVE CLOUD
OXFORDSHIRE CC,ENVIRONMENT AND ECONOMY,HARD FM,TECHNICAL AND PROFESSIONAL CONSULTANT F,26/04/2019,000008503223735,8.83,M F HYDRAULICS LTD
OXFORDSHIRE CC,ENVIRONMENT AND ECONOMY,HARD FM,HARDWARE AND CROCKERY,26/04/2019,000008503223737,14.98,SCREWFIX OXFORD
OXFORDSHIRE CC,ENVIRONMENT AND ECONOMY,HARD FM,EQUIPMENT,26/04/2019,000008503223739,99.89,THAME PLUMBING SUPPLIE
OXFORDSHIRE CC,"CHILDRENS, YOUNG PEOPLE AND FAMILIES",THAME E&A HOME,CLOTHING AND UNIFORMS,26/04/2019,000008503223741,39.60,MATALAN
OXFORDSHIRE CC,"CHILDRENS, YOUNG PEOPLE AND FAMILIES",THAME E&A HOME,CATERING PROVISIONS,26/04/2019,000008503223743,21.94,ASDA STORE 4442
OXFORDSHIRE CC,"CHILDRENS, YOUNG PEOPLE AND FAMILIES",THAME E&A HOME,MATERIALS,26/04/2019,000008503223745,25.00,J D SPORTS
OXFORDSHIRE CC,ENVIRONMENT AND ECONOMY,COUNTY LIBRARY,GENERAL MAINTENANCE,26/04/2019,000008503223747,36.25, WOLSELEY UK
OXFORDSHIRE CC,"CHILDRENS, YOUNG PEOPLE AND FAMILIES","	LEAVING CARE NORTH",OTHER TRANSPORT ARRANGEMENTS,26/04/2019,000008503223753,3.00,WESTGATE OXFORD CAR PA
OXFORDSHIRE CC,"CHILDRENS, YOUNG PEOPLE AND FAMILIES","	LEAVING CARE NORTH",MATERIALS,26/04/2019,000008503223755,50.00,J D SPORTS FASHION
OXFORDSHIRE CC,ENVIRONMENT AND ECONOMY,"	COUNTY PRINT FINSHRS",MATERIALS,26/04/2019,000008503223757,4.99,CURRYS OXFORD 2401
OXFORDSHIRE CC,"CHILDRENS, YOUNG PEOPLE AND FAMILIES",BULLINGDON PRISON,MATERIALS,26/04/2019,000008503224017,58.98,PETS AT HOME LTD
OXFORDSHIRE CC,"CHILDRENS, YOUNG PEOPLE AND FAMILIES","	MUSIC UNALLOCABLE",ENTERTAINMENT EXPENSES,26/04/2019,000008503224019,270.00,PAYPAL  REALLYUSEFU
OXFORDSHIRE CC,"CHILDRENS, YOUNG PEOPLE AND FAMILIES","	LOOKED AFTER CITY 2",PAYMENTS TO TRANSPORT OPERATORS,26/04/2019,000008503224021,3.20,BICESTER VIL SSTP
OXFORDSHIRE CC,"CHILDRENS, YOUNG PEOPLE AND FAMILIES","	LOOKED AFTER CITY 2",PAYMENTS TO TRANSPORT OPERATORS,26/04/2019,000008503224023,6.80,GWR OXFORD SST
OXFORDSHIRE CC,SOCIAL AND COMMUNITY SERVICES,"	PUBLIC HEALTH GENERA","BOOKS, DVDS AND CDS",26/04/2019,000008503224027,22.47,AMZN MKTP UK MZ2DH0RS4
OXFORDSHIRE CC,"CHILDRENS, YOUNG PEOPLE AND FAMILIES","	40 THE MOORS",OTHER TRANSPORT ARRANGEMENTS,26/04/2019,000008503224029,25.00,SUMUP   JAY
OXFORDSHIRE CC,"CHILDRENS, YOUNG PEOPLE AND FAMILIES","	40 THE MOORS",OTHER TRANSPORT ARRANGEMENTS,26/04/2019,000008503224031,40.00,IZ  001
OXFORDSHIRE CC,"CHILDRENS, YOUNG PEOPLE AND FAMILIES","	LEAVING CARE SOUTH",CATERING PROVISIONS,26/04/2019,000008503224033,54.00,TESCO STORE 2952
OXFORDSHIRE CC,"CHILDRENS, YOUNG PEOPLE AND FAMILIES","	LEAVING CARE SOUTH",CLOTHING AND UNIFORMS,26/04/2019,000008503224035,7.00,WWW.SIMPLYBE.CO.UK
OXFORDSHIRE CC,"CHILDRENS, YOUNG PEOPLE AND FAMILIES","	LEAVING CARE SOUTH",CLOTHING AND UNIFORMS,26/04/2019,000008503224037,4.50,WWW.SIMPLYBE.CO.UK
OXFORDSHIRE CC,"CHILDRENS, YOUNG PEOPLE AND FAMILIES","	LEAVING CARE SOUTH",CLOTHING AND UNIFORMS,26/04/2019,000008503224039,5.00,WWW.SIMPLYBE.CO.UK
OXFORDSHIRE CC,"CHILDRENS, YOUNG PEOPLE AND FAMILIES","	LEAVING CARE SOUTH",CLOTHING AND UNIFORMS,26/04/2019,000008503224041,20.00,WWW.SIMPLYBE.CO.UK
OXFORDSHIRE CC,"CHILDRENS, YOUNG PEOPLE AND FAMILIES","	LEAVING CARE SOUTH",CLOTHING AND UNIFORMS,26/04/2019,000008503224043,22.00,WWW.SIMPLYBE.CO.UK
OXFORDSHIRE CC,"CHILDRENS, YOUNG PEOPLE AND FAMILIES","	LEAVING CARE SOUTH",CLOTHING AND UNIFORMS,26/04/2019,000008503224045,7.00,WWW.SIMPLYBE.CO.UK
OXFORDSHIRE CC,"CHILDRENS, YOUNG PEOPLE AND FAMILIES",NTH FAM SUPRT-BCSTR,FURNITURE,26/04/2019,000008503223681,414.00,CARPET OPTIONS LTD
OXFORDSHIRE CC,"CHILDRENS, YOUNG PEOPLE AND FAMILIES",PANEL COSTS,PAYMENTS TO TRANSPORT OPERATORS,26/04/2019,000008503223685,74.07,TRAINLINE
OXFORDSHIRE CC,ENVIRONMENT AND ECONOMY,STRATEGY AND INFRASTRUCTURE PLANNING,PAYMENTS TO TRANSPORT OPERATORS,26/04/2019,000008503224055,101.19,TRAINLINE.COM
OXFORDSHIRE CC,CORPORATE CORE,MOTOR FLEET,MOTOR IF OWN DAMAGE,26/04/2019,000008503224057,72.96,WHOLESALE AUTOPARTS
OXFORDSHIRE CC,CORPORATE CORE,MOTOR FLEET,MOTOR IF OWN DAMAGE,26/04/2019,000008503224059,875.82,WHOLESALE AUTOPARTS
OXFORDSHIRE CC,CORPORATE CORE,,"SUPPLIES, STATIONERY AND MATERIALS",26/04/2019,000008503224063,195.52,LYRECO UK LTD
OXFORDSHIRE CC,CORPORATE CORE,,"SUPPLIES, STATIONERY AND MATERIALS",26/04/2019,000008503224065,65.99,LYRECO UK LTD
OXFORDSHIRE CC,CORPORATE CORE,CENTRAL BUYING TEAM,VEHICLE FUEL,26/04/2019,000008503224067,20.01,TESCO PFS 3700
OXFORDSHIRE CC,"CHILDRENS, YOUNG PEOPLE AND FAMILIES","	LEAVING CARE NORTH",EQUIPMENT,26/04/2019,000008503224069,173.10,CEX
OXFORDSHIRE CC,"CHILDRENS, YOUNG PEOPLE AND FAMILIES","	LEAVING CARE NORTH",OTHER TRANSPORT ARRANGEMENTS,26/04/2019,000008503224071,2.00,3C_ PARKEON 26 - CHILT
OXFORDSHIRE CC,SOCIAL AND COMMUNITY SERVICES,LOOKED AFTER NORTH,PAYMENT TO GOVERNMENT DEPARTMENTS,26/04/2019,000008503223689,49.00,HM PASSPORT OFFICE
OXFORDSHIRE CC,"CHILDRENS, YOUNG PEOPLE AND FAMILIES",EYNSHAM,CLOTHING AND UNIFORMS,26/04/2019,000008503223697,34.80,PRIMARK 693
OXFORDSHIRE CC,"CHILDRENS, YOUNG PEOPLE AND FAMILIES",EYNSHAM,MATERIALS,26/04/2019,000008503223699,2.40,EYNSHAM EMPORIUM LTD
OXFORDSHIRE CC,"CHILDRENS, YOUNG PEOPLE AND FAMILIES","	OSCB","SUPPLIES, STATIONERY AND MATERIALS",26/04/2019,000008503223701,1.69,RYMAN 1172
OXFORDSHIRE CC,ENVIRONMENT AND ECONOMY,"	COUNTY PRINT FINSHRS",IT SOFTWARE,26/04/2019,000008503223705,510.00,QUARK
OXFORDSHIRE CC,SOCIAL AND COMMUNITY SERVICES,CO PRODUCTION WORK,CATERING PROVISIONS,26/04/2019,000008503223707,2.85,SAINSBURYS SACAT 0730
OXFORDSHIRE CC,"CHILDRENS, YOUNG PEOPLE AND FAMILIES","	SM QUALITY ASSURANCE",PAYMENTS TO TRANSPORT OPERATORS,26/04/2019,000008503223711,64.90,TRAINLINE
OXFORDSHIRE CC,"CHILDRENS, YOUNG PEOPLE AND FAMILIES","	LEAVING CARE NORTH",OTHER TRANSPORT ARRANGEMENTS,26/04/2019,000008503224073,12.00,WEST COAST TRAINS
OXFORDSHIRE CC,"CHILDRENS, YOUNG PEOPLE AND FAMILIES","	LEAVING CARE NORTH",CATERING PROVISIONS,26/04/2019,000008503224075,14.99,TESCO STORES 3398
OXFORDSHIRE CC,"CHILDRENS, YOUNG PEOPLE AND FAMILIES","	LEAVING CARE NORTH",CATERING PROVISIONS,26/04/2019,000008503224077,10.99,TESCO STORES 3398
OXFORDSHIRE CC,"CHILDRENS, YOUNG PEOPLE AND FAMILIES","	LEAVING CARE NORTH",OTHER TRANSPORT ARRANGEMENTS,26/04/2019,000008503224079,11.30,M6 TOLL
OXFORDSHIRE CC,"CHILDRENS, YOUNG PEOPLE AND FAMILIES","	DIRECTOR'S OFFICE",PAYMENTS TO TRANSPORT OPERATORS,26/04/2019,000008503224089,75.70,GWR OXFORD TO
OXFORDSHIRE CC,"CHILDRENS, YOUNG PEOPLE AND FAMILIES","	DIRECTOR'S OFFICE",PAYMENTS TO TRANSPORT OPERATORS,26/04/2019,000008503224091,30.00,GWR OXFORD TO
OXFORDSHIRE CC,"CHILDRENS, YOUNG PEOPLE AND FAMILIES","	LOOKED AFTER CITY 1",OTHER TRANSPORT ARRANGEMENTS,26/04/2019,000008503223717,4.70,M6 TOLL
OXFORDSHIRE CC,"CHILDRENS, YOUNG PEOPLE AND FAMILIES","	LOOKED AFTER CITY 1",POSTAGE AND DELIVERY,26/04/2019,000008503223719,2.26,POST OFFICE COUNTER
OXFORDSHIRE CC,SOCIAL AND COMMUNITY SERVICES,ICS ADMIN,PAYMENTS TO TRANSPORT OPERATORS,26/04/2019,000008503223899,4.10,WEST COAST TRAINS
OXFORDSHIRE CC,"CHILDRENS, YOUNG PEOPLE AND FAMILIES","	RIVERSIDE CENTRE",CATERING PROVISIONS,26/04/2019,000008503223927,13.76,CO-OPERATIVE FOOD
OXFORDSHIRE CC,"CHILDRENS, YOUNG PEOPLE AND FAMILIES",THAME E&A HOME,CATERING,26/04/2019,000008503223929,10.28,BURGER KING
OXFORDSHIRE CC,SOCIAL AND COMMUNITY SERVICES,"	MTFC",OTHER TRANSPORT ARRANGEMENTS,26/04/2019,000008503223943,1.00,CAR PARK CHARGES
OXFORDSHIRE CC,"CHILDRENS, YOUNG PEOPLE AND FAMILIES","	LOOKED AFTER CITY 2",OTHER TRANSPORT ARRANGEMENTS,26/04/2019,000008503223947,3.00,OCC ON-STREET PARKING
OXFORDSHIRE CC,"CHILDRENS, YOUNG PEOPLE AND FAMILIES",NTH EARLY HELP-WITNY,MATERIALS,26/04/2019,000008503223965,6.81,AMAZON.CO.UK MZ7RU3I44
OXFORDSHIRE CC,"CHILDRENS, YOUNG PEOPLE AND FAMILIES","	LOOKED AFTER CITY 1",HIRE OF ACCOMMODATION AND FACILITIES,26/04/2019,000008503223977,74.50,PREMIER INN
OXFORDSHIRE CC,"CHILDRENS, YOUNG PEOPLE AND FAMILIES",STH EARLY HELP-DDCOT,HIRE OF ACCOMMODATION AND FACILITIES,26/04/2019,000008503223979,371.00,PREMIER INN
OXFORDSHIRE CC,"CHILDRENS, YOUNG PEOPLE AND FAMILIES","	FAM SUPP CITY 1",MATERIALS,26/04/2019,000008503223981,25.76,M AND M DIRECT LTD
OXFORDSHIRE CC,"CHILDRENS, YOUNG PEOPLE AND FAMILIES","	40 THE MOORS",OTHER TRANSPORT ARRANGEMENTS,26/04/2019,000008503223983,36.00,IZ  DINO TAXI
OXFORDSHIRE CC,"CHILDRENS, YOUNG PEOPLE AND FAMILIES","	LOOKED AFTER CITY 1",VEHICLE FUEL,26/04/2019,000008503223985,26.08,TESCO PAY AT PUMP 3827
OXFORDSHIRE CC,SOCIAL AND COMMUNITY SERVICES,CSS - BANBURY,MATERIALS,26/04/2019,000008503223987,2.58,AMZNMKTPLACE AMAZON.CO
OXFORDSHIRE CC,"CHILDRENS, YOUNG PEOPLE AND FAMILIES",0-5 STDS & PROGRESS,MATERIALS,26/04/2019,000008503224001,15.49,AMZNMKTPLACE
OXFORDSHIRE CC,"CHILDRENS, YOUNG PEOPLE AND FAMILIES",0-5 STDS & PROGRESS,"BOOKS, DVDS AND CDS",26/04/2019,000008503224003,18.78,AMZN MKTP UK MZ4D11RQ4
OXFORDSHIRE CC,ENVIRONMENT AND ECONOMY,"	LOWER WINDRUSH PROJ",CATERING PROVISIONS,26/04/2019,000008503224013,3.85,SAINSBURYS 0632
OXFORDSHIRE CC,"CHILDRENS, YOUNG PEOPLE AND FAMILIES","	40 THE MOORS",,26/04/2019,000008503223865,10.00,
OXFORDSHIRE CC,CORPORATE CORE,REGISTRAR,,26/04/2019,000008503223869,10.00,
OXFORDSHIRE CC,,,,26/04/2019,000008503223867,10.00,
OXFORDSHIRE CC,"CHILDRENS, YOUNG PEOPLE AND FAMILIES",SWINDON,,26/04/2019,000008503223855,10.00,
OXFORDSHIRE CC,"CHILDRENS, YOUNG PEOPLE AND FAMILIES","	LOOKED AFTER NORTH",OTHER TRANSPORT ARRANGEMENTS,26/04/2019,000008503223759,1.20,CHERWELL DC CAR PARK
OXFORDSHIRE CC,"CHILDRENS, YOUNG PEOPLE AND FAMILIES","	LOOKED AFTER NORTH",OTHER TRANSPORT ARRANGEMENTS,26/04/2019,000008503223761,7.50,APCOA-HAL-SS T3
OXFORDSHIRE CC,SOCIAL AND COMMUNITY SERVICES,CSS - OXFORD,MATERIALS,26/04/2019,000008503223763,9.91,B&M RETAIL LTD
OXFORDSHIRE CC,SOCIAL AND COMMUNITY SERVICES,CSS BICESTER,CATERING PROVISIONS,26/04/2019,000008503223765,31.50,TESCO STORES 4480
OXFORDSHIRE CC,SOCIAL AND COMMUNITY SERVICES,UASC 16&17,CLOTHING AND UNIFORMS,26/04/2019,000008503223767,32.00,PRIMARK 440
OXFORDSHIRE CC,SOCIAL AND COMMUNITY SERVICES,DIDCOT MOVE-ON HOME,CATERING PROVISIONS,26/04/2019,000008503223771,20.15,SAINSBURYS SACAT 2067
OXFORDSHIRE CC,SOCIAL AND COMMUNITY SERVICES,DIDCOT MOVE-ON HOME,CATERING,26/04/2019,000008503223773,14.40,KASPAS DIDCOT
OXFORDSHIRE CC,SOCIAL AND COMMUNITY SERVICES,DIDCOT MOVE-ON HOME,CLOTHING AND UNIFORMS,26/04/2019,000008503223775,54.02,NEW LOOK 1754
OXFORDSHIRE CC,"CHILDRENS, YOUNG PEOPLE AND FAMILIES","	RIVERSIDE CENTRE",HIRE OF EQUIPMENT,26/04/2019,000008503223779,253.51,MACHINE MART WEB
OXFORDSHIRE CC,"CHILDRENS, YOUNG PEOPLE AND FAMILIES","	LOOKED AFTER SOUTH",SUBSCRIPTIONS,26/04/2019,000008503223795,44.73,AMFBOWLING.CO.UK
OXFORDSHIRE CC,ENTERPRISEVC,OTFC TEAM,PAYMENTS TO VOLUNTARY BODIES,26/04/2019,000008503223809,3.00,WADDESDON MANOR
OXFORDSHIRE CC,ENTERPRISEVC,OTFC TEAM,PAYMENTS TO VOLUNTARY BODIES,26/04/2019,000008503223811,5.50,WADDESDON MANOR
OXFORDSHIRE CC,"CHILDRENS, YOUNG PEOPLE AND FAMILIES",NORTH FSS- BANBURY,EDUCATIONAL AND VOCATIONAL TRAINING ,26/04/2019,000008503223831,50.00,GOLDCROSS TRAINING SER
OXFORDSHIRE CC,"CHILDRENS, YOUNG PEOPLE AND FAMILIES",THAME E&A HOME,CATERING PROVISIONS,26/04/2019,000008503223835,15.30,SAINSBURYS SACAT 2096
OXFORDSHIRE CC,CORPORATE CORE,"	PERSONNEL","PUBLICITY, PROMOTIONS AND ADVERTISEMENT",26/04/2019,000008503223837,60.00,FACEBK LDC73KNH72
OXFORDSHIRE CC,SOCIAL AND COMMUNITY SERVICES,SCHOOLS FM,CATERING PROVISIONS,26/04/2019,000008503223839,6.45,TESCO STORES 2008
OXFORDSHIRE CC,CORPORATE CORE,LIBRARY COLLECTIONS,MATERIALS,26/04/2019,000008503223849,336.00,C I L I P
OXFORDSHIRE CC,CORPORATE CORE,LIBRARY COLLECTIONS,MATERIALS,26/04/2019,000008503223851,336.00,C I L I P
OXFORDSHIRE CC,"CHILDRENS, YOUNG PEOPLE AND FAMILIES","	40 THE MOORS",ENTERTAINMENT EXPENSES,26/04/2019,000008503223857,11.13,TJ S
OXFORDSHIRE CC,"CHILDRENS, YOUNG PEOPLE AND FAMILIES","	40 THE MOORS",CATERING PROVISIONS,26/04/2019,000008503223859,29.00,TESCO STORE 2788
OXFORDSHIRE CC,"CHILDRENS, YOUNG PEOPLE AND FAMILIES","	40 THE MOORS",CATERING PROVISIONS,26/04/2019,000008503223861,3.20,CO-OPERATIVE FOOD
OXFORDSHIRE CC,"CHILDRENS, YOUNG PEOPLE AND FAMILIES","	40 THE MOORS",CATERING,26/04/2019,000008503223863,5.50,GREGGS
OXFORDSHIRE CC,CORPORATE CORE,"	PERSONNEL","PUBLICITY, PROMOTIONS AND ADVERTISEMENT",25/04/2019,000008497516347,40.00,FACEBK U4VNXJWH72
OXFORDSHIRE CC,"CHILDRENS, YOUNG PEOPLE AND FAMILIES",DIDCOT MOVE-ON HOME,CATERING PROVISIONS,25/04/2019,000008497516355,18.50,SAINSBURYS SACAT 2067
OXFORDSHIRE CC,"CHILDRENS, YOUNG PEOPLE AND FAMILIES","	MUSIC UNALLOCABLE",CATERING PROVISIONS,25/04/2019,000008497516371,53.13,MARKS&SPENCER PLC SF
OXFORDSHIRE CC,"CHILDRENS, YOUNG PEOPLE AND FAMILIES","	LOOKED AFTER CITY 1",REGISTRATION AND INSPECTION FEES,25/04/2019,000008497516387,66.00,OCC REGISTRARS (M)
OXFORDSHIRE CC,"CHILDRENS, YOUNG PEOPLE AND FAMILIES","	LEAVING CARE NORTH",CATERING PROVISIONS,25/04/2019,000008497517125,55.72,WWW.ICELAND.CO.UK
OXFORDSHIRE CC,"CHILDRENS, YOUNG PEOPLE AND FAMILIES","	LOOKED AFTER CITY 2",PAYMENTS TO TRANSPORT OPERATORS,25/04/2019,000008497517129,45.40,GWR OXFORD SST
OXFORDSHIRE CC,"CHILDRENS, YOUNG PEOPLE AND FAMILIES","	40 THE MOORS",PAYMENTS TO TRANSPORT OPERATORS,25/04/2019,000008497517133,4.22,TRAINLINE.COM
OXFORDSHIRE CC,"CHILDRENS, YOUNG PEOPLE AND FAMILIES","	40 THE MOORS",OTHER TRANSPORT ARRANGEMENTS,25/04/2019,000008497517141,16.50,IZ  AYYAZ 28
OXFORDSHIRE CC,"CHILDRENS, YOUNG PEOPLE AND FAMILIES","	LEAVING CARE SOUTH",CLOTHING AND UNIFORMS,25/04/2019,000008497517165,67.00,PRIMARK 440
OXFORDSHIRE CC,SOCIAL AND COMMUNITY SERVICES,"	SHARED LIVES",OTHER TRAINING COURSES AND QUALIFICATION,25/04/2019,000008497517183,60.00,PAYPAL  AUTISM OXFD
OXFORDSHIRE CC,"CHILDRENS, YOUNG PEOPLE AND FAMILIES","	LEAVING CARE NORTH",PAYMENT TO GOVERNMENT DEPARTMENTS,25/04/2019,000008497516105,42.00,GEN REGISTER OFFICE
OXFORDSHIRE CC,"CHILDRENS, YOUNG PEOPLE AND FAMILIES","	LOOKED AFTER NORTH",OTHER TRANSPORT ARRANGEMENTS,25/04/2019,000008497516123,1.20,CHERWELL DC CAR PARK
OXFORDSHIRE CC,"CHILDRENS, YOUNG PEOPLE AND FAMILIES","	LOOKED AFTER NORTH",PAYMENT TO GOVERNMENT DEPARTMENTS,25/04/2019,000008497516129,34.00,DVLA DRIVER ONLINE
OXFORDSHIRE CC,"CHILDRENS, YOUNG PEOPLE AND FAMILIES",THAME E&A HOME,MATERIALS,25/04/2019,000008497516131,7.99,AMAZON PRIME MZ0724UP4
OXFORDSHIRE CC,"CHILDRENS, YOUNG PEOPLE AND FAMILIES",THAME E&A HOME,VEHICLE FUEL,25/04/2019,000008497516139,27.05,THAME BP SF CONNECT
OXFORDSHIRE CC,SOCIAL AND COMMUNITY SERVICES,UASC 16&17,OTHER TRANSPORT ARRANGEMENTS,25/04/2019,000008497516145,4.00,OCC ON-STREET PARKING
OXFORDSHIRE CC,SOCIAL AND COMMUNITY SERVICES,UASC 16&17,OTHER TRANSPORT ARRANGEMENTS,25/04/2019,000008497516149,4.00,OCC ON-STREET PARKING
OXFORDSHIRE CC,"CHILDRENS, YOUNG PEOPLE AND FAMILIES","	LEAVING CARE CITY 1",CATERING PROVISIONS,25/04/2019,000008497516161,3.00,SAINSBURYS SACAT 6211
OXFORDSHIRE CC,"CHILDRENS, YOUNG PEOPLE AND FAMILIES",CNTL EARLY HELP-BRTN,MATERIALS,25/04/2019,000008497516927,184.99,WWW.ARGOS.CO.UK
OXFORDSHIRE CC,"CHILDRENS, YOUNG PEOPLE AND FAMILIES","	MALTFIELD HOUSE",HIRE OF ACCOMMODATION AND FACILITIES,25/04/2019,000008497516931,26.65,STURDYS CASTLE
OXFORDSHIRE CC,"CHILDRENS, YOUNG PEOPLE AND FAMILIES","	MALTFIELD HOUSE",HIRE OF ACCOMMODATION AND FACILITIES,25/04/2019,000008497516941,2.80,STURDYS CASTLE
OXFORDSHIRE CC,"CHILDRENS, YOUNG PEOPLE AND FAMILIES","	MALTFIELD HOUSE",ENTERTAINMENT EXPENSES,25/04/2019,000008497516943,5.40,KIRTLINGTON GOLF COURS
OXFORDSHIRE CC,"CHILDRENS, YOUNG PEOPLE AND FAMILIES","	MALTFIELD HOUSE",MATERIALS,25/04/2019,000008497516947,30.00,ARGOS KIDLINGTON INSID
OXFORDSHIRE CC,"CHILDRENS, YOUNG PEOPLE AND FAMILIES",KINGFISHER,CATERING,25/04/2019,000008497517001,1.09,MCDONALDS
OXFORDSHIRE CC,"CHILDRENS, YOUNG PEOPLE AND FAMILIES","	FAMILY SUPPORT S'TH2",HIRE OF ACCOMMODATION AND FACILITIES,25/04/2019,000008497516203,70.00,THE GEORGE HOTEL
OXFORDSHIRE CC,"CHILDRENS, YOUNG PEOPLE AND FAMILIES",STH EARLY HELP-DDCOT,GENERAL MAINTENANCE,25/04/2019,000008497516241,274.80,RAYMOND BROWN WASTE SO
OXFORDSHIRE CC,"CHILDRENS, YOUNG PEOPLE AND FAMILIES",DIDCOT MOVE-ON HOME,CATERING,25/04/2019,000008497517041,15.76,MCDONALDS
OXFORDSHIRE CC,"CHILDRENS, YOUNG PEOPLE AND FAMILIES","	ADOPTION",CATERING PROVISIONS,25/04/2019,000008497517081,30.00,MARKS&SPENCER PLC
OXFORDSHIRE CC,SOCIAL AND COMMUNITY SERVICES,"	LEADERSHIP TEAM",PAYMENTS TO TRANSPORT OPERATORS,25/04/2019,000008497517087,113.20,WWW.GWR.COM
OXFORDSHIRE CC,CORPORATE CORE,"	PERSONNEL","PUBLICITY, PROMOTIONS AND ADVERTISEMENT",25/04/2019,000008497516337,25.00,FACEBK 5N9FXJWH72
OXFORDSHIRE CC,"CHILDRENS, YOUNG PEOPLE AND FAMILIES",EYNSHAM,MATERIALS,25/04/2019,000008497515917,2.28,CARD FACTORY
OXFORDSHIRE CC,"CHILDRENS, YOUNG PEOPLE AND FAMILIES",WITNEY,CATERING PROVISIONS,25/04/2019,000008497515929,11.50,SAINSBURYS 0632
OXFORDSHIRE CC,ENVIRONMENT AND ECONOMY,"	NAT TRAILS GENERAL",HARDWARE AND CROCKERY,25/04/2019,000008497515969,7.30,OXON FASTENING SYSTEMS
OXFORDSHIRE CC,CORPORATE CORE,INCOME TEAM,PAYMENT TO GOVERNMENT DEPARTMENTS,25/04/2019,000008497517307,10.00,WWW.GOV.UK
OXFORDSHIRE CC,CORPORATE CORE,INCOME TEAM,REGISTRATION AND INSPECTION FEES,25/04/2019,000008497517311,10.00,WWW.GOV.UK
OXFORDSHIRE CC,"CHILDRENS, YOUNG PEOPLE AND FAMILIES","	RIVERSIDE CENTRE",CATERING PROVISIONS,25/04/2019,000008497517333,1.10,TESCO STORES 4377
OXFORDSHIRE CC,"CHILDRENS, YOUNG PEOPLE AND FAMILIES",NTH FAM SUPRT-BCSTR,PAYMENTS TO TRANSPORT OPERATORS,25/04/2019,000008497517345,5.50,WWW.GWR.COM
OXFORDSHIRE CC,"CHILDRENS, YOUNG PEOPLE AND FAMILIES",C&F - TF CONTRIB,PAYMENTS TO TRANSPORT OPERATORS,25/04/2019,000008497517359,13.00,WWW.GWR.COM
OXFORDSHIRE CC,"CHILDRENS, YOUNG PEOPLE AND FAMILIES",EYNSHAM,MATERIALS,25/04/2019,000008497517367,6.99,TESCO DELIVERY SAVER2
OXFORDSHIRE CC,ENVIRONMENT AND ECONOMY,"	NAT TRAILS GENERAL",MATERIALS,25/04/2019,000008497515973,16.80,EVENLODE DIY
OXFORDSHIRE CC,CORPORATE CORE,PROPERTY GENERAL,LEGAL COSTS,25/04/2019,000008497516663,"1,200.00",KNIGHTS PROFESSIONAL S
OXFORDSHIRE CC,CORPORATE CORE,"	LEGAL SERVICES",MATERIALS,25/04/2019,000008497516669,50.00,DEBENHAMS.COM
OXFORDSHIRE CC,"CHILDRENS, YOUNG PEOPLE AND FAMILIES",THAME E&A HOME,VEHICLE FUEL,25/04/2019,000008497516677,2.50,THAME BP SF CONNECT
OXFORDSHIRE CC,"CHILDRENS, YOUNG PEOPLE AND FAMILIES","	LEAVING CARE NORTH",CATERING,25/04/2019,000008497516745,2.50,GREGGS BANBURY
OXFORDSHIRE CC,"CHILDRENS, YOUNG PEOPLE AND FAMILIES","	LEAVING CARE NORTH",MATERIALS,25/04/2019,000008497516751,74.04,SPORTSDIRECT.COM
OXFORDSHIRE CC,"CHILDRENS, YOUNG PEOPLE AND FAMILIES",KINGFISHER,CATERING,25/04/2019,000008497516775,6.90,MCDONALDS
OXFORDSHIRE CC,"CHILDRENS, YOUNG PEOPLE AND FAMILIES",KINGFISHER,CATERING,25/04/2019,000008497516781,.99,MCDONALDS
OXFORDSHIRE CC,CORPORATE CORE,BANKING,EDUCATIONAL AND VOCATIONAL TRAINING ,25/04/2019,000008497515993,-10.00,OXFORDSHIRE CC MOTO1
OXFORDSHIRE CC,"CHILDRENS, YOUNG PEOPLE AND FAMILIES","	NCS",PAYMENTS TO TRANSPORT OPERATORS,25/04/2019,000008497516001,32.70,BICESTER VIL SSTP
OXFORDSHIRE CC,"CHILDRENS, YOUNG PEOPLE AND FAMILIES","	NCS",OTHER TRANSPORT ARRANGEMENTS,25/04/2019,000008497516007,2.40,TFL TRAVEL CH
OXFORDSHIRE CC,ENVIRONMENT AND ECONOMY,"	LEP",PAYMENT TO GOVERNMENT DEPARTMENTS,25/04/2019,000008497516835,-13.00,COMPANIES HOUSE
OXFORDSHIRE CC,SOCIAL AND COMMUNITY SERVICES,CSS WANTAGE,CATERING PROVISIONS,25/04/2019,000008497516841,129.20,ASDA GROCERIES ONLINE
OXFORDSHIRE CC,SOCIAL AND COMMUNITY SERVICES,CSS WANTAGE,CATERING PROVISIONS,25/04/2019,000008497516847,-25.70,ASDA GROCERIES ONLINE
OXFORDSHIRE CC,CORPORATE CORE,RECRUITMENT,HIRE OF ACCOMMODATION AND FACILITIES,25/04/2019,000008497516891,660.00,HILTON
OXFORDSHIRE CC,"CHILDRENS, YOUNG PEOPLE AND FAMILIES","	SM QUALITY ASSURANCE",PAYMENTS TO TRANSPORT OPERATORS,25/04/2019,000008497516031,64.50,TRAINLINE
OXFORDSHIRE CC,ENVIRONMENT AND ECONOMY,HARD FM,EQUIPMENT,25/04/2019,000008497516057,19.50,W F SENATE
OXFORDSHIRE CC,ENVIRONMENT AND ECONOMY,HARD FM,HARDWARE AND CROCKERY,25/04/2019,000008497516071,19.99,SCREWFIX DIDCOT
OXFORDSHIRE CC,ENVIRONMENT AND ECONOMY,HARD FM,GENERAL MAINTENANCE,25/04/2019,000008497516083,53.40, WOLSELEY UK
OXFORDSHIRE CC,ENVIRONMENT AND ECONOMY,HARD FM,HARDWARE AND CROCKERY,25/04/2019,000008497516095,7.98,WICKES OXFORD
OXFORDSHIRE CC,"CHILDRENS, YOUNG PEOPLE AND FAMILIES","	FPT CITY",MATERIALS,25/04/2019,000008497516397,30.71,AMAZON.CO.UK MZ1W09IW4
OXFORDSHIRE CC,ENVIRONMENT AND ECONOMY,SIP MANAGEMENT,CATERING PROVISIONS,25/04/2019,000008497517191,57.85,MARKS&SPENCER PLC
OXFORDSHIRE CC,"CHILDRENS, YOUNG PEOPLE AND FAMILIES","	40 THE MOORS",CATERING,25/04/2019,000008497517199,3.98,BURGER KING
OXFORDSHIRE CC,"CHILDRENS, YOUNG PEOPLE AND FAMILIES","	40 THE MOORS",OTHER TRANSPORT ARRANGEMENTS,25/04/2019,000008497517201,45.00,AMIR HOSSEIN NOURIJOSH
OXFORDSHIRE CC,"CHILDRENS, YOUNG PEOPLE AND FAMILIES","	40 THE MOORS",CATERING PROVISIONS,25/04/2019,000008497517205,6.00,TESCO STORE 2788
OXFORDSHIRE CC,"CHILDRENS, YOUNG PEOPLE AND FAMILIES","	40 THE MOORS",ENTERTAINMENT EXPENSES,25/04/2019,000008497517207,17.60,ODEON UPT
OXFORDSHIRE CC,CORPORATE CORE,,"SUPPLIES, STATIONERY AND MATERIALS",25/04/2019,000008497517219,49.87,LYRECO UK LTD
OXFORDSHIRE CC,CORPORATE CORE,,"SUPPLIES, STATIONERY AND MATERIALS",25/04/2019,000008497517223,45.60,LYRECO UK LTD
OXFORDSHIRE CC,CORPORATE CORE,,"SUPPLIES, STATIONERY AND MATERIALS",25/04/2019,000008497517233,27.36,LYRECO UK LTD
OXFORDSHIRE CC,CORPORATE CORE,,"SUPPLIES, STATIONERY AND MATERIALS",25/04/2019,000008497517237,28.66,LYRECO UK LTD
OXFORDSHIRE CC,CORPORATE CORE,,"SUPPLIES, STATIONERY AND MATERIALS",25/04/2019,000008497517243,45.60,LYRECO UK LTD
OXFORDSHIRE CC,CORPORATE CORE,,"SUPPLIES, STATIONERY AND MATERIALS",25/04/2019,000008497517247,45.60,LYRECO UK LTD
OXFORDSHIRE CC,SOCIAL AND COMMUNITY SERVICES,ICS ADMIN,PAYMENTS TO TRANSPORT OPERATORS,25/04/2019,000008497516499,115.59,TRAINLINE
OXFORDSHIRE CC,SOCIAL AND COMMUNITY SERVICES,ICS ADMIN,HIRE OF ACCOMMODATION AND FACILITIES,25/04/2019,000008497516503,121.00,HOLIDAY INNS
OXFORDSHIRE CC,CORPORATE CORE,,"SUPPLIES, STATIONERY AND MATERIALS",25/04/2019,000008497517253,45.60,LYRECO UK LTD
OXFORDSHIRE CC,CORPORATE CORE,,"SUPPLIES, STATIONERY AND MATERIALS",25/04/2019,000008497517257,29.42,LYRECO UK LTD
OXFORDSHIRE CC,SOCIAL AND COMMUNITY SERVICES,CSS - OXFORD,CATERING PROVISIONS,25/04/2019,000008497516515,6.00,TESCO STORE 2994
OXFORDSHIRE CC,"CHILDRENS, YOUNG PEOPLE AND FAMILIES","	LOOKED AFTER CITY 2",OTHER EXPENSES,25/04/2019,000008497516599,50.00,WINDSOR CARLTON
OXFORDSHIRE CC,"CHILDRENS, YOUNG PEOPLE AND FAMILIES","	LOOKED AFTER CITY 2",OTHER TRANSPORT ARRANGEMENTS,25/04/2019,000008497516603,6.40,M6 TOLL
OXFORDSHIRE CC,"CHILDRENS, YOUNG PEOPLE AND FAMILIES","	LOOKED AFTER CITY 2",CLOTHING AND UNIFORMS,25/04/2019,000008497516617,195.50,PRIMARK 440
OXFORDSHIRE CC,SOCIAL AND COMMUNITY SERVICES,CSS - DIDCOT,CATERING PROVISIONS,25/04/2019,000008497515795,51.16,TESCO STORE 2919
OXFORDSHIRE CC,"CHILDRENS, YOUNG PEOPLE AND FAMILIES",NTH FAM SUPRT-BCSTR,PAYMENTS TO TRANSPORT OPERATORS,25/04/2019,000008497515801,79.40,WWW.GWR.COM
OXFORDSHIRE CC,SOCIAL AND COMMUNITY SERVICES,CSS BICESTER,MATERIALS,25/04/2019,000008497515809,28.34,TOOLSTATION LTD
OXFORDSHIRE CC,SOCIAL AND COMMUNITY SERVICES,CSS BICESTER,CATERING PROVISIONS,25/04/2019,000008497515817,6.00,TESCO STORES 4480
OXFORDSHIRE CC,"CHILDRENS, YOUNG PEOPLE AND FAMILIES",THAME E&A HOME,MATERIALS,25/04/2019,000008497515857,5.00,CLINTONS-155
OXFORDSHIRE CC,"CHILDRENS, YOUNG PEOPLE AND FAMILIES",ADMINISTRATION,PAYMENTS TO TRANSPORT OPERATORS,25/04/2019,000008497515867,18.80,TRAINLINE
OXFORDSHIRE CC,CORPORATE CORE,,"SUPPLIES, STATIONERY AND MATERIALS",25/04/2019,000008497517261,223.24,LYRECO UK LTD
OXFORDSHIRE CC,CORPORATE CORE,,"SUPPLIES, STATIONERY AND MATERIALS",25/04/2019,000008497517267,45.60,LYRECO UK LTD
OXFORDSHIRE CC,"CHILDRENS, YOUNG PEOPLE AND FAMILIES","	LOOKED AFTER CITY 1",PAYMENTS TO TRANSPORT OPERATORS,25/04/2019,000008497517271,70.21,TRAINLINE
OXFORDSHIRE CC,"CHILDRENS, YOUNG PEOPLE AND FAMILIES","	LEAVING CARE NORTH",PAYMENTS TO TRANSPORT OPERATORS,25/04/2019,000008497517281,3.10,OXFORD PARKWAY SSTP
OXFORDSHIRE CC,"CHILDRENS, YOUNG PEOPLE AND FAMILIES","	DIRECTOR'S OFFICE",PAYMENTS TO TRANSPORT OPERATORS,25/04/2019,000008497517289,75.70,WWW.GWR.COM
OXFORDSHIRE CC,SOCIAL AND COMMUNITY SERVICES,LOOKED AFTER NORTH,PAYMENT TO GOVERNMENT DEPARTMENTS,25/04/2019,000008497515895,75.50,HM PASSPORT OFFICE
OXFORDSHIRE CC,"CHILDRENS, YOUNG PEOPLE AND FAMILIES","	LOOKED AFTER SOUTH",SUBSCRIPTIONS,25/04/2019,000008497515899,4.50,WEST BERKSHIRE D.C
OXFORDSHIRE CC,"CHILDRENS, YOUNG PEOPLE AND FAMILIES","	LOOKED AFTER SOUTH",PAYMENTS TO TRANSPORT OPERATORS,25/04/2019,000008497515905,70.80,WWW.GWR.COM
OXFORDSHIRE CC,"CHILDRENS, YOUNG PEOPLE AND FAMILIES",THAME E&A HOME,CATERING PROVISIONS,24/04/2019,000008492921925,4.40,SAINSBURYS SACAT 2096
OXFORDSHIRE CC,SOCIAL AND COMMUNITY SERVICES,UASC 16&17,CATERING PROVISIONS,24/04/2019,000008492921927,15.50,WM MORRISONS STORE
OXFORDSHIRE CC,SOCIAL AND COMMUNITY SERVICES,CSS - OXFORD,CATERING PROVISIONS,24/04/2019,000008492921929,3.28,ALDI STORES 775-142
OXFORDSHIRE CC,SOCIAL AND COMMUNITY SERVICES,CSS - OXFORD,CATERING PROVISIONS,24/04/2019,000008492921931,14.73,ALDI STORES 775-142
OXFORDSHIRE CC,SOCIAL AND COMMUNITY SERVICES,"	MUSEUMS COLLECTIONS",PAYMENTS TO TRANSPORT OPERATORS,24/04/2019,000008492921981,28.90,WWW.CHILTERNRAILWAYS.C
OXFORDSHIRE CC,"CHILDRENS, YOUNG PEOPLE AND FAMILIES","	LOOKED AFTER CITY 1",PAYMENTS TO TRANSPORT OPERATORS,24/04/2019,000008492921983,73.77,TRAINLINE
OXFORDSHIRE CC,ENVIRONMENT AND ECONOMY,HARD FM,HARDWARE AND CROCKERY,24/04/2019,000008492921891,28.88,BUILDBASE - OXFORD
OXFORDSHIRE CC,ENVIRONMENT AND ECONOMY,HARD FM,HARDWARE AND CROCKERY,24/04/2019,000008492921893,16.14,B & Q 1062
OXFORDSHIRE CC,ENVIRONMENT AND ECONOMY,HARD FM,EQUIPMENT,24/04/2019,000008492921895,53.91,WILTS ELECTRICAL
OXFORDSHIRE CC,SOCIAL AND COMMUNITY SERVICES,DIDCOT MOVE-ON HOME,CATERING PROVISIONS,24/04/2019,000008492921933,33.55,SAINSBURYS 2067
OXFORDSHIRE CC,SOCIAL AND COMMUNITY SERVICES,DIDCOT MOVE-ON HOME,CATERING PROVISIONS,24/04/2019,000008492921935,10.00,SAINSBURYS 2067
OXFORDSHIRE CC,SOCIAL AND COMMUNITY SERVICES,DIDCOT MOVE-ON HOME,CATERING,24/04/2019,000008492921937,9.05,STARBUCKS COFFEE
OXFORDSHIRE CC,SOCIAL AND COMMUNITY SERVICES,DIDCOT MOVE-ON HOME,CATERING PROVISIONS,24/04/2019,000008492921939,25.07,TK MAXX
OXFORDSHIRE CC,"CHILDRENS, YOUNG PEOPLE AND FAMILIES","	RESIDENTIAL STRATEGY",HIRE OF ACCOMMODATION AND FACILITIES,24/04/2019,000008492922091,150.00,BUCKINGHAM HOTELS
OXFORDSHIRE CC,SOCIAL AND COMMUNITY SERVICES,CSS WITNEY,CATERING PROVISIONS,24/04/2019,000008492922119,92.35,TESCO STORES 2008
OXFORDSHIRE CC,SOCIAL AND COMMUNITY SERVICES,CSS WANTAGE,CATERING PROVISIONS,24/04/2019,000008492922121,18.50,SAINSBURYS SACAT 2244
OXFORDSHIRE CC,ENVIRONMENT AND ECONOMY,ABINGDON LIBRARY,MATERIALS,24/04/2019,000008492922169,75.53,WWW.DISCOUNTDISPLAYS.C
OXFORDSHIRE CC,"CHILDRENS, YOUNG PEOPLE AND FAMILIES","	LOOKED AFTER SOUTH",CATERING,24/04/2019,000008492922171,6.40,COSTA COFFEE 43037475
OXFORDSHIRE CC,ENTERPRISEVC,,CAR LEASING - PRIVATE RENTALS,24/04/2019,000008492922247,69.55,ENTERPRISE RENT-A-CAR
OXFORDSHIRE CC,ENTERPRISEVC,,CAR LEASING - PRIVATE RENTALS,24/04/2019,000008492922249,158.32,ENTERPRISE RENT-A-CAR
OXFORDSHIRE CC,"CHILDRENS, YOUNG PEOPLE AND FAMILIES","	LEAVING CARE SOUTH",OTHER TRANSPORT ARRANGEMENTS,24/04/2019,000008492922205,4.00,PEARTREE PARK AND RIDE
OXFORDSHIRE CC,ENVIRONMENT AND ECONOMY,"	SAMUELSON HOUSE",CATERING PROVISIONS,24/04/2019,000008492922235,3.00,WM MORRISONS STORE
OXFORDSHIRE CC,ENTERPRISEVC,,CAR LEASING - PRIVATE RENTALS,24/04/2019,000008492922237,105.85,ENTERPRISE RENT-A-CAR
OXFORDSHIRE CC,ENTERPRISEVC,,CAR LEASING - PRIVATE RENTALS,24/04/2019,000008492922239,411.60,ENTERPRISE RENT-A-CAR
OXFORDSHIRE CC,"CHILDRENS, YOUNG PEOPLE AND FAMILIES","	DIRECTOR'S OFFICE","BOOKS, DVDS AND CDS",24/04/2019,000008492922263,39.99,AMZN MKTP UK MZ0EA5984
OXFORDSHIRE CC,"CHILDRENS, YOUNG PEOPLE AND FAMILIES",C&F - TF CONTRIB,MATERIALS,24/04/2019,000008492922289,24.90,AMAZON.CO.UK MZ26259R4
OXFORDSHIRE CC,"CHILDRENS, YOUNG PEOPLE AND FAMILIES",DEPUTY DIRECTOR &MAN,PAYMENTS TO TRANSPORT OPERATORS,24/04/2019,000008492921975,45.40,WWW.GWR.COM
OXFORDSHIRE CC,ENTERPRISEVC,BUSINESS SYST STAFF,PAYMENT TO GOVERNMENT DEPARTMENTS,24/04/2019,000008492921977,5.00,PAYPAL  HOUSELORDSP
OXFORDSHIRE CC,"CHILDRENS, YOUNG PEOPLE AND FAMILIES",DIDCOT MOVE-ON HOME,CATERING,24/04/2019,000008492921979,10.30,COSTA COFFEE 43039930
OXFORDSHIRE CC,CORPORATE CORE,"	PERSONNEL",OTHER TRAINING COURSES AND QUALIFICATION,24/04/2019,000008492922055,426.60,BUSINESS FORUMS INTERN
OXFORDSHIRE CC,"CHILDRENS, YOUNG PEOPLE AND FAMILIES","	MALTFIELD HOUSE",CATERING PROVISIONS,24/04/2019,000008492922089,17.35,CO-OPERATIVE FOOD
OXFORDSHIRE CC,"CHILDRENS, YOUNG PEOPLE AND FAMILIES","	MALTFIELD HOUSE",CLOTHING AND UNIFORMS,24/04/2019,000008492922207,4.00,PRIMARK 434
OXFORDSHIRE CC,"CHILDRENS, YOUNG PEOPLE AND FAMILIES","	MALTFIELD HOUSE",VEHICLE FUEL,24/04/2019,000008492922209,26.00,GULF FILLING STATION
OXFORDSHIRE CC,"CHILDRENS, YOUNG PEOPLE AND FAMILIES",EYNSHAM,CATERING PROVISIONS,24/04/2019,000008492922211,171.11,TESCO STORES 2008
OXFORDSHIRE CC,ENTERPRISEVC,,CAR LEASING - PRIVATE RENTALS,24/04/2019,000008492922241,69.55,ENTERPRISE RENT-A-CAR
OXFORDSHIRE CC,ENTERPRISEVC,,CAR LEASING - PRIVATE RENTALS,24/04/2019,000008492922243,91.26,ENTERPRISE RENT-A-CAR
OXFORDSHIRE CC,ENTERPRISEVC,,CAR LEASING - PRIVATE RENTALS,24/04/2019,000008492922245,46.12,ENTERPRISE RENT-A-CAR
OXFORDSHIRE CC,"CHILDRENS, YOUNG PEOPLE AND FAMILIES","	LOOKED AFTER CITY 1",VEHICLE FUEL,24/04/2019,000008492922159,20.08,TESCO PAY AT PUMP 3968
OXFORDSHIRE CC,"CHILDRENS, YOUNG PEOPLE AND FAMILIES","	40 THE MOORS",VEHICLES REPAIRS AND MAINTENANCE,24/04/2019,000008492922165,45.00,PP MUHAMMADJAF
OXFORDSHIRE CC,"CHILDRENS, YOUNG PEOPLE AND FAMILIES","	40 THE MOORS",OTHER TRANSPORT ARRANGEMENTS,24/04/2019,000008492922167,25.00,SUMUP   JAY
OXFORDSHIRE CC,"CHILDRENS, YOUNG PEOPLE AND FAMILIES","	40 THE MOORS",CATERING,24/04/2019,000008492922213,6.12,BURGER KING
OXFORDSHIRE CC,"CHILDRENS, YOUNG PEOPLE AND FAMILIES","	40 THE MOORS",OTHER TRANSPORT ARRANGEMENTS,24/04/2019,000008492922215,11.50,GLOUCESTER STREET CAR
OXFORDSHIRE CC,"CHILDRENS, YOUNG PEOPLE AND FAMILIES","	40 THE MOORS",CATERING PROVISIONS,24/04/2019,000008492922217,50.45,ASDA STORE 4442
OXFORDSHIRE CC,"CHILDRENS, YOUNG PEOPLE AND FAMILIES","	40 THE MOORS",OTHER TRANSPORT ARRANGEMENTS,24/04/2019,000008492922219,25.00,THE OXFORDSHIRE TAXI C
OXFORDSHIRE CC,SOCIAL AND COMMUNITY SERVICES,CSS BICESTER,CATERING PROVISIONS,24/04/2019,000008492921841,81.00,SAINSBURYS (2243)
OXFORDSHIRE CC,SOCIAL AND COMMUNITY SERVICES,CSS - OXFORD,MATERIALS,24/04/2019,000008492921843,17.78,AMZNMKTPLACE AMAZON.CO
OXFORDSHIRE CC,"CHILDRENS, YOUNG PEOPLE AND FAMILIES","	MUSIC UNALLOCABLE",CAR LEASING - PRIVATE RENTALS,24/04/2019,000008492922015,89.10,EURODRIVE
OXFORDSHIRE CC,"CHILDRENS, YOUNG PEOPLE AND FAMILIES","	MALTFIELD HOUSE",CATERING PROVISIONS,24/04/2019,000008492922037,5.39,LLOYDS AT SAINSBURYS
OXFORDSHIRE CC,"CHILDRENS, YOUNG PEOPLE AND FAMILIES","	MALTFIELD HOUSE",CATERING PROVISIONS,24/04/2019,000008492922039,26.05,SAINSBURYS SACAT 0631
OXFORDSHIRE CC,"CHILDRENS, YOUNG PEOPLE AND FAMILIES","	MALTFIELD HOUSE",CATERING PROVISIONS,24/04/2019,000008492922041,21.35,SAINSBURYS SACAT 0631
OXFORDSHIRE CC,"CHILDRENS, YOUNG PEOPLE AND FAMILIES","	MUSIC UNALLOCABLE","BOOKS, DVDS AND CDS",24/04/2019,000008492922195,.79,ITUNES.COM/BILL
OXFORDSHIRE CC,SOCIAL AND COMMUNITY SERVICES,"	PUBLIC HEALTH GENERA",PAYMENTS TO TRANSPORT OPERATORS,24/04/2019,000008492922197,70.50,WWW.GWR.COM
OXFORDSHIRE CC,"CHILDRENS, YOUNG PEOPLE AND FAMILIES","	40 THE MOORS",CATERING PROVISIONS,24/04/2019,000008492922199,168.00,SAINSBURYS (2243)
OXFORDSHIRE CC,"CHILDRENS, YOUNG PEOPLE AND FAMILIES","	40 THE MOORS",MATERIALS,24/04/2019,000008492922221,130.00,J D SPORTS
OXFORDSHIRE CC,"CHILDRENS, YOUNG PEOPLE AND FAMILIES","	40 THE MOORS",MATERIALS,24/04/2019,000008492922223,217.96,SPORTSDIRECT 218
OXFORDSHIRE CC,CORPORATE CORE,,"SUPPLIES, STATIONERY AND MATERIALS",24/04/2019,000008492922227,71.86,LYRECO UK LTD
OXFORDSHIRE CC,CORPORATE CORE,,"SUPPLIES, STATIONERY AND MATERIALS",24/04/2019,000008492922229,77.52,LYRECO UK LTD
OXFORDSHIRE CC,ENVIRONMENT AND ECONOMY,HOLDING CODE FOR REA,VEHICLE FUEL,24/04/2019,000008492921871,34.00,SHELL PEARTREE
OXFORDSHIRE CC,"CHILDRENS, YOUNG PEOPLE AND FAMILIES","	RESIDENTIAL STRATEGY",CATERING PROVISIONS,24/04/2019,000008492921873,3.97,TESCO STORE 2994
OXFORDSHIRE CC,CORPORATE CORE,BANKING,EDUCATIONAL AND VOCATIONAL TRAINING ,24/04/2019,000008492921875,2.55,OXFORDSHIRE CC PDQ1
OXFORDSHIRE CC,CORPORATE CORE,BANKING,EDUCATIONAL AND VOCATIONAL TRAINING ,24/04/2019,000008492921877,-2.55,OXFORDSHIRE CC MOTO1
OXFORDSHIRE CC,"CHILDRENS, YOUNG PEOPLE AND FAMILIES","	LOOKED AFTER CITY 1",OTHER TRANSPORT ARRANGEMENTS,24/04/2019,000008492921879,77.00,STAGECOACH SERVICE
OXFORDSHIRE CC,SOCIAL AND COMMUNITY SERVICES,CSS - OXFORD,CATERING PROVISIONS,24/04/2019,000008492921919,16.77,ALDI STORES 775-142
OXFORDSHIRE CC,"CHILDRENS, YOUNG PEOPLE AND FAMILIES","	MUSIC UNALLOCABLE",VEHICLE FUEL,24/04/2019,000008492922017,2.94,CO-OPERATIVE FUEL
OXFORDSHIRE CC,"CHILDRENS, YOUNG PEOPLE AND FAMILIES","	MALTFIELD HOUSE",DRUGS AND MEDICAL SUPPLIES,24/04/2019,000008492922043,42.28,LLOYDS PHARMACY
OXFORDSHIRE CC,"CHILDRENS, YOUNG PEOPLE AND FAMILIES","	MALTFIELD HOUSE",DRUGS AND MEDICAL SUPPLIES,24/04/2019,000008492922045,10.47,SUPERDRUG STORES PLC
OXFORDSHIRE CC,CORPORATE CORE,HISTORY SERVICE,"BOOKS, DVDS AND CDS",24/04/2019,000008492922049,35.00,AMAZON.CO.UK MZ11F79N4
OXFORDSHIRE CC,"CHILDRENS, YOUNG PEOPLE AND FAMILIES",THAME E&A HOME,CATERING PROVISIONS,24/04/2019,000008492922073,14.98,OXFORD KFC
OXFORDSHIRE CC,"CHILDRENS, YOUNG PEOPLE AND FAMILIES","	MALTFIELD HOUSE",CATERING PROVISIONS,24/04/2019,000008492922147,28.53,TESCO STORE 2994
OXFORDSHIRE CC,"CHILDRENS, YOUNG PEOPLE AND FAMILIES","	MALTFIELD HOUSE",MATERIALS,24/04/2019,000008492922149,54.99,ARGOS LTD
OXFORDSHIRE CC,ENVIRONMENT AND ECONOMY,HARD FM,EQUIPMENT,24/04/2019,000008492921897,26.94,WILTS ELECTRICAL
OXFORDSHIRE CC,"CHILDRENS, YOUNG PEOPLE AND FAMILIES",ICT INFORMATION,IT SERVICES,24/04/2019,000008492921899,6.34,FASTHOSTS INTERNET
OXFORDSHIRE CC,SOCIAL AND COMMUNITY SERVICES,SAFEGUARDING-OPERATIONAL MANAGERS,ENTERTAINMENT EXPENSES,24/04/2019,000008492921941,56.00,THE REGAL EVESHAM
OXFORDSHIRE CC,"CHILDRENS, YOUNG PEOPLE AND FAMILIES","	RIVERSIDE CENTRE",CATERING PROVISIONS,24/04/2019,000008492921943,9.32,TESCO STORES 4377
OXFORDSHIRE CC,SOCIAL AND COMMUNITY SERVICES,CSS - BANBURY,CATERING PROVISIONS,24/04/2019,000008492921827,76.45,SAINSBURYS TO YOU 0642
OXFORDSHIRE CC,SOCIAL AND COMMUNITY SERVICES,CSS - BANBURY,CATERING PROVISIONS,24/04/2019,000008492921829,27.70,TESCO STORE 2064
OXFORDSHIRE CC,"CHILDRENS, YOUNG PEOPLE AND FAMILIES",WITNEY,CATERING PROVISIONS,24/04/2019,000008492921853,12.35,SAINSBURYS SACAT 0632
OXFORDSHIRE CC,"CHILDRENS, YOUNG PEOPLE AND FAMILIES",PUBLIC HEALTH GENERAL,PAYMENTS TO VOLUNTARY BODIES,24/04/2019,000008492921861,726.00,WWW.LIVINGSTREETS.ORG.
OXFORDSHIRE CC,"CHILDRENS, YOUNG PEOPLE AND FAMILIES",THAME E&A HOME,CATERING,24/04/2019,000008492921901,10.50,MCDONALDS
OXFORDSHIRE CC,ENVIRONMENT AND ECONOMY,COUNTY LIBRARY,GENERAL MAINTENANCE,24/04/2019,000008492921905,9.83, WOLSELEY UK
OXFORDSHIRE CC,ENVIRONMENT AND ECONOMY,COUNTY LIBRARY,HARDWARE AND CROCKERY,24/04/2019,000008492921907,23.44,CITY PLUMBING
OXFORDSHIRE CC,"CHILDRENS, YOUNG PEOPLE AND FAMILIES","	LOOKED AFTER CITY 2",CATERING PROVISIONS,24/04/2019,000008492922031,1.35,SAINSBURYS SACAT 0730
OXFORDSHIRE CC,"CHILDRENS, YOUNG PEOPLE AND FAMILIES","	LOOKED AFTER CITY 2",PAYMENTS TO TRANSPORT OPERATORS,24/04/2019,000008492922033,6.80,GWR DIDCOT PKWY TO
OXFORDSHIRE CC,"CHILDRENS, YOUNG PEOPLE AND FAMILIES","	LOOKED AFTER CITY 2",MATERIALS,24/04/2019,000008492922035,100.00,J D SPORTS FASHION
OXFORDSHIRE CC,"CHILDRENS, YOUNG PEOPLE AND FAMILIES",CNTL EARLY HELP-RHIL,CATERING PROVISIONS,24/04/2019,000008492922061,110.60,TESCO STORE 2994
OXFORDSHIRE CC,CORPORATE CORE,"	LEGAL SERVICES",LEGAL COSTS,24/04/2019,000008492922063,11.00,OCC REGISTRARS (M)
OXFORDSHIRE CC,CORPORATE CORE,"	CC TRAINING",TRAINING RELATED EXPENDITURE,24/04/2019,000008492922065,70.50,WWW.GWR.COM
OXFORDSHIRE CC,"CHILDRENS, YOUNG PEOPLE AND FAMILIES","	ADOPTION",RESIDENTIAL ACTIVITIES,24/04/2019,000008492922191,894.00,HOLIDAY COTTAGES
OXFORDSHIRE CC,"CHILDRENS, YOUNG PEOPLE AND FAMILIES",EDT,HIRE OF ACCOMMODATION AND FACILITIES,24/04/2019,000008492922251,160.00,MAESMAWR HALL HOTEL (C
OXFORDSHIRE CC,"CHILDRENS, YOUNG PEOPLE AND FAMILIES",CNTL EARLY HELP-RHIL,"SUPPLIES, STATIONERY AND MATERIALS",24/04/2019,000008492922253,28.94,PMG SCHOOLWEAR
OXFORDSHIRE CC,SOCIAL AND COMMUNITY SERVICES,CSS - BANBURY,MATERIALS,24/04/2019,000008492921831,47.34,HOME BARGAINS BANBURY
OXFORDSHIRE CC,"CHILDRENS, YOUNG PEOPLE AND FAMILIES",PUBLIC HEALTH GENERAL,PAYMENTS TO VOLUNTARY BODIES,24/04/2019,000008492921863,606.00,WWW.LIVINGSTREETS.ORG.
OXFORDSHIRE CC,"CHILDRENS, YOUNG PEOPLE AND FAMILIES",CSS WALLINGFORD,MATERIALS,24/04/2019,000008492921865,9.00,KERI THE FLORIST
OXFORDSHIRE CC,"CHILDRENS, YOUNG PEOPLE AND FAMILIES",CSS WALLINGFORD,CATERING PROVISIONS,24/04/2019,000008492921867,7.50,WAITROSE 675
OXFORDSHIRE CC,"CHILDRENS, YOUNG PEOPLE AND FAMILIES",CSS WALLINGFORD,MATERIALS,24/04/2019,000008492921869,5.40,KP STATIONERS
OXFORDSHIRE CC,ENVIRONMENT AND ECONOMY,"	COUNTY PRINT FINSHRS",MATERIALS,24/04/2019,000008492921909,3.50,HALFORDS 0988
OXFORDSHIRE CC,ENVIRONMENT AND ECONOMY,"	COUNTY PRINT FINSHRS",CATERING,24/04/2019,000008492921911,28.98,BOOKER LIMITED OXFORD
OXFORDSHIRE CC,ENTERPRISEVC,OTFC TEAM,CLOTHING AND UNIFORMS,24/04/2019,000008492921961,8.48,PAYPAL  WSG LTD
OXFORDSHIRE CC,ENVIRONMENT AND ECONOMY,"	NATURAL ENVIRONMENT",PAYMENTS TO TRANSPORT OPERATORS,24/04/2019,000008492922013,70.50,OXFORD PARKWAY
OXFORDSHIRE CC,"CHILDRENS, YOUNG PEOPLE AND FAMILIES","	LOOKED AFTER CITY 1",,23/04/2019,000008489518175,-14.37,
OXFORDSHIRE CC,"CHILDRENS, YOUNG PEOPLE AND FAMILIES","	40 THE MOORS",CATERING,23/04/2019,000008489518219,15.96,WWW.DOMINOS.CO.UK
OXFORDSHIRE CC,"CHILDRENS, YOUNG PEOPLE AND FAMILIES",EYNSHAM,DRUGS AND MEDICAL SUPPLIES,23/04/2019,000008489518235,5.98,"BOOTS,WITNEY"
OXFORDSHIRE CC,"CHILDRENS, YOUNG PEOPLE AND FAMILIES",DIDCOT MOVE-ON HOME,CATERING PROVISIONS,23/04/2019,000008489518225,29.85,SAINSBURYS SACAT 2067
OXFORDSHIRE CC,"CHILDRENS, YOUNG PEOPLE AND FAMILIES",DIDCOT MOVE-ON HOME,CATERING PROVISIONS,23/04/2019,000008489518227,41.35,SAINSBURYS 2067
OXFORDSHIRE CC,"CHILDRENS, YOUNG PEOPLE AND FAMILIES",EYNSHAM,CLOTHING AND UNIFORMS,23/04/2019,000008489518237,35.03,NEW LOOK
OXFORDSHIRE CC,"CHILDRENS, YOUNG PEOPLE AND FAMILIES","	40 THE MOORS",MATERIALS,23/04/2019,000008489518239,103.94,WWW.SKATEHUT.CO.UK
OXFORDSHIRE CC,"CHILDRENS, YOUNG PEOPLE AND FAMILIES","	40 THE MOORS",OTHER TRANSPORT ARRANGEMENTS,23/04/2019,000008489518241,35.00,IZ  LALAS TAXI
OXFORDSHIRE CC,"CHILDRENS, YOUNG PEOPLE AND FAMILIES","	40 THE MOORS",MATERIALS,23/04/2019,000008489518243,131.87,WWW.ARGOS.CO.UK
OXFORDSHIRE CC,"CHILDRENS, YOUNG PEOPLE AND FAMILIES","	DIRECTOR'S OFFICE",MATERIALS,23/04/2019,000008489518261,22.98,AMZNMKTPLACE
OXFORDSHIRE CC,"CHILDRENS, YOUNG PEOPLE AND FAMILIES","	MALTFIELD HOUSE",MATERIALS,23/04/2019,000008489518247,13.25,LUSH UK
OXFORDSHIRE CC,"CHILDRENS, YOUNG PEOPLE AND FAMILIES","	MALTFIELD HOUSE",CATERING,23/04/2019,000008489518249,7.45,COSTA COFFEE 43036780
OXFORDSHIRE CC,"CHILDRENS, YOUNG PEOPLE AND FAMILIES","	MALTFIELD HOUSE",CATERING PROVISIONS,23/04/2019,000008489518251,7.00,TESCO STORES 4480
OXFORDSHIRE CC,"CHILDRENS, YOUNG PEOPLE AND FAMILIES","	MALTFIELD HOUSE",CATERING,23/04/2019,000008489518253,12.97,MCDONALDS
OXFORDSHIRE CC,"CHILDRENS, YOUNG PEOPLE AND FAMILIES","	40 THE MOORS",MATERIALS,23/04/2019,000008489518255,60.93,WWW.ARGOS.CO.UK
OXFORDSHIRE CC,"CHILDRENS, YOUNG PEOPLE AND FAMILIES","	40 THE MOORS",CATERING,23/04/2019,000008489518257,32.58,WWW.DOMINOS.CO.UK
OXFORDSHIRE CC,"CHILDRENS, YOUNG PEOPLE AND FAMILIES",THAME E&A HOME,CATERING PROVISIONS,23/04/2019,000008489518143,137.78,SAINSBURYS TO YOU 0600
OXFORDSHIRE CC,"CHILDRENS, YOUNG PEOPLE AND FAMILIES",WITNEY,CATERING PROVISIONS,23/04/2019,000008489518149,5.90,SAINSBURYS SACAT 0632
OXFORDSHIRE CC,"CHILDRENS, YOUNG PEOPLE AND FAMILIES","	RESIDENTIAL STRATEGY",CATERING,23/04/2019,000008489518151,22.40,BANQUET KITCHEN LIMITE
OXFORDSHIRE CC,"CHILDRENS, YOUNG PEOPLE AND FAMILIES",THAME E&A HOME,CATERING,23/04/2019,000008489518153,7.65,GREGGS
OXFORDSHIRE CC,"CHILDRENS, YOUNG PEOPLE AND FAMILIES",THAME E&A HOME,VEHICLE FUEL,23/04/2019,000008489518155,5.49,THAME BP SF CONNECT
OXFORDSHIRE CC,"CHILDRENS, YOUNG PEOPLE AND FAMILIES",THAME E&A HOME,VEHICLE FUEL,23/04/2019,000008489518157,65.23,THAME BP SF CONNECT
OXFORDSHIRE CC,"CHILDRENS, YOUNG PEOPLE AND FAMILIES",THAME E&A HOME,VEHICLE FUEL,23/04/2019,000008489518159,29.83,THAME BP SF CONNECT
OXFORDSHIRE CC,"CHILDRENS, YOUNG PEOPLE AND FAMILIES",THAME E&A HOME,CATERING,23/04/2019,000008489518161,14.00,THE TROUT
OXFORDSHIRE CC,"CHILDRENS, YOUNG PEOPLE AND FAMILIES",THAME E&A HOME,CATERING,23/04/2019,000008489518163,3.10,THE TROUT
OXFORDSHIRE CC,"CHILDRENS, YOUNG PEOPLE AND FAMILIES",THAME E&A HOME,CATERING,23/04/2019,000008489518165,86.55,THE TROUT
OXFORDSHIRE CC,"CHILDRENS, YOUNG PEOPLE AND FAMILIES",WITNEY,CATERING PROVISIONS,23/04/2019,000008489518167,9.50,SAINSBURYS SACAT 0632
OXFORDSHIRE CC,ENVIRONMENT AND ECONOMY,"	LEP",IT SERVICES,23/04/2019,000008489518169,263.23,BAMBOOHR HRIS
OXFORDSHIRE CC,"CHILDRENS, YOUNG PEOPLE AND FAMILIES",THAME E&A HOME,VEHICLE FUEL,23/04/2019,000008489518177,10.35,THAME BP SF CONNECT
OXFORDSHIRE CC,"CHILDRENS, YOUNG PEOPLE AND FAMILIES",THAME E&A HOME,CATERING PROVISIONS,23/04/2019,000008489518183,12.50,SAINSBURYS 0690
OXFORDSHIRE CC,"CHILDRENS, YOUNG PEOPLE AND FAMILIES",EYNSHAM,HARDWARE AND CROCKERY,23/04/2019,000008489518187,13.29,B & Q 1176
OXFORDSHIRE CC,"CHILDRENS, YOUNG PEOPLE AND FAMILIES",THAME E&A HOME,VEHICLE FUEL,23/04/2019,000008489518189,2.09,THAME BP SF CONNECT
OXFORDSHIRE CC,"CHILDRENS, YOUNG PEOPLE AND FAMILIES",THAME E&A HOME,CATERING,23/04/2019,000008489518191,19.50,THE TROUT
OXFORDSHIRE CC,SOCIAL AND COMMUNITY SERVICES,DIDCOT MOVE-ON HOME,CATERING PROVISIONS,23/04/2019,000008489518193,24.23,SAINSBURYS 2067
OXFORDSHIRE CC,"CHILDRENS, YOUNG PEOPLE AND FAMILIES","	40 THE MOORS",OTHER TRANSPORT ARRANGEMENTS,23/04/2019,000008489518197,15.30,SUMUP   TAXI 001
OXFORDSHIRE CC,"CHILDRENS, YOUNG PEOPLE AND FAMILIES","	MALTFIELD HOUSE",CATERING PROVISIONS,23/04/2019,000008489518203,6.70,SAINSBURYS SACAT 2175
OXFORDSHIRE CC,"CHILDRENS, YOUNG PEOPLE AND FAMILIES","	ALTERNATIVES TO CARE",CLIENT LODGINGS AND ACCOMMODATION,23/04/2019,000008489518213,"1,450.37",SILVA HOMES LTD
OXFORDSHIRE CC,"CHILDRENS, YOUNG PEOPLE AND FAMILIES","	40 THE MOORS",CATERING,23/04/2019,000008489518215,52.00,TIFFINS
OXFORDSHIRE CC,"CHILDRENS, YOUNG PEOPLE AND FAMILIES","	40 THE MOORS",CATERING PROVISIONS,23/04/2019,000008489518217,7.15,CO-OPERATIVE FOOD
OXFORDSHIRE CC,"CHILDRENS, YOUNG PEOPLE AND FAMILIES","	LEAVING CARE NORTH",CLOTHING AND UNIFORMS,22/04/2019,000008483006611,-75.00,PAYPAL  JDSPORTS
OXFORDSHIRE CC,"CHILDRENS, YOUNG PEOPLE AND FAMILIES","	MALTFIELD HOUSE",CLOTHING AND UNIFORMS,22/04/2019,000008483006625,19.20,PRIMARK 693
OXFORDSHIRE CC,"CHILDRENS, YOUNG PEOPLE AND FAMILIES","	MALTFIELD HOUSE",CATERING,22/04/2019,000008483006663,17.08,MCDONALDS
OXFORDSHIRE CC,"CHILDRENS, YOUNG PEOPLE AND FAMILIES","	40 THE MOORS",OTHER TRANSPORT ARRANGEMENTS,22/04/2019,000008483006699,29.15,SUMUP   TAXI
OXFORDSHIRE CC,"CHILDRENS, YOUNG PEOPLE AND FAMILIES","	40 THE MOORS",MATERIALS,22/04/2019,000008483006675,4.99,PRODUCT SUPPORT AG
OXFORDSHIRE CC,"CHILDRENS, YOUNG PEOPLE AND FAMILIES","	40 THE MOORS",ENTERTAINMENT EXPENSES,22/04/2019,000008483006681,20.70,TJ S
OXFORDSHIRE CC,"CHILDRENS, YOUNG PEOPLE AND FAMILIES","	40 THE MOORS",ENTERTAINMENT EXPENSES,22/04/2019,000008483006685,5.70,TJ S
OXFORDSHIRE CC,"CHILDRENS, YOUNG PEOPLE AND FAMILIES","	40 THE MOORS",CATERING PROVISIONS,22/04/2019,000008483006689,21.55,OXFORD PEARTREE KFC
OXFORDSHIRE CC,"CHILDRENS, YOUNG PEOPLE AND FAMILIES","	40 THE MOORS",OTHER TRANSPORT ARRANGEMENTS,22/04/2019,000008483006693,27.00,IZ  HEKURAN BERISH
OXFORDSHIRE CC,"CHILDRENS, YOUNG PEOPLE AND FAMILIES","	40 THE MOORS",OTHER TRANSPORT ARRANGEMENTS,22/04/2019,000008483006697,25.00,THE OXFORDSHIRE TAXI C
OXFORDSHIRE CC,"CHILDRENS, YOUNG PEOPLE AND FAMILIES","	40 THE MOORS",VEHICLES REPAIRS AND MAINTENANCE,22/04/2019,000008483006703,14.20,PP AMIR KHAN
OXFORDSHIRE CC,"CHILDRENS, YOUNG PEOPLE AND FAMILIES",DIDCOT MOVE-ON HOME,CATERING PROVISIONS,22/04/2019,000008483006735,65.05,SAINSBURYS SACAT 2067
OXFORDSHIRE CC,"CHILDRENS, YOUNG PEOPLE AND FAMILIES",DIDCOT MOVE-ON HOME,CATERING,22/04/2019,000008483006739,8.10,COSTA COFFEE 43042160
OXFORDSHIRE CC,"CHILDRENS, YOUNG PEOPLE AND FAMILIES","	40 THE MOORS",MATERIALS,22/04/2019,000008483006781,12.95,WWW.ARGOS.CO.UK
OXFORDSHIRE CC,"CHILDRENS, YOUNG PEOPLE AND FAMILIES",DIDCOT MOVE-ON HOME,CATERING PROVISIONS,22/04/2019,000008483006741,9.90,CO-OP FOOD
OXFORDSHIRE CC,"CHILDRENS, YOUNG PEOPLE AND FAMILIES",DIDCOT MOVE-ON HOME,CATERING PROVISIONS,22/04/2019,000008483006747,60.95,SAINSBURYS 2067
OXFORDSHIRE CC,"CHILDRENS, YOUNG PEOPLE AND FAMILIES","	40 THE MOORS",MATERIALS,22/04/2019,000008483006785,60.93,WWW.ARGOS.CO.UK
OXFORDSHIRE CC,"CHILDRENS, YOUNG PEOPLE AND FAMILIES",DIDCOT MOVE-ON HOME,CLOTHING AND UNIFORMS,22/04/2019,000008483006749,78.99,NEW LOOK 1754
OXFORDSHIRE CC,ENVIRONMENT AND ECONOMY,"	TVERC",IT SERVICES,22/04/2019,000008483006767,16.79,SUB 6 LTD
OXFORDSHIRE CC,"CHILDRENS, YOUNG PEOPLE AND FAMILIES","	40 THE MOORS",OTHER TRANSPORT ARRANGEMENTS,22/04/2019,000008483006777,25.00,IZ  001 TAXI
OXFORDSHIRE CC,"CHILDRENS, YOUNG PEOPLE AND FAMILIES","	40 THE MOORS",VEHICLES REPAIRS AND MAINTENANCE,22/04/2019,000008483006789,45.00,PP MUHAMMADJAF
OXFORDSHIRE CC,"CHILDRENS, YOUNG PEOPLE AND FAMILIES","	40 THE MOORS",MATERIALS,22/04/2019,000008483006791,19.94,WWW.GAME.CO.UK
OXFORDSHIRE CC,"CHILDRENS, YOUNG PEOPLE AND FAMILIES","	MALTFIELD HOUSE",CATERING PROVISIONS,22/04/2019,000008483006799,2.89,ALDI 49 775
OXFORDSHIRE CC,"CHILDRENS, YOUNG PEOPLE AND FAMILIES","	MALTFIELD HOUSE",CAR LEASING - PRIVATE RENTALS,22/04/2019,000008483006803,50.00,BICESTER CAR & VAN REN
OXFORDSHIRE CC,"CHILDRENS, YOUNG PEOPLE AND FAMILIES",EYNSHAM,CATERING PROVISIONS,22/04/2019,000008483006811,178.11,TESCO STORES 2008
OXFORDSHIRE CC,"CHILDRENS, YOUNG PEOPLE AND FAMILIES","	LOOKED AFTER NORTH",ENTERTAINMENT EXPENSES,22/04/2019,000008483006825,118.00,THORPE PARK /ENT/
OXFORDSHIRE CC,"CHILDRENS, YOUNG PEOPLE AND FAMILIES","	LOOKED AFTER NORTH",ENTERTAINMENT EXPENSES,22/04/2019,000008483006829,3.00,THORPE PARK RESORT
OXFORDSHIRE CC,"CHILDRENS, YOUNG PEOPLE AND FAMILIES","	LOOKED AFTER NORTH",ENTERTAINMENT EXPENSES,22/04/2019,000008483006833,8.80,THORPE PARK RESORT
OXFORDSHIRE CC,"CHILDRENS, YOUNG PEOPLE AND FAMILIES","	40 THE MOORS",CATERING PROVISIONS,22/04/2019,000008483006837,80.53,ASDA GROCERIES ONLINE
OXFORDSHIRE CC,"CHILDRENS, YOUNG PEOPLE AND FAMILIES","	40 THE MOORS",OTHER TRANSPORT ARRANGEMENTS,22/04/2019,000008483006839,42.00,THE OXFORDSHIRE TAXI C
OXFORDSHIRE CC,"CHILDRENS, YOUNG PEOPLE AND FAMILIES",THAME E&A HOME,MATERIALS,22/04/2019,000008483006321,9.34,AMZNMKTPLACE AMAZON.CO
OXFORDSHIRE CC,"CHILDRENS, YOUNG PEOPLE AND FAMILIES","	RESIDENTIAL STRATEGY",CATERING,22/04/2019,000008483006333,1.59,MCDONALDS
OXFORDSHIRE CC,"CHILDRENS, YOUNG PEOPLE AND FAMILIES","	RESIDENTIAL STRATEGY",CATERING PROVISIONS,22/04/2019,000008483006337,3.89,CO-OPERATIVE FOOD
OXFORDSHIRE CC,"CHILDRENS, YOUNG PEOPLE AND FAMILIES","	MALTFIELD HOUSE",HOSPITALITY EXPENSES,22/04/2019,000008483006339,24.15,JS SPORTS BAR
OXFORDSHIRE CC,"CHILDRENS, YOUNG PEOPLE AND FAMILIES","	MALTFIELD HOUSE",ENTERTAINMENT EXPENSES,22/04/2019,000008483006343,25.50,ADVENTURE GOLF (OXFORD
OXFORDSHIRE CC,"CHILDRENS, YOUNG PEOPLE AND FAMILIES","	MALTFIELD HOUSE",CATERING,22/04/2019,000008483006345,46.90,OXY ORIENTAL
OXFORDSHIRE CC,"CHILDRENS, YOUNG PEOPLE AND FAMILIES","	40 THE MOORS",CATERING PROVISIONS,22/04/2019,000008483006841,-1.96,ASDA GROCERIES ONLINE
OXFORDSHIRE CC,CORPORATE CORE,"	COMMUNICATIONS",MATERIALS,22/04/2019,000008483006847,20.82,LINKEDIN 4601684203 LN
OXFORDSHIRE CC,CORPORATE CORE,"	COMMUNICATIONS","PUBLICITY, PROMOTIONS AND ADVERTISEMENT",22/04/2019,000008483006853,500.00,FACEBK  TSVW9L29Z2
OXFORDSHIRE CC,CORPORATE CORE,"	COMMUNICATIONS","PUBLICITY, PROMOTIONS AND ADVERTISEMENT",22/04/2019,000008483006855,31.40,SNAP    SNAP ADS
OXFORDSHIRE CC,CORPORATE CORE,"	COMMUNICATIONS",MATERIALS,22/04/2019,000008483006859,7.99,AMAZON PRIME MZ6KO8S14
OXFORDSHIRE CC,CORPORATE CORE,"	COMMUNICATIONS","PUBLICITY, PROMOTIONS AND ADVERTISEMENT",22/04/2019,000008483006861,31.98,SNAP    SNAP ADS
OXFORDSHIRE CC,CORPORATE CORE,"	COMMUNICATIONS","PUBLICITY, PROMOTIONS AND ADVERTISEMENT",22/04/2019,000008483006863,30.14,SNAP    SNAP ADS
OXFORDSHIRE CC,CORPORATE CORE,"	COMMUNICATIONS","PUBLICITY, PROMOTIONS AND ADVERTISEMENT",22/04/2019,000008483006865,8.75,SNAP    SNAP ADS
OXFORDSHIRE CC,"CHILDRENS, YOUNG PEOPLE AND FAMILIES",THAME E&A HOME,VEHICLE FUEL,22/04/2019,000008483006361,56.66,THAME BP SF CONNECT
OXFORDSHIRE CC,"CHILDRENS, YOUNG PEOPLE AND FAMILIES",WITNEY,CATERING PROVISIONS,22/04/2019,000008483006351,18.55,SAINSBURYS SACAT 0632
OXFORDSHIRE CC,"CHILDRENS, YOUNG PEOPLE AND FAMILIES",THAME E&A HOME,CATERING PROVISIONS,22/04/2019,000008483006365,71.80,ASDA SUPERSTORE
OXFORDSHIRE CC,"CHILDRENS, YOUNG PEOPLE AND FAMILIES","	RESIDENTIAL STRATEGY",CATERING PROVISIONS,22/04/2019,000008483006355,5.90,SAINSBURYS 0642
OXFORDSHIRE CC,"CHILDRENS, YOUNG PEOPLE AND FAMILIES",WITNEY,CATERING PROVISIONS,22/04/2019,000008483006373,16.90,SAINSBURYS SACAT 0632
OXFORDSHIRE CC,"CHILDRENS, YOUNG PEOPLE AND FAMILIES",WITNEY,VEHICLE FUEL,22/04/2019,000008483006377,4.00,TESCO PFS 3418
OXFORDSHIRE CC,"CHILDRENS, YOUNG PEOPLE AND FAMILIES","	NCS","PUBLICITY, PROMOTIONS AND ADVERTISEMENT",22/04/2019,000008483006383,4.59,FACEBK  RBSYFKJGW2
OXFORDSHIRE CC,"CHILDRENS, YOUNG PEOPLE AND FAMILIES","	LOOKED AFTER CITY 1",CATERING PROVISIONS,22/04/2019,000008483006395,14.37,TESCO STORE 2994
OXFORDSHIRE CC,"CHILDRENS, YOUNG PEOPLE AND FAMILIES","	LEAVING CARE NORTH",CLOTHING AND UNIFORMS,22/04/2019,000008483006401,32.50,PRIMARK 440
OXFORDSHIRE CC,SOCIAL AND COMMUNITY SERVICES,NTH INTEGRATD LOC TM,HIRE OF ACCOMMODATION AND FACILITIES,22/04/2019,000008483006405,75.00,HOLIDAY INN EXPRSS
OXFORDSHIRE CC,SOCIAL AND COMMUNITY SERVICES,DIDCOT MOVE-ON HOME,HOSPITALITY EXPENSES,22/04/2019,000008483006437,12.20,KNATCHBULL ARMS
OXFORDSHIRE CC,"CHILDRENS, YOUNG PEOPLE AND FAMILIES",THAME E&A HOME,SUBSCRIPTIONS,22/04/2019,000008483006415,17.20,OXFORD ICE RINK
OXFORDSHIRE CC,"CHILDRENS, YOUNG PEOPLE AND FAMILIES",THAME E&A HOME,OTHER TRANSPORT ARRANGEMENTS,22/04/2019,000008483006421,3.50,OXPENS CAR PARK
OXFORDSHIRE CC,"CHILDRENS, YOUNG PEOPLE AND FAMILIES",THAME E&A HOME,CATERING PROVISIONS,22/04/2019,000008483006423,3.92,OXFORD CONVENIENCE STO
OXFORDSHIRE CC,"CHILDRENS, YOUNG PEOPLE AND FAMILIES",THAME E&A HOME,CATERING PROVISIONS,22/04/2019,000008483006427,7.50,TESCO STORES 4377
OXFORDSHIRE CC,SOCIAL AND COMMUNITY SERVICES,DIDCOT MOVE-ON HOME,CATERING PROVISIONS,22/04/2019,000008483006433,4.20,CO-OP FOOD
OXFORDSHIRE CC,SOCIAL AND COMMUNITY SERVICES,DIDCOT MOVE-ON HOME,CATERING PROVISIONS,22/04/2019,000008483006441,14.45,CO-OP FOOD
OXFORDSHIRE CC,SOCIAL AND COMMUNITY SERVICES,DIDCOT MOVE-ON HOME,CATERING,22/04/2019,000008483006445,8.98,MCDONALDS
OXFORDSHIRE CC,"CHILDRENS, YOUNG PEOPLE AND FAMILIES","	FAMILY SUPPORT S'TH2","BOOKS, DVDS AND CDS",22/04/2019,000008483006455,31.44,AMZN MKTP UK MZ95E22E4
OXFORDSHIRE CC,"CHILDRENS, YOUNG PEOPLE AND FAMILIES",EYNSHAM,HIRED AND CONTRACTED SERVICES,22/04/2019,000008483006469,30.00,PICSOLVE INTERNATIONAL
OXFORDSHIRE CC,"CHILDRENS, YOUNG PEOPLE AND FAMILIES",EYNSHAM,VEHICLE FUEL,22/04/2019,000008483006473,23.70,BP WOODSTOCK F/STN
OXFORDSHIRE CC,"CHILDRENS, YOUNG PEOPLE AND FAMILIES",EYNSHAM,VEHICLE FUEL,22/04/2019,000008483006477,4.00,BP WOODSTOCK F/STN
OXFORDSHIRE CC,"CHILDRENS, YOUNG PEOPLE AND FAMILIES",EYNSHAM,VEHICLE FUEL,22/04/2019,000008483006481,22.46,TESCO PAY AT PUMP 2488
OXFORDSHIRE CC,"CHILDRENS, YOUNG PEOPLE AND FAMILIES",EYNSHAM,VEHICLE FUEL,22/04/2019,000008483006485,18.92,TESCO PAY AT PUMP 2488
OXFORDSHIRE CC,"CHILDRENS, YOUNG PEOPLE AND FAMILIES",EYNSHAM,ENTERTAINMENT EXPENSES,22/04/2019,000008483006489,166.00,THORPE PARK /ENT/
OXFORDSHIRE CC,"CHILDRENS, YOUNG PEOPLE AND FAMILIES",EYNSHAM,ENTERTAINMENT EXPENSES,22/04/2019,000008483006493,5.00,THORPE PARK RESORT
OXFORDSHIRE CC,"CHILDRENS, YOUNG PEOPLE AND FAMILIES",EYNSHAM,ENTERTAINMENT EXPENSES,22/04/2019,000008483006495,12.50,THORPE PARK RESORT
OXFORDSHIRE CC,"CHILDRENS, YOUNG PEOPLE AND FAMILIES",EYNSHAM,ENTERTAINMENT EXPENSES,22/04/2019,000008483006497,17.35,THORPE PARK RESORT
OXFORDSHIRE CC,"CHILDRENS, YOUNG PEOPLE AND FAMILIES",EYNSHAM,ENTERTAINMENT EXPENSES,22/04/2019,000008483006501,37.80,THORPE PARK RESORT
OXFORDSHIRE CC,"CHILDRENS, YOUNG PEOPLE AND FAMILIES",EYNSHAM,ENTERTAINMENT EXPENSES,22/04/2019,000008483006505,28.00,THORPE PARK RESORT
OXFORDSHIRE CC,CORPORATE CORE,"	PERSONNEL","PUBLICITY, PROMOTIONS AND ADVERTISEMENT",22/04/2019,000008483006511,25.00,FACEBK WUCZKJSH72
OXFORDSHIRE CC,"CHILDRENS, YOUNG PEOPLE AND FAMILIES",DIDCOT MOVE-ON HOME,CATERING PROVISIONS,22/04/2019,000008483006517,13.47,ICELAND
OXFORDSHIRE CC,SOCIAL AND COMMUNITY SERVICES,WITNEY MOVE ON HOME,CATERING PROVISIONS,22/04/2019,000008483006521,87.12,SAINSBURYS TO YOU 0632
OXFORDSHIRE CC,"CHILDRENS, YOUNG PEOPLE AND FAMILIES","	40 THE MOORS",OTHER TRANSPORT ARRANGEMENTS,22/04/2019,000008483006533,24.20,SUMUP   TAXI
OXFORDSHIRE CC,SOCIAL AND COMMUNITY SERVICES,WITNEY MOVE ON HOME,VEHICLE FUEL,22/04/2019,000008483006523,1.89,SHELL WITNEY
OXFORDSHIRE CC,SOCIAL AND COMMUNITY SERVICES,DIDCOT MOVE-ON HOME,CATERING PROVISIONS,22/04/2019,000008483006527,14.06,TESCO STORE 2413
OXFORDSHIRE CC,"CHILDRENS, YOUNG PEOPLE AND FAMILIES","	MALTFIELD HOUSE",CATERING,22/04/2019,000008483006629,12.00,MCDONALDS
OXFORDSHIRE CC,"CHILDRENS, YOUNG PEOPLE AND FAMILIES","	40 THE MOORS",CATERING PROVISIONS,22/04/2019,000008483006537,40.46,CO-OPERATIVE FOOD
OXFORDSHIRE CC,"CHILDRENS, YOUNG PEOPLE AND FAMILIES","	ASSESS TEAM CITY","BOOKS, DVDS AND CDS",22/04/2019,000008483006591,28.09,AMZN MKTP UK MZ69I9KS4
OXFORDSHIRE CC,"CHILDRENS, YOUNG PEOPLE AND FAMILIES",THAME E&A HOME,CATERING PROVISIONS,22/04/2019,000008483006599,7.20,SAINSBURYS 2096
OXFORDSHIRE CC,"CHILDRENS, YOUNG PEOPLE AND FAMILIES","	ALTERNATIVES TO CARE",CATERING PROVISIONS,19/04/2019,000008477370341,36.45,TESCO STORE 2124
OXFORDSHIRE CC,"CHILDRENS, YOUNG PEOPLE AND FAMILIES",NTH FAM SUPRT-BCSTR,PAYMENTS TO TRANSPORT OPERATORS,19/04/2019,000008477370345,6.80,WWW.GWR.COM
OXFORDSHIRE CC,"CHILDRENS, YOUNG PEOPLE AND FAMILIES",C&F - TF CONTRIB,PAYMENTS TO TRANSPORT OPERATORS,19/04/2019,000008477370349,6.70,WWW.GWR.COM
OXFORDSHIRE CC,CORPORATE CORE,"	COMMUNICATIONS","PUBLICITY, PROMOTIONS AND ADVERTISEMENT",19/04/2019,000008477370353,29.75,SNAP    SNAP ADS
OXFORDSHIRE CC,SOCIAL AND COMMUNITY SERVICES,CSS BICESTER,MATERIALS,19/04/2019,000008477369953,22.00,POUNDLAND LTD 1505
OXFORDSHIRE CC,SOCIAL AND COMMUNITY SERVICES,CSS - OXFORD,MATERIALS,19/04/2019,000008477369961,12.32,AMZNMKTPLACE AMAZON.CO
OXFORDSHIRE CC,"CHILDRENS, YOUNG PEOPLE AND FAMILIES",THAME E&A HOME,MATERIALS,19/04/2019,000008477369967,1.91,AMZNMKTPLACE
OXFORDSHIRE CC,"CHILDRENS, YOUNG PEOPLE AND FAMILIES","	FAMILY SUPPORT CITY3",CATERING,19/04/2019,000008477369971,22.28,TGI FRIDAYS
OXFORDSHIRE CC,"CHILDRENS, YOUNG PEOPLE AND FAMILIES","	FAMILY SUPPORT CITY3",CATERING,19/04/2019,000008477369975,5.00,JIMMS ICE CREAM CO. LT
OXFORDSHIRE CC,"CHILDRENS, YOUNG PEOPLE AND FAMILIES","	FAMILY SUPPORT CITY3",OTHER TRANSPORT ARRANGEMENTS,19/04/2019,000008477369979,3.00,WEMBLEY PARK
OXFORDSHIRE CC,CORPORATE CORE,BANKING,EDUCATIONAL AND VOCATIONAL TRAINING ,19/04/2019,000008477369987,105.00,OXFORDSHIRE CC PDQ1
OXFORDSHIRE CC,CORPORATE CORE,BANKING,EDUCATIONAL AND VOCATIONAL TRAINING ,19/04/2019,000008477369991,-105.00,OXFORDSHIRE CC MOTO1
OXFORDSHIRE CC,"CHILDRENS, YOUNG PEOPLE AND FAMILIES","	LOOKED AFTER SOUTH",POSTAGE AND DELIVERY,19/04/2019,000008477369995,99.75,POST OFFICE COUNTER
OXFORDSHIRE CC,"CHILDRENS, YOUNG PEOPLE AND FAMILIES","	LOOKED AFTER SOUTH",CATERING,19/04/2019,000008477369999,7.97,MCDONALDS
OXFORDSHIRE CC,SOCIAL AND COMMUNITY SERVICES,CSS BICESTER,CATERING PROVISIONS,19/04/2019,000008477370005,38.40,MARTIN MCCOLL
OXFORDSHIRE CC,"CHILDRENS, YOUNG PEOPLE AND FAMILIES","	LOOKED AFTER CITY 1",MATERIALS,19/04/2019,000008477370011,6.00,HOLLAND & BARRETT
OXFORDSHIRE CC,"CHILDRENS, YOUNG PEOPLE AND FAMILIES","	NCS",PAYMENTS TO TRANSPORT OPERATORS,19/04/2019,000008477370017,110.45,TRAINLINE
OXFORDSHIRE CC,ENVIRONMENT AND ECONOMY,HARD FM,CATERING PROVISIONS,19/04/2019,000008477370023,10.00,SAINSBURYS SACAT 0631
OXFORDSHIRE CC,ENVIRONMENT AND ECONOMY,HARD FM,HARDWARE AND CROCKERY,19/04/2019,000008477370027,91.83,HOMEBASE LTD 158
OXFORDSHIRE CC,ENVIRONMENT AND ECONOMY,HARD FM,HARDWARE AND CROCKERY,19/04/2019,000008477370031,56.64,CITY PLUMBING
OXFORDSHIRE CC,ENVIRONMENT AND ECONOMY,HARD FM,HARDWARE AND CROCKERY,19/04/2019,000008477370037,30.44,SCREWFIX OXFORD
OXFORDSHIRE CC,ENVIRONMENT AND ECONOMY,COUNTY LIBRARY,GENERAL MAINTENANCE,19/04/2019,000008477370039,35.36, WOLSELEY UK
OXFORDSHIRE CC,ENVIRONMENT AND ECONOMY,COUNTY LIBRARY,GENERAL MAINTENANCE,19/04/2019,000008477370043,27.95, WOLSELEY UK
OXFORDSHIRE CC,"CHILDRENS, YOUNG PEOPLE AND FAMILIES","	LEAVING CARE NORTH",OTHER TRANSPORT ARRANGEMENTS,19/04/2019,000008477370053,6.00,OCC ON-STREET PARKING
OXFORDSHIRE CC,"CHILDRENS, YOUNG PEOPLE AND FAMILIES","	LEAVING CARE NORTH",MATERIALS,19/04/2019,000008477370057,100.00,J D SPORTS FASHION
OXFORDSHIRE CC,"CHILDRENS, YOUNG PEOPLE AND FAMILIES","	LOOKED AFTER NORTH",MATERIALS,19/04/2019,000008477370059,-97.48,AMZ POWERMEI
OXFORDSHIRE CC,SOCIAL AND COMMUNITY SERVICES,CSS - OXFORD,MATERIALS,19/04/2019,000008477370063,19.96,FREELANCE FABRICS
OXFORDSHIRE CC,SOCIAL AND COMMUNITY SERVICES,CSS - OXFORD,CATERING PROVISIONS,19/04/2019,000008477370065,1.79,ALDI STORES 775-142
OXFORDSHIRE CC,"CHILDRENS, YOUNG PEOPLE AND FAMILIES","	LOOKED AFTER CITY 2",CATERING,19/04/2019,000008477370071,1.99,MCDONALDS
OXFORDSHIRE CC,SOCIAL AND COMMUNITY SERVICES,UASC 16&17,CLOTHING AND UNIFORMS,19/04/2019,000008477370077,57.00,PRIMARK 440
OXFORDSHIRE CC,"CHILDRENS, YOUNG PEOPLE AND FAMILIES",HOUSE PROJECT,SUBSCRIPTIONS,19/04/2019,000008477370083,65.90,AMFBOWLING.CO.UK
OXFORDSHIRE CC,"CHILDRENS, YOUNG PEOPLE AND FAMILIES","	RIVERSIDE CENTRE",CATERING PROVISIONS,19/04/2019,000008477370087,10.68,TESCO STORES 4377
OXFORDSHIRE CC,"CHILDRENS, YOUNG PEOPLE AND FAMILIES","	RIVERSIDE CENTRE",MATERIALS,19/04/2019,000008477370093,6.87,GO OUTDOORS
OXFORDSHIRE CC,"CHILDRENS, YOUNG PEOPLE AND FAMILIES","	FAMILY SUPPORT S'TH2",PAYMENTS TO TRANSPORT OPERATORS,19/04/2019,000008477370117,33.60,WWW.GWR.COM
OXFORDSHIRE CC,"CHILDRENS, YOUNG PEOPLE AND FAMILIES","	FAMILY SUPPORT S'TH2",PAYMENTS TO TRANSPORT OPERATORS,19/04/2019,000008477370121,97.45,WWW.GWR.COM
OXFORDSHIRE CC,"CHILDRENS, YOUNG PEOPLE AND FAMILIES",STH EARLY HELP-DDCOT,POSTAGE AND DELIVERY,19/04/2019,000008477370123,68.25,POST OFFICE COUNTER
OXFORDSHIRE CC,SOCIAL AND COMMUNITY SERVICES,CSS WALLINGFORD,MATERIALS,19/04/2019,000008477370127,10.56,KP STATIONERS
OXFORDSHIRE CC,"CHILDRENS, YOUNG PEOPLE AND FAMILIES",EYNSHAM,MATERIALS,19/04/2019,000008477370131,115.95,DECATHLON UK LTD
OXFORDSHIRE CC,"CHILDRENS, YOUNG PEOPLE AND FAMILIES",EYNSHAM,MATERIALS,19/04/2019,000008477370135,19.98,SPORTSDIRECT.COM
OXFORDSHIRE CC,"CHILDRENS, YOUNG PEOPLE AND FAMILIES",NORTH FSS- BANBURY,REGISTRATION AND INSPECTION FEES,19/04/2019,000008477370147,2.26,PAYPAL  ROYAL MAIL
OXFORDSHIRE CC,"CHILDRENS, YOUNG PEOPLE AND FAMILIES",NORTH FSS- BANBURY,REGISTRATION AND INSPECTION FEES,19/04/2019,000008477370151,2.26,PAYPAL  ROYAL MAIL
OXFORDSHIRE CC,"CHILDRENS, YOUNG PEOPLE AND FAMILIES",THAME E&A HOME,CATERING PROVISIONS,19/04/2019,000008477370155,19.48,WAITROSE 206
OXFORDSHIRE CC,CORPORATE CORE,"	PERSONNEL","PUBLICITY, PROMOTIONS AND ADVERTISEMENT",19/04/2019,000008477370161,17.00,FACEBK MFJKNK6H72
OXFORDSHIRE CC,"CHILDRENS, YOUNG PEOPLE AND FAMILIES","	MUSIC UNALLOCABLE",VEHICLE FUEL,19/04/2019,000008477370167,12.15,TESCO PAYAT PUMP 3700
OXFORDSHIRE CC,SOCIAL AND COMMUNITY SERVICES,DIDCOT MOVE-ON HOME,CATERING PROVISIONS,19/04/2019,000008477370171,10.36,ICELAND
OXFORDSHIRE CC,"CHILDRENS, YOUNG PEOPLE AND FAMILIES","	MALTFIELD HOUSE",CLOTHING AND UNIFORMS,19/04/2019,000008477370213,140.60,PRIMARK 440
OXFORDSHIRE CC,"CHILDRENS, YOUNG PEOPLE AND FAMILIES","	MALTFIELD HOUSE",CLOTHING AND UNIFORMS,19/04/2019,000008477370217,4.50,PRIMARK 440
OXFORDSHIRE CC,"CHILDRENS, YOUNG PEOPLE AND FAMILIES",THAME E&A HOME,MATERIALS,19/04/2019,000008477370221,17.50,JONATHAN DRAYCOTT
OXFORDSHIRE CC,"CHILDRENS, YOUNG PEOPLE AND FAMILIES",THAME E&A HOME,CATERING PROVISIONS,19/04/2019,000008477370225,15.30,SAINSBURYS SACAT 2067
OXFORDSHIRE CC,"CHILDRENS, YOUNG PEOPLE AND FAMILIES","	LOOKED AFTER CITY 2",ENTERTAINMENT EXPENSES,19/04/2019,000008477370231,16.45,THE PARTYMAN CO
OXFORDSHIRE CC,SOCIAL AND COMMUNITY SERVICES,"	CENTRAL LIBRARY",MATERIALS,19/04/2019,000008477370235,7.60,EXTRA ELECTRICAL HARD
OXFORDSHIRE CC,"CHILDRENS, YOUNG PEOPLE AND FAMILIES","	LEAVING CARE NORTH",OTHER TRANSPORT ARRANGEMENTS,19/04/2019,000008477370239,1.70,CHERWELL DC CAR PARK
OXFORDSHIRE CC,"CHILDRENS, YOUNG PEOPLE AND FAMILIES","	LEAVING CARE NORTH",OTHER TRANSPORT ARRANGEMENTS,19/04/2019,000008477370243,67.90,WWW.STORAGEBASE.COM
OXFORDSHIRE CC,"CHILDRENS, YOUNG PEOPLE AND FAMILIES",CNTL EARLY HELP-BRTN,PAYMENTS TO TRANSPORT OPERATORS,19/04/2019,000008477370251,27.83,TRAINLINE
OXFORDSHIRE CC,"CHILDRENS, YOUNG PEOPLE AND FAMILIES",CNTL EARLY HELP-BRTN,SUBSCRIPTIONS,19/04/2019,000008477370255,55.67,AMFBOWLING.CO.UK
OXFORDSHIRE CC,"CHILDRENS, YOUNG PEOPLE AND FAMILIES","	MALTFIELD HOUSE",CATERING PROVISIONS,19/04/2019,000008477370261,27.35,WM MORRISONS STORE
OXFORDSHIRE CC,ENVIRONMENT AND ECONOMY,"	TVERC",PAYMENTS TO VOLUNTARY BODIES,19/04/2019,000008477370277,75.00,PAYPAL  NFBR
OXFORDSHIRE CC,"CHILDRENS, YOUNG PEOPLE AND FAMILIES","	LOOKED AFTER NORTH",HOSPITALITY EXPENSES,19/04/2019,000008477370283,16.80,PINTO LOUNGE
OXFORDSHIRE CC,"CHILDRENS, YOUNG PEOPLE AND FAMILIES","	LOOKED AFTER SOUTH",VEHICLE FUEL,19/04/2019,000008477370289,62.43,SHOW MEADOW SF CONNECT
OXFORDSHIRE CC,SOCIAL AND COMMUNITY SERVICES,"	EMERGENCY DUTY TEAM",HIRE OF ACCOMMODATION AND FACILITIES,19/04/2019,000008477370303,95.00,HOLIDAY INN EXPRSS
OXFORDSHIRE CC,CORPORATE CORE,,"SUPPLIES, STATIONERY AND MATERIALS",19/04/2019,000008477370309,12.24,LYRECO UK LTD
OXFORDSHIRE CC,"CHILDRENS, YOUNG PEOPLE AND FAMILIES","	LOOKED AFTER NORTH",PAYMENTS TO TRANSPORT OPERATORS,19/04/2019,000008477370315,5.50,BICESTER NORTH SSTP
OXFORDSHIRE CC,"CHILDRENS, YOUNG PEOPLE AND FAMILIES","	LOOKED AFTER NORTH",PAYMENTS TO TRANSPORT OPERATORS,19/04/2019,000008477370319,37.20,BICESTER NORTH SSTP
OXFORDSHIRE CC,"CHILDRENS, YOUNG PEOPLE AND FAMILIES","	LOOKED AFTER NORTH",CATERING PROVISIONS,19/04/2019,000008477370323,7.24,DELICE DE FRANCE
OXFORDSHIRE CC,ENVIRONMENT AND ECONOMY,"	SAMUELSON HOUSE",MATERIALS,19/04/2019,000008477370325,2.99,ROBERT DYAS HOLDNG LTD
OXFORDSHIRE CC,ENVIRONMENT AND ECONOMY,"	SAMUELSON HOUSE",MATERIALS,19/04/2019,000008477370329,2.00,POUNDLAND LTD 1230
OXFORDSHIRE CC,"CHILDRENS, YOUNG PEOPLE AND FAMILIES",THAME E&A HOME,CATERING PROVISIONS,18/04/2019,000008472769995,5.05,ASDA SUPERSTORE
OXFORDSHIRE CC,CORPORATE CORE,BANKING,EDUCATIONAL AND VOCATIONAL TRAINING ,18/04/2019,000008472770001,55.05,OXFORDSHIRE CC PDQ1
OXFORDSHIRE CC,CORPORATE CORE,BANKING,EDUCATIONAL AND VOCATIONAL TRAINING ,18/04/2019,000008472770005,1.00,OXFORDSHIRE CC PDQ1
OXFORDSHIRE CC,CORPORATE CORE,BANKING,EDUCATIONAL AND VOCATIONAL TRAINING ,18/04/2019,000008472770019,-55.05,OXFORDSHIRE CC MOTO1
OXFORDSHIRE CC,CORPORATE CORE,BANKING,EDUCATIONAL AND VOCATIONAL TRAINING ,18/04/2019,000008472770009,1.00,OXFORDSHIRE CC PDQ1
OXFORDSHIRE CC,CORPORATE CORE,BANKING,EDUCATIONAL AND VOCATIONAL TRAINING ,18/04/2019,000008472770013,32.00,OXFORDSHIRE CC PDQ1
OXFORDSHIRE CC,CORPORATE CORE,BANKING,EDUCATIONAL AND VOCATIONAL TRAINING ,18/04/2019,000008472770015,1.00,OXFORDSHIRE CC PDQ1
OXFORDSHIRE CC,CORPORATE CORE,BANKING,EDUCATIONAL AND VOCATIONAL TRAINING ,18/04/2019,000008472770023,-1.00,OXFORDSHIRE CC MOTO1
OXFORDSHIRE CC,CORPORATE CORE,BANKING,EDUCATIONAL AND VOCATIONAL TRAINING ,18/04/2019,000008472770027,-1.00,OXFORDSHIRE CC MOTO1
OXFORDSHIRE CC,CORPORATE CORE,BANKING,EDUCATIONAL AND VOCATIONAL TRAINING ,18/04/2019,000008472770033,-32.00,OXFORDSHIRE CC MOTO1
OXFORDSHIRE CC,SOCIAL AND COMMUNITY SERVICES,STH INTEGRATD LOC TM,HIRE OF ACCOMMODATION AND FACILITIES,18/04/2019,000008472770045,78.00,HOLIDAY INNS
OXFORDSHIRE CC,CORPORATE CORE,BANKING,EDUCATIONAL AND VOCATIONAL TRAINING ,18/04/2019,000008472770037,-1.00,OXFORDSHIRE CC MOTO1
OXFORDSHIRE CC,ENVIRONMENT AND ECONOMY,"	LEP",MANAGEMENT CONSULTANT FEES,18/04/2019,000008472770051,40.80,CONTENT CALENDR LIMITE
OXFORDSHIRE CC,ENVIRONMENT AND ECONOMY,HARD FM,HARDWARE AND CROCKERY,18/04/2019,000008472770057,259.20,CITY ELECTRICAL FA
OXFORDSHIRE CC,ENVIRONMENT AND ECONOMY,HARD FM,GENERAL MAINTENANCE,18/04/2019,000008472770061,9.83, WOLSELEY UK
OXFORDSHIRE CC,ENVIRONMENT AND ECONOMY,HARD FM,HARDWARE AND CROCKERY,18/04/2019,000008472770069,22.00,WICKES OXFORD
OXFORDSHIRE CC,ENVIRONMENT AND ECONOMY,HARD FM,HARDWARE AND CROCKERY,18/04/2019,000008472770071,20.00,WICKES OXFORD
OXFORDSHIRE CC,ENVIRONMENT AND ECONOMY,HARD FM,OTHER TRANSPORT ARRANGEMENTS,18/04/2019,000008472770077,2.60,NCP BANBURY MARLBOROUG
OXFORDSHIRE CC,ENVIRONMENT AND ECONOMY,HARD FM,HARDWARE AND CROCKERY,18/04/2019,000008472770083,33.50,WICKES BANBURY
OXFORDSHIRE CC,ENVIRONMENT AND ECONOMY,HARD FM,HARDWARE AND CROCKERY,18/04/2019,000008472770091,34.70,CITY PLUMBING
OXFORDSHIRE CC,ENVIRONMENT AND ECONOMY,HARD FM,HARDWARE AND CROCKERY,18/04/2019,000008472770093,8.98,SCREWFIX ABINGDON
OXFORDSHIRE CC,ENVIRONMENT AND ECONOMY,HARD FM,EQUIPMENT,18/04/2019,000008472770099,39.17,WILTS ELECTRICAL
OXFORDSHIRE CC,"CHILDRENS, YOUNG PEOPLE AND FAMILIES",THAME E&A HOME,CATERING,18/04/2019,000008472770103,9.10,SUBWAY
OXFORDSHIRE CC,"CHILDRENS, YOUNG PEOPLE AND FAMILIES",CSS - ABINGDON,CATERING PROVISIONS,18/04/2019,000008472770107,22.00,ER GOFF
OXFORDSHIRE CC,"CHILDRENS, YOUNG PEOPLE AND FAMILIES",CSS - ABINGDON,LAUNDRY AND DRY CLEANING,18/04/2019,000008472770113,24.00,TIMPSON LTD
OXFORDSHIRE CC,"CHILDRENS, YOUNG PEOPLE AND FAMILIES",CSS - ABINGDON,CATERING PROVISIONS,18/04/2019,000008472770121,21.66,TESCO STORES 2008
OXFORDSHIRE CC,SOCIAL AND COMMUNITY SERVICES,UASC 16&17,OTHER TRANSPORT ARRANGEMENTS,18/04/2019,000008472770131,4.00,OCC ON-STREET PARKING
OXFORDSHIRE CC,SOCIAL AND COMMUNITY SERVICES,UASC 16&17,OTHER TRANSPORT ARRANGEMENTS,18/04/2019,000008472770137,4.00,OCC ON-STREET PARKING
OXFORDSHIRE CC,SOCIAL AND COMMUNITY SERVICES,SAFEGUARDING-OPERATIONAL MANAGERS,PAYMENTS TO TRANSPORT OPERATORS,18/04/2019,000008472770157,62.30,WWW.GWR.COM
OXFORDSHIRE CC,SOCIAL AND COMMUNITY SERVICES,UASC 16&17,CATERING PROVISIONS,18/04/2019,000008472770141,15.39,ASDA STORES 4920
OXFORDSHIRE CC,SOCIAL AND COMMUNITY SERVICES,UASC 16&17,CATERING PROVISIONS,18/04/2019,000008472770145,3.50,TESCO STORES 4480
OXFORDSHIRE CC,SOCIAL AND COMMUNITY SERVICES,UASC 16&17,CLOTHING AND UNIFORMS,18/04/2019,000008472770149,49.98,ZARA OXFORD 12318
OXFORDSHIRE CC,SOCIAL AND COMMUNITY SERVICES,UASC 16&17,MATERIALS,18/04/2019,000008472770153,46.95,DECATHLON UK LTD
OXFORDSHIRE CC,"CHILDRENS, YOUNG PEOPLE AND FAMILIES",HOUSE PROJECT,MANAGEMENT CONSULTANT FEES,18/04/2019,000008472770165,154.50,TVLICENSING.CO.UK
OXFORDSHIRE CC,"CHILDRENS, YOUNG PEOPLE AND FAMILIES","	FAMILY SUPPORT S'TH2",HIRE OF ACCOMMODATION AND FACILITIES,18/04/2019,000008472770173,70.00,THE GEORGE HOTEL
OXFORDSHIRE CC,"CHILDRENS, YOUNG PEOPLE AND FAMILIES",STH EARLY HELP-DDCOT,REGISTRATION AND INSPECTION FEES,18/04/2019,000008472770185,11.00,OCC REGISTRARS (M)
OXFORDSHIRE CC,"CHILDRENS, YOUNG PEOPLE AND FAMILIES","	LOOKED AFTER NORTH",HIRE OF ACCOMMODATION AND FACILITIES,18/04/2019,000008472770193,91.00,B.COM 44753-NF7UZ IBIS
OXFORDSHIRE CC,"CHILDRENS, YOUNG PEOPLE AND FAMILIES","	LOOKED AFTER NORTH",HIRE OF ACCOMMODATION AND FACILITIES,18/04/2019,000008472770199,106.00,B.COM 44753-90VHD IBIS
OXFORDSHIRE CC,ENTERPRISEVC,OTFC TEAM,CATERING,18/04/2019,000008472770203,5.95,BLENHEIM PALACE(SEARCY
OXFORDSHIRE CC,"CHILDRENS, YOUNG PEOPLE AND FAMILIES",EYNSHAM,CATERING PROVISIONS,18/04/2019,000008472770211,11.64,SPAR EYNSHAM
OXFORDSHIRE CC,"CHILDRENS, YOUNG PEOPLE AND FAMILIES",THAME E&A HOME,HARDWARE AND CROCKERY,18/04/2019,000008472770215,8.97,MILLETS FARM SHOP
OXFORDSHIRE CC,"CHILDRENS, YOUNG PEOPLE AND FAMILIES",THAME E&A HOME,CATERING,18/04/2019,000008472770219,3.30,COSTA COFFEE 43037200
OXFORDSHIRE CC,"CHILDRENS, YOUNG PEOPLE AND FAMILIES",THAME E&A HOME,CATERING,18/04/2019,000008472770223,7.05,SUMUP   THE BARNS CAFE
OXFORDSHIRE CC,"CHILDRENS, YOUNG PEOPLE AND FAMILIES",THAME E&A HOME,CATERING,18/04/2019,000008472770229,3.67,MCDONALDS
OXFORDSHIRE CC,"CHILDRENS, YOUNG PEOPLE AND FAMILIES","	LOOKED AFTER CITY 1",MATERIALS,18/04/2019,000008472770241,300.00,SOUTHERN ELECTRIC
OXFORDSHIRE CC,"CHILDRENS, YOUNG PEOPLE AND FAMILIES",THAME E&A HOME,"BOOKS, DVDS AND CDS",18/04/2019,000008472770247,25.48,THE BOOK HOUSE (THAME)
OXFORDSHIRE CC,SOCIAL AND COMMUNITY SERVICES,DIDCOT MOVE-ON HOME,CATERING PROVISIONS,18/04/2019,000008472770253,26.40,SAINSBURYS 2067
OXFORDSHIRE CC,ENVIRONMENT AND ECONOMY,"	ROW MAINT",HARDWARE AND CROCKERY,18/04/2019,000008472770269,45.43,OXON FASTENING SYSTEMS
OXFORDSHIRE CC,ENVIRONMENT AND ECONOMY,"	MINERALS & WASTE",PAYMENTS TO TRANSPORT OPERATORS,18/04/2019,000008472770277,168.80,WWW.GWR.COM
OXFORDSHIRE CC,SOCIAL AND COMMUNITY SERVICES,ICS ADMIN,PAYMENTS TO TRANSPORT OPERATORS,18/04/2019,000008472770283,6.80,GWR OXFORD TO
OXFORDSHIRE CC,"CHILDRENS, YOUNG PEOPLE AND FAMILIES","	MUSIC UNALLOCABLE",OTHER TRANSPORT ARRANGEMENTS,18/04/2019,000008472770291,13.14,PARCELFORCE
OXFORDSHIRE CC,SOCIAL AND COMMUNITY SERVICES,CSS - OXFORD,CATERING PROVISIONS,18/04/2019,000008472770297,389.49,TESCO STORE 2994
OXFORDSHIRE CC,SOCIAL AND COMMUNITY SERVICES,CSS - OXFORD,CATERING PROVISIONS,18/04/2019,000008472770301,-6.00,TESCO STORE 2994
OXFORDSHIRE CC,"CHILDRENS, YOUNG PEOPLE AND FAMILIES","	ASSESS TEAM CITY","BOOKS, DVDS AND CDS",18/04/2019,000008472770309,87.34,AMZN MKTP UK MZ91X36A4
OXFORDSHIRE CC,"CHILDRENS, YOUNG PEOPLE AND FAMILIES","	LEAVING CARE CITY 2",MATERIALS,18/04/2019,000008472770325,82.98,ARGOS LTD
OXFORDSHIRE CC,"CHILDRENS, YOUNG PEOPLE AND FAMILIES","	LEAVING CARE CITY 2",CATERING PROVISIONS,18/04/2019,000008472770329,33.25,ALDI 77 775
OXFORDSHIRE CC,"CHILDRENS, YOUNG PEOPLE AND FAMILIES","	LEAVING CARE CITY 2",CATERING,18/04/2019,000008472770333,11.37,MCDONALDS
OXFORDSHIRE CC,"CHILDRENS, YOUNG PEOPLE AND FAMILIES","	MALTFIELD HOUSE",OTHER TRANSPORT ARRANGEMENTS,18/04/2019,000008472770337,4.00,WESTGATE OXFORD CAR PA
OXFORDSHIRE CC,"CHILDRENS, YOUNG PEOPLE AND FAMILIES","	MALTFIELD HOUSE",DRUGS AND MEDICAL SUPPLIES,18/04/2019,000008472770339,24.03,SUPERDRUG STORES PLC
OXFORDSHIRE CC,"CHILDRENS, YOUNG PEOPLE AND FAMILIES",THAME E&A HOME,CATERING PROVISIONS,18/04/2019,000008472770341,-3.85,SAINSBURYS TO YOU 0600
OXFORDSHIRE CC,SOCIAL AND COMMUNITY SERVICES,LEAVING CARE NORTH,CATERING PROVISIONS,18/04/2019,000008472770353,102.00,WM MORRISONS STORE
OXFORDSHIRE CC,SOCIAL AND COMMUNITY SERVICES,LEAVING CARE NORTH,CATERING,18/04/2019,000008472770359,6.30,MCDONALDS
OXFORDSHIRE CC,"CHILDRENS, YOUNG PEOPLE AND FAMILIES","	MALTFIELD HOUSE",CATERING,18/04/2019,000008472770365,6.20,COSTA COFFEE 43039930
OXFORDSHIRE CC,"CHILDRENS, YOUNG PEOPLE AND FAMILIES","	MALTFIELD HOUSE",CATERING,18/04/2019,000008472770369,49.50,COSMO
OXFORDSHIRE CC,SOCIAL AND COMMUNITY SERVICES,CSS WITNEY,MATERIALS,18/04/2019,000008472770375,15.00,POUNDLAND LTD
OXFORDSHIRE CC,"CHILDRENS, YOUNG PEOPLE AND FAMILIES","	FAM SUPP CITY 1",CATERING,18/04/2019,000008472770389,18.00,THIRSTY MEEPLES
OXFORDSHIRE CC,"CHILDRENS, YOUNG PEOPLE AND FAMILIES","	40 THE MOORS",OTHER TRANSPORT ARRANGEMENTS,18/04/2019,000008472770399,37.00,SUMUP   COWLEY CHAUFFE
OXFORDSHIRE CC,ENVIRONMENT AND ECONOMY,READER SERV ADULTS,PAYMENTS TO TRANSPORT OPERATORS,18/04/2019,000008472770405,74.30,WWW.GWR.COM
OXFORDSHIRE CC,"CHILDRENS, YOUNG PEOPLE AND FAMILIES","	LOOKED AFTER SOUTH",CATERING,18/04/2019,000008472770415,7.95,THROWING BUNS
OXFORDSHIRE CC,"CHILDRENS, YOUNG PEOPLE AND FAMILIES","	MALTFIELD HOUSE",CLOTHING AND UNIFORMS,18/04/2019,000008472770421,12.05,NEXT RETAIL LTD
OXFORDSHIRE CC,ENVIRONMENT AND ECONOMY,"	MUSEUM DEV OFFICER",PAYMENTS TO TRANSPORT OPERATORS,18/04/2019,000008472770443,70.50,OXFORD PARKWAY SSTP
OXFORDSHIRE CC,"CHILDRENS, YOUNG PEOPLE AND FAMILIES","	MALTFIELD HOUSE",CATERING,18/04/2019,000008472770427,9.99,MCDONALDS
OXFORDSHIRE CC,"CHILDRENS, YOUNG PEOPLE AND FAMILIES","	MALTFIELD HOUSE",MATERIALS,18/04/2019,000008472770431,55.00,J D SPORTS FASHION
OXFORDSHIRE CC,ENVIRONMENT AND ECONOMY,"	MUSEUM DEV OFFICER",OTHER TRANSPORT ARRANGEMENTS,18/04/2019,000008472770437,4.00,3C_ OXFORDSHIRE COUNTY
OXFORDSHIRE CC,"CHILDRENS, YOUNG PEOPLE AND FAMILIES","	LEAVING CARE NORTH",FUNERAL DIRECTOR SERVICES,18/04/2019,000008472770447,916.00,FUNERAL SERVICES
OXFORDSHIRE CC,"CHILDRENS, YOUNG PEOPLE AND FAMILIES",CNTL ERLY HELP-BBLEY,PAYMENT TO GOVERNMENT DEPARTMENTS,18/04/2019,000008472770455,40.00,OXFORD CITY COUNCIL
OXFORDSHIRE CC,"CHILDRENS, YOUNG PEOPLE AND FAMILIES","	LOOKED AFTER NORTH",CATERING PROVISIONS,18/04/2019,000008472770463,5.69,MARTIN MCCOLL
OXFORDSHIRE CC,"CHILDRENS, YOUNG PEOPLE AND FAMILIES","	40 THE MOORS",ENTERTAINMENT EXPENSES,18/04/2019,000008472770469,150.00,SWINDON KARTING
OXFORDSHIRE CC,"CHILDRENS, YOUNG PEOPLE AND FAMILIES","	40 THE MOORS",CATERING PROVISIONS,18/04/2019,000008472770473,13.77,CO-OPERATIVE FOOD
OXFORDSHIRE CC,CORPORATE CORE,,"SUPPLIES, STATIONERY AND MATERIALS",18/04/2019,000008472770479,6.94,LYRECO UK LTD
OXFORDSHIRE CC,"CHILDRENS, YOUNG PEOPLE AND FAMILIES",FAMILY SUPPORT 2,PAYMENT TO GOVERNMENT DEPARTMENTS,18/04/2019,000008472770505,167.87,OXFORD CITY COUNCIL
OXFORDSHIRE CC,CORPORATE CORE,,"SUPPLIES, STATIONERY AND MATERIALS",18/04/2019,000008472770485,373.32,LYRECO UK LTD
OXFORDSHIRE CC,CORPORATE CORE,,"SUPPLIES, STATIONERY AND MATERIALS",18/04/2019,000008472770489,36.10,LYRECO UK LTD
OXFORDSHIRE CC,"CHILDRENS, YOUNG PEOPLE AND FAMILIES",UASC 16&17,OTHER EXPENSES,18/04/2019,000008472770495,31.30,WILKO RETAIL LIMIT
OXFORDSHIRE CC,"CHILDRENS, YOUNG PEOPLE AND FAMILIES","	LOOKED AFTER CITY 1",MATERIALS,18/04/2019,000008472770497,16.00,WILKO RETAIL LIMIT
OXFORDSHIRE CC,"CHILDRENS, YOUNG PEOPLE AND FAMILIES",UASC 16&17,OTHER EXPENSES,18/04/2019,000008472770501,12.00,WILKO RETAIL LIMIT
OXFORDSHIRE CC,"CHILDRENS, YOUNG PEOPLE AND FAMILIES","	LOOKED AFTER SOUTH",ENTERTAINMENT EXPENSES,18/04/2019,000008472770515,44.94,SNOZONE
OXFORDSHIRE CC,"CHILDRENS, YOUNG PEOPLE AND FAMILIES","	LOOKED AFTER SOUTH",CLOTHING AND UNIFORMS,18/04/2019,000008472770511,13.99,DARE2BE
OXFORDSHIRE CC,CORPORATE CORE,SNR LEADERSHIP TEAM,EDUCATIONAL AND VOCATIONAL TRAINING ,18/04/2019,000008472770519,945.60,ASPIRE EUROPE LTD
OXFORDSHIRE CC,CORPORATE CORE,"	COMMUNICATIONS","PUBLICITY, PROMOTIONS AND ADVERTISEMENT",18/04/2019,000008472770525,25.64,SNAP    SNAP ADS
OXFORDSHIRE CC,SOCIAL AND COMMUNITY SERVICES,CSS BICESTER,CATERING PROVISIONS,18/04/2019,000008472769927,17.70,SAINSBURYS SACAT (2243
OXFORDSHIRE CC,SOCIAL AND COMMUNITY SERVICES,CSS - BANBURY,CATERING PROVISIONS,18/04/2019,000008472769933,43.50,TESCO STORE 2064
OXFORDSHIRE CC,SOCIAL AND COMMUNITY SERVICES,CSS - BANBURY,CATERING PROVISIONS,18/04/2019,000008472769941,14.50,TESCO STORE 2064
OXFORDSHIRE CC,"CHILDRENS, YOUNG PEOPLE AND FAMILIES",KINGFISHER,CATERING,18/04/2019,000008472769951,11.70,MCDONALDS
OXFORDSHIRE CC,"CHILDRENS, YOUNG PEOPLE AND FAMILIES","	LOOKED AFTER CITY 1",MATERIALS,18/04/2019,000008472769961,224.04,SOUTHERN ELECTRIC
OXFORDSHIRE CC,SOCIAL AND COMMUNITY SERVICES,CSS - OXFORD,FURNITURE,18/04/2019,000008472769967,346.80,OXFORD OFFICE FURNITUR
OXFORDSHIRE CC,"CHILDRENS, YOUNG PEOPLE AND FAMILIES",THAME E&A HOME,CATERING PROVISIONS,18/04/2019,000008472769973,170.80,SAINSBURYS SACAT 0600
OXFORDSHIRE CC,"CHILDRENS, YOUNG PEOPLE AND FAMILIES",WITNEY,CATERING PROVISIONS,18/04/2019,000008472769977,18.70,SAINSBURYS 0632
OXFORDSHIRE CC,"CHILDRENS, YOUNG PEOPLE AND FAMILIES",THAME E&A HOME,CATERING PROVISIONS,18/04/2019,000008472769981,97.77,ASDA SUPERSTORE
OXFORDSHIRE CC,"CHILDRENS, YOUNG PEOPLE AND FAMILIES",THAME E&A HOME,CATERING PROVISIONS,18/04/2019,000008472769989,28.93,ASDA SUPERSTORE
OXFORDSHIRE CC,"CHILDRENS, YOUNG PEOPLE AND FAMILIES","	LEAVING CARE SOUTH",CLOTHING AND UNIFORMS,17/04/2019,000008467639675,10.80,WWW.SIMPLYBE.CO.UK
OXFORDSHIRE CC,"CHILDRENS, YOUNG PEOPLE AND FAMILIES","	LOOKED AFTER CITY 2",PAYMENT TO GOVERNMENT DEPARTMENTS,17/04/2019,000008467639683,-31.50,GEN REGISTER OFFICE
OXFORDSHIRE CC,"CHILDRENS, YOUNG PEOPLE AND FAMILIES","	ASSESS TEAM CITY",HIRE OF ACCOMMODATION AND FACILITIES,17/04/2019,000008467639689,55.00,ALMOND TREE HOTEL
OXFORDSHIRE CC,"CHILDRENS, YOUNG PEOPLE AND FAMILIES","	LOOKED AFTER SOUTH",VEHICLE FUEL,17/04/2019,000008467639699,37.87,ESSO WOOTTON BASSET
OXFORDSHIRE CC,ENTERPRISEVC,,CAR LEASING - PRIVATE RENTALS,17/04/2019,000008467639753,26.16,ENTERPRISE RENT-A-CAR
OXFORDSHIRE CC,"CHILDRENS, YOUNG PEOPLE AND FAMILIES","	40 THE MOORS",CATERING PROVISIONS,17/04/2019,000008467639707,155.41,SAINSBURYS (2243)
OXFORDSHIRE CC,CORPORATE CORE,,"SUPPLIES, STATIONERY AND MATERIALS",17/04/2019,000008467639715,-31.97,LYRECO UK LTD
OXFORDSHIRE CC,"CHILDRENS, YOUNG PEOPLE AND FAMILIES",THAME E&A HOME,VEHICLE FUEL,17/04/2019,000008467639725,1.98,THAME BP SF CONNECT
OXFORDSHIRE CC,"CHILDRENS, YOUNG PEOPLE AND FAMILIES",FAMILY SUPPORT 2,PAYMENTS TO TRANSPORT OPERATORS,17/04/2019,000008467639739,6.80,WWW.GWR.COM
OXFORDSHIRE CC,ENTERPRISEVC,,CAR LEASING - PRIVATE RENTALS,17/04/2019,000008467639747,43.18,ENTERPRISE RENT-A-CAR
OXFORDSHIRE CC,ENTERPRISEVC,,CAR LEASING - PRIVATE RENTALS,17/04/2019,000008467639757,67.08,ENTERPRISE RENT-A-CAR
OXFORDSHIRE CC,ENTERPRISEVC,,CAR LEASING - PRIVATE RENTALS,17/04/2019,000008467639763,411.60,ENTERPRISE RENT-A-CAR
OXFORDSHIRE CC,ENTERPRISEVC,,CAR LEASING - PRIVATE RENTALS,17/04/2019,000008467639769,42.96,ENTERPRISE RENT-A-CAR
OXFORDSHIRE CC,ENTERPRISEVC,,CAR LEASING - PRIVATE RENTALS,17/04/2019,000008467639773,65.02,ENTERPRISE RENT-A-CAR
OXFORDSHIRE CC,ENTERPRISEVC,,CAR LEASING - PRIVATE RENTALS,17/04/2019,000008467639779,415.97,ENTERPRISE RENT-A-CAR
OXFORDSHIRE CC,ENTERPRISEVC,,CAR LEASING - PRIVATE RENTALS,17/04/2019,000008467639783,74.08,ENTERPRISE RENT-A-CAR
OXFORDSHIRE CC,ENTERPRISEVC,,CAR LEASING - PRIVATE RENTALS,17/04/2019,000008467639787,411.60,ENTERPRISE RENT-A-CAR
OXFORDSHIRE CC,ENTERPRISEVC,,CAR LEASING - PRIVATE RENTALS,17/04/2019,000008467639793,415.97,ENTERPRISE RENT-A-CAR
OXFORDSHIRE CC,ENTERPRISEVC,,CAR LEASING - PRIVATE RENTALS,17/04/2019,000008467639797,411.60,ENTERPRISE RENT-A-CAR
OXFORDSHIRE CC,ENTERPRISEVC,,CAR LEASING - PRIVATE RENTALS,17/04/2019,000008467639803,415.97,ENTERPRISE RENT-A-CAR
OXFORDSHIRE CC,ENTERPRISEVC,,CAR LEASING - PRIVATE RENTALS,17/04/2019,000008467639813,83.83,ENTERPRISE RENT-A-CAR
OXFORDSHIRE CC,ENTERPRISEVC,,CAR LEASING - PRIVATE RENTALS,17/04/2019,000008467639807,136.67,ENTERPRISE RENT-A-CAR
OXFORDSHIRE CC,SOCIAL AND COMMUNITY SERVICES,CSS WALLINGFORD,MATERIALS,17/04/2019,000008467639329,12.00,KERI THE FLORIST
OXFORDSHIRE CC,"CHILDRENS, YOUNG PEOPLE AND FAMILIES","	MALTFIELD HOUSE",MATERIALS,17/04/2019,000008467639351,6.78,AMZNMKTPLACE
OXFORDSHIRE CC,CORPORATE CORE,LIBRARY COLLECTIONS,"NEWSPAPERS, PERIODICALS AND PUBLICATIONS",17/04/2019,000008467639401,47.62,GUARDIAN NEWS & MEDIA
OXFORDSHIRE CC,CORPORATE CORE,"	PERSONNEL","PUBLICITY, PROMOTIONS AND ADVERTISEMENT",17/04/2019,000008467639359,17.00,FACEBK J22W3KAJ72
OXFORDSHIRE CC,SOCIAL AND COMMUNITY SERVICES,WITNEY MOVE ON HOME,CATERING PROVISIONS,17/04/2019,000008467639367,30.83,LIDL GB  WITNEY
OXFORDSHIRE CC,CORPORATE CORE,LIBRARY COLLECTIONS,"NEWSPAPERS, PERIODICALS AND PUBLICATIONS",17/04/2019,000008467639371,47.62,GUARDIAN NEWS & MEDIA
OXFORDSHIRE CC,CORPORATE CORE,LIBRARY COLLECTIONS,"NEWSPAPERS, PERIODICALS AND PUBLICATIONS",17/04/2019,000008467639375,47.62,GUARDIAN NEWS & MEDIA
OXFORDSHIRE CC,CORPORATE CORE,LIBRARY COLLECTIONS,"NEWSPAPERS, PERIODICALS AND PUBLICATIONS",17/04/2019,000008467639379,47.62,GUARDIAN NEWS & MEDIA
OXFORDSHIRE CC,CORPORATE CORE,LIBRARY COLLECTIONS,"NEWSPAPERS, PERIODICALS AND PUBLICATIONS",17/04/2019,000008467639383,47.62,GUARDIAN NEWS & MEDIA
OXFORDSHIRE CC,CORPORATE CORE,LIBRARY COLLECTIONS,"NEWSPAPERS, PERIODICALS AND PUBLICATIONS",17/04/2019,000008467639387,47.62,GUARDIAN NEWS & MEDIA
OXFORDSHIRE CC,CORPORATE CORE,LIBRARY COLLECTIONS,"NEWSPAPERS, PERIODICALS AND PUBLICATIONS",17/04/2019,000008467639393,47.62,GUARDIAN NEWS & MEDIA
OXFORDSHIRE CC,CORPORATE CORE,LIBRARY COLLECTIONS,"NEWSPAPERS, PERIODICALS AND PUBLICATIONS",17/04/2019,000008467639397,47.62,GUARDIAN NEWS & MEDIA
OXFORDSHIRE CC,CORPORATE CORE,LIBRARY COLLECTIONS,"NEWSPAPERS, PERIODICALS AND PUBLICATIONS",17/04/2019,000008467639407,47.62,GUARDIAN NEWS & MEDIA
OXFORDSHIRE CC,CORPORATE CORE,LIBRARY COLLECTIONS,"NEWSPAPERS, PERIODICALS AND PUBLICATIONS",17/04/2019,000008467639411,47.62,GUARDIAN NEWS & MEDIA
OXFORDSHIRE CC,CORPORATE CORE,LIBRARY COLLECTIONS,"NEWSPAPERS, PERIODICALS AND PUBLICATIONS",17/04/2019,000008467639417,47.62,GUARDIAN NEWS & MEDIA
OXFORDSHIRE CC,CORPORATE CORE,LIBRARY COLLECTIONS,"NEWSPAPERS, PERIODICALS AND PUBLICATIONS",17/04/2019,000008467639421,47.62,GUARDIAN NEWS & MEDIA
OXFORDSHIRE CC,CORPORATE CORE,LIBRARY COLLECTIONS,"NEWSPAPERS, PERIODICALS AND PUBLICATIONS",17/04/2019,000008467639425,47.62,GUARDIAN NEWS & MEDIA
OXFORDSHIRE CC,CORPORATE CORE,LIBRARY COLLECTIONS,"NEWSPAPERS, PERIODICALS AND PUBLICATIONS",17/04/2019,000008467639431,47.62,GUARDIAN NEWS & MEDIA
OXFORDSHIRE CC,CORPORATE CORE,LIBRARY COLLECTIONS,"NEWSPAPERS, PERIODICALS AND PUBLICATIONS",17/04/2019,000008467639435,47.62,GUARDIAN NEWS & MEDIA
OXFORDSHIRE CC,CORPORATE CORE,LIBRARY COLLECTIONS,"NEWSPAPERS, PERIODICALS AND PUBLICATIONS",17/04/2019,000008467639439,47.62,GUARDIAN NEWS & MEDIA
OXFORDSHIRE CC,"CHILDRENS, YOUNG PEOPLE AND FAMILIES","	FAMILY SUPPORT S'TH2",PAYMENTS TO TRANSPORT OPERATORS,17/04/2019,000008467639445,186.25,WWW.GWR.COM
OXFORDSHIRE CC,"CHILDRENS, YOUNG PEOPLE AND FAMILIES",NTH EARLY HELP-BCSTR,MATERIALS,17/04/2019,000008467639465,25.99,AMAZON.CO.UK MZ9EY7QV4
OXFORDSHIRE CC,ENVIRONMENT AND ECONOMY,"	E&I STAFF",PAYMENTS TO TRANSPORT OPERATORS,17/04/2019,000008467639473,59.00,WWW.GWR.COM
OXFORDSHIRE CC,"CHILDRENS, YOUNG PEOPLE AND FAMILIES","	MALTFIELD HOUSE",MATERIALS,17/04/2019,000008467639489,27.15,LUSH UK
OXFORDSHIRE CC,"CHILDRENS, YOUNG PEOPLE AND FAMILIES","	FPT NORTH",PAYMENTS TO TRANSPORT OPERATORS,17/04/2019,000008467639481,6.70,GWR OXFORD TO
OXFORDSHIRE CC,"CHILDRENS, YOUNG PEOPLE AND FAMILIES","	MALTFIELD HOUSE",HIRED AND CONTRACTED SERVICES,17/04/2019,000008467639495,25.00,ANGEL BEAUTY PARLOUR
OXFORDSHIRE CC,"CHILDRENS, YOUNG PEOPLE AND FAMILIES","	MALTFIELD HOUSE",HIRED AND CONTRACTED SERVICES,17/04/2019,000008467639501,25.00,ANGEL BEAUTY PARLOUR
OXFORDSHIRE CC,"CHILDRENS, YOUNG PEOPLE AND FAMILIES","	MALTFIELD HOUSE",OTHER TRANSPORT ARRANGEMENTS,17/04/2019,000008467639505,3.50,WESTGATE OXFORD CAR PA
OXFORDSHIRE CC,"CHILDRENS, YOUNG PEOPLE AND FAMILIES","	MALTFIELD HOUSE",CATERING,17/04/2019,000008467639507,57.20,NANDOS (OXFORD WESTGAT
OXFORDSHIRE CC,"CHILDRENS, YOUNG PEOPLE AND FAMILIES","	MALTFIELD HOUSE",MATERIALS,17/04/2019,000008467639509,79.15,B&M RETAIL LTD
OXFORDSHIRE CC,"CHILDRENS, YOUNG PEOPLE AND FAMILIES",THAME E&A HOME,DRUGS AND MEDICAL SUPPLIES,17/04/2019,000008467639511,7.78,BOOTS 0346
OXFORDSHIRE CC,"CHILDRENS, YOUNG PEOPLE AND FAMILIES",THAME E&A HOME,CATERING PROVISIONS,17/04/2019,000008467639513,17.45,SAINSBURYS 0600
OXFORDSHIRE CC,"CHILDRENS, YOUNG PEOPLE AND FAMILIES",THAME E&A HOME,OTHER TRANSPORT ARRANGEMENTS,17/04/2019,000008467639515,2.00,HEADINGTON CAR PARK
OXFORDSHIRE CC,"CHILDRENS, YOUNG PEOPLE AND FAMILIES",THAME E&A HOME,CATERING PROVISIONS,17/04/2019,000008467639517,10.60,COSTA THAME
OXFORDSHIRE CC,"CHILDRENS, YOUNG PEOPLE AND FAMILIES","	LOOKED AFTER CITY 2",CLOTHING AND UNIFORMS,17/04/2019,000008467639519,26.00,PRIMARK 440
OXFORDSHIRE CC,SOCIAL AND COMMUNITY SERVICES,CSS WANTAGE,OTHER SERVICES,17/04/2019,000008467639533,38.58,IS SUNDRIES LTD
OXFORDSHIRE CC,"CHILDRENS, YOUNG PEOPLE AND FAMILIES","	LEAVING CARE NORTH",CATERING,17/04/2019,000008467639525,5.60,COSTA COFFEE 43036780
OXFORDSHIRE CC,ENVIRONMENT AND ECONOMY,SCH&SOC CARE TRANSP,PAYMENTS TO HEALTH AUTHORITIES,17/04/2019,000008467639539,20.00,WINDMILL SPECIAL NEEDS
OXFORDSHIRE CC,"CHILDRENS, YOUNG PEOPLE AND FAMILIES",CNTL EARLY HELP-BRTN,HIRE OF ACCOMMODATION AND FACILITIES,17/04/2019,000008467639557,117.25,TRAVELODGE
OXFORDSHIRE CC,"CHILDRENS, YOUNG PEOPLE AND FAMILIES","	40 THE MOORS",CATERING PROVISIONS,17/04/2019,000008467639563,9.60,SAINSBURYS SACAT 0631
OXFORDSHIRE CC,"CHILDRENS, YOUNG PEOPLE AND FAMILIES","	40 THE MOORS",CATERING PROVISIONS,17/04/2019,000008467639567,7.09,CO-OPERATIVE FOOD
OXFORDSHIRE CC,"CHILDRENS, YOUNG PEOPLE AND FAMILIES","	40 THE MOORS",VEHICLES REPAIRS AND MAINTENANCE,17/04/2019,000008467639575,45.00,PP MUHAMMADJAF
OXFORDSHIRE CC,ENVIRONMENT AND ECONOMY,READER SERV ADULTS,PAYMENTS TO TRANSPORT OPERATORS,17/04/2019,000008467639591,52.00,WWW.GWR.COM
OXFORDSHIRE CC,"CHILDRENS, YOUNG PEOPLE AND FAMILIES","	MALTFIELD HOUSE",CATERING,17/04/2019,000008467639599,16.65,BOOST JUICE BARS
OXFORDSHIRE CC,"CHILDRENS, YOUNG PEOPLE AND FAMILIES","	MALTFIELD HOUSE",CLOTHING AND UNIFORMS,17/04/2019,000008467639605,4.99,NEW LOOK
OXFORDSHIRE CC,"CHILDRENS, YOUNG PEOPLE AND FAMILIES","	MALTFIELD HOUSE",CLOTHING AND UNIFORMS,17/04/2019,000008467639609,8.99,NEW LOOK
OXFORDSHIRE CC,"CHILDRENS, YOUNG PEOPLE AND FAMILIES","	MALTFIELD HOUSE",CATERING,17/04/2019,000008467639615,3.70,NANDOS (OXFORD WESTGAT
OXFORDSHIRE CC,"CHILDRENS, YOUNG PEOPLE AND FAMILIES","	MALTFIELD HOUSE",DRUGS AND MEDICAL SUPPLIES,17/04/2019,000008467639619,68.42,SUPERDRUG STORES PLC
OXFORDSHIRE CC,"CHILDRENS, YOUNG PEOPLE AND FAMILIES","	MALTFIELD HOUSE",CATERING,17/04/2019,000008467639623,16.60,MCDONALDS
OXFORDSHIRE CC,ENVIRONMENT AND ECONOMY,STRATEGY AND INFRASTRUCTURE PLANNING,PAYMENTS TO TRANSPORT OPERATORS,17/04/2019,000008467639629,134.90,WWW.GWR.COM
OXFORDSHIRE CC,"CHILDRENS, YOUNG PEOPLE AND FAMILIES",DIDCOT MOVE-ON HOME,CATERING,17/04/2019,000008467639639,7.90,DELIGHT 2
OXFORDSHIRE CC,"CHILDRENS, YOUNG PEOPLE AND FAMILIES",0-5 STDS & PROGRESS,POSTAGE AND DELIVERY,17/04/2019,000008467639645,1.50,ROYAL MAIL CHARGES
OXFORDSHIRE CC,"CHILDRENS, YOUNG PEOPLE AND FAMILIES","	LOOKED AFTER CITY 2",DISABILITY AIDS AND EQUIPMENT,17/04/2019,000008467639659,45.97,FEELGOODCONTACTS.COM
OXFORDSHIRE CC,"CHILDRENS, YOUNG PEOPLE AND FAMILIES","	40 THE MOORS",CATERING PROVISIONS,17/04/2019,000008467639667,4.60,SAINSBURYS SACAT 0631
OXFORDSHIRE CC,ENTERPRISEVC,,CAR LEASING - PRIVATE RENTALS,17/04/2019,000008467639819,69.55,ENTERPRISE RENT-A-CAR
OXFORDSHIRE CC,ENTERPRISEVC,,CAR LEASING - PRIVATE RENTALS,17/04/2019,000008467639823,26.16,ENTERPRISE RENT-A-CAR
OXFORDSHIRE CC,ENTERPRISEVC,,CAR LEASING - PRIVATE RENTALS,17/04/2019,000008467639829,131.57,ENTERPRISE RENT-A-CAR
OXFORDSHIRE CC,ENTERPRISEVC,,CAR LEASING - PRIVATE RENTALS,17/04/2019,000008467639835,62.08,ENTERPRISE RENT-A-CAR
OXFORDSHIRE CC,ENTERPRISEVC,,CAR LEASING - PRIVATE RENTALS,17/04/2019,000008467639839,488.54,ENTERPRISE RENT-A-CAR
OXFORDSHIRE CC,"CHILDRENS, YOUNG PEOPLE AND FAMILIES",STH EARLY HELP-DDCOT,PAYMENTS TO VOLUNTARY BODIES,17/04/2019,000008467639847,-16.50,CHARITY
OXFORDSHIRE CC,CORPORATE CORE,"	COMMUNICATIONS",MATERIALS,17/04/2019,000008467639861,500.00,GOOGLE  ADS4896546035
OXFORDSHIRE CC,CORPORATE CORE,"	COMMUNICATIONS",IT SOFTWARE,17/04/2019,000008467639867,19.73,ZAPIER.COM/CHARGE
OXFORDSHIRE CC,CORPORATE CORE,"	COMMUNICATIONS","PUBLICITY, PROMOTIONS AND ADVERTISEMENT",17/04/2019,000008467639873,22.33,SNAP    SNAP ADS
OXFORDSHIRE CC,SOCIAL AND COMMUNITY SERVICES,CSS BICESTER,MATERIALS,17/04/2019,000008467639019,17.43,AMZNMKTPLACE
OXFORDSHIRE CC,"CHILDRENS, YOUNG PEOPLE AND FAMILIES",THAME E&A HOME,MATERIALS,17/04/2019,000008467639071,15.30,AMAZON.CO.UK MZ80T9QZ4
OXFORDSHIRE CC,SOCIAL AND COMMUNITY SERVICES,CSS BICESTER,HARDWARE AND CROCKERY,17/04/2019,000008467639025,7.63,WICKES BICESTER
OXFORDSHIRE CC,"CHILDRENS, YOUNG PEOPLE AND FAMILIES",KINGFISHER,MATERIALS,17/04/2019,000008467639051,18.05,WILKO RETAIL LIMIT
OXFORDSHIRE CC,"CHILDRENS, YOUNG PEOPLE AND FAMILIES",KINGFISHER,CATERING,17/04/2019,000008467639057,13.18,CHERWELL BANBURY
OXFORDSHIRE CC,"CHILDRENS, YOUNG PEOPLE AND FAMILIES",ADMINISTRATION,PAYMENTS TO TRANSPORT OPERATORS,17/04/2019,000008467639077,19.89,TRAINLINE
OXFORDSHIRE CC,SOCIAL AND COMMUNITY SERVICES,LOOKED AFTER SOUTH,PAYMENT TO GOVERNMENT DEPARTMENTS,17/04/2019,000008467639063,127.00,HM PASSPORT
OXFORDSHIRE CC,"CHILDRENS, YOUNG PEOPLE AND FAMILIES",EYNSHAM,OTHER TRANSPORT ARRANGEMENTS,17/04/2019,000008467639083,2.80,OXFORD UNIVERSITY HOSP
OXFORDSHIRE CC,"CHILDRENS, YOUNG PEOPLE AND FAMILIES","	LEAVING CARE NORTH",HARDWARE AND CROCKERY,17/04/2019,000008467639089,28.00,POUNDSTRETCHER 700
OXFORDSHIRE CC,"CHILDRENS, YOUNG PEOPLE AND FAMILIES",CSS WALLINGFORD,CATERING PROVISIONS,17/04/2019,000008467639093,3.09,ALDI 99 775
OXFORDSHIRE CC,"CHILDRENS, YOUNG PEOPLE AND FAMILIES","	RESIDENTIAL STRATEGY",MATERIALS,17/04/2019,000008467639101,10.05,DEBENHAMS
OXFORDSHIRE CC,CORPORATE CORE,BANKING,EDUCATIONAL AND VOCATIONAL TRAINING ,17/04/2019,000008467639115,55.00,OXFORDSHIRE CC PDQ1
OXFORDSHIRE CC,CORPORATE CORE,BANKING,EDUCATIONAL AND VOCATIONAL TRAINING ,17/04/2019,000008467639121,1.00,OXFORDSHIRE CC PDQ1
OXFORDSHIRE CC,CORPORATE CORE,BANKING,EDUCATIONAL AND VOCATIONAL TRAINING ,17/04/2019,000008467639125,1.00,OXFORDSHIRE CC PDQ1
OXFORDSHIRE CC,CORPORATE CORE,BANKING,EDUCATIONAL AND VOCATIONAL TRAINING ,17/04/2019,000008467639131,78.78,OXFORDSHIRE CC PDQ1
OXFORDSHIRE CC,CORPORATE CORE,BANKING,EDUCATIONAL AND VOCATIONAL TRAINING ,17/04/2019,000008467639135,1.00,OXFORDSHIRE CC PDQ1
OXFORDSHIRE CC,CORPORATE CORE,BANKING,EDUCATIONAL AND VOCATIONAL TRAINING ,17/04/2019,000008467639139,-55.00,OXFORDSHIRE CC MOTO1
OXFORDSHIRE CC,CORPORATE CORE,BANKING,EDUCATIONAL AND VOCATIONAL TRAINING ,17/04/2019,000008467639145,-1.00,OXFORDSHIRE CC MOTO1
OXFORDSHIRE CC,CORPORATE CORE,BANKING,EDUCATIONAL AND VOCATIONAL TRAINING ,17/04/2019,000008467639149,-1.00,OXFORDSHIRE CC MOTO1
OXFORDSHIRE CC,CORPORATE CORE,BANKING,EDUCATIONAL AND VOCATIONAL TRAINING ,17/04/2019,000008467639153,-78.78,OXFORDSHIRE CC MOTO1
OXFORDSHIRE CC,CORPORATE CORE,BANKING,EDUCATIONAL AND VOCATIONAL TRAINING ,17/04/2019,000008467639159,-1.00,OXFORDSHIRE CC MOTO1
OXFORDSHIRE CC,"CHILDRENS, YOUNG PEOPLE AND FAMILIES","	LOOKED AFTER SOUTH",CATERING,17/04/2019,000008467639165,23.55,MCDONALDS
OXFORDSHIRE CC,"CHILDRENS, YOUNG PEOPLE AND FAMILIES","	LOOKED AFTER SOUTH",CATERING,17/04/2019,000008467639169,5.89,MCDONALDS
OXFORDSHIRE CC,"CHILDRENS, YOUNG PEOPLE AND FAMILIES","	LOOKED AFTER SOUTH",EDUCATIONAL AND VOCATIONAL TRAINING ,17/04/2019,000008467639173,-39.50,WWW.ABINGDON-WITNE
OXFORDSHIRE CC,"CHILDRENS, YOUNG PEOPLE AND FAMILIES",THAME E&A HOME,ENTERTAINMENT EXPENSES,17/04/2019,000008467639217,31.40,RUSH - HIGH WYCOMBE
OXFORDSHIRE CC,SOCIAL AND COMMUNITY SERVICES,CO PRODUCTION WORK,CATERING PROVISIONS,17/04/2019,000008467639179,29.55,SAINSBURYS SACAT 0730
OXFORDSHIRE CC,SOCIAL AND COMMUNITY SERVICES,CO PRODUCTION WORK,CATERING PROVISIONS,17/04/2019,000008467639185,6.65,SAINSBURYS SACAT 0730
OXFORDSHIRE CC,ENVIRONMENT AND ECONOMY,HARD FM,HARDWARE AND CROCKERY,17/04/2019,000008467639191,79.98,SCREWFIX BANBURY
OXFORDSHIRE CC,ENVIRONMENT AND ECONOMY,HARD FM,HARDWARE AND CROCKERY,17/04/2019,000008467639195,47.75,WICKES BICESTER
OXFORDSHIRE CC,ENVIRONMENT AND ECONOMY,HARD FM,MATERIALS,17/04/2019,000008467639201,22.89,COLLIERS OF CROWMARSH
OXFORDSHIRE CC,ENVIRONMENT AND ECONOMY,HARD FM,HARDWARE AND CROCKERY,17/04/2019,000008467639207,37.14,SCREWFIX BANBURY
OXFORDSHIRE CC,ENVIRONMENT AND ECONOMY,HARD FM,HARDWARE AND CROCKERY,17/04/2019,000008467639211,15.97,SCREWFIX BANBURY
OXFORDSHIRE CC,"CHILDRENS, YOUNG PEOPLE AND FAMILIES",THAME E&A HOME,CATERING,17/04/2019,000008467639221,5.97,MCDONALDS
OXFORDSHIRE CC,ENVIRONMENT AND ECONOMY,COUNTY LIBRARY,GENERAL MAINTENANCE,17/04/2019,000008467639227,188.65, WOLSELEY UK
OXFORDSHIRE CC,ENVIRONMENT AND ECONOMY,COUNTY LIBRARY,GENERAL MAINTENANCE,17/04/2019,000008467639237,24.31, WOLSELEY UK
OXFORDSHIRE CC,ENVIRONMENT AND ECONOMY,COUNTY LIBRARY,GENERAL MAINTENANCE,17/04/2019,000008467639241,23.83, WOLSELEY UK
OXFORDSHIRE CC,"CHILDRENS, YOUNG PEOPLE AND FAMILIES","	LOOKED AFTER NORTH",MATERIALS,17/04/2019,000008467639249,97.48,AMZNMKTPLACE
OXFORDSHIRE CC,SOCIAL AND COMMUNITY SERVICES,CSS - OXFORD,CATERING PROVISIONS,17/04/2019,000008467639255,17.02,ALDI STORES 775-142
OXFORDSHIRE CC,"CHILDRENS, YOUNG PEOPLE AND FAMILIES",THAME E&A HOME,CATERING,17/04/2019,000008467639261,14.30,BURGER KING  BICESTER
OXFORDSHIRE CC,"CHILDRENS, YOUNG PEOPLE AND FAMILIES",THAME E&A HOME,CATERING PROVISIONS,17/04/2019,000008467639267,10.80,COSTA BICESTER
OXFORDSHIRE CC,SOCIAL AND COMMUNITY SERVICES,DIDCOT MOVE-ON HOME,CATERING PROVISIONS,17/04/2019,000008467639283,31.25,SAINSBURYS SACAT 2067
OXFORDSHIRE CC,SOCIAL AND COMMUNITY SERVICES,CSS - OXFORD,CATERING PROVISIONS,17/04/2019,000008467639273,1.77,ALDI STORES 775-142
OXFORDSHIRE CC,SOCIAL AND COMMUNITY SERVICES,CSS - OXFORD,CATERING PROVISIONS,17/04/2019,000008467639279,14.64,ALDI STORES 775-142
OXFORDSHIRE CC,SOCIAL AND COMMUNITY SERVICES,DIDCOT MOVE-ON HOME,CATERING,17/04/2019,000008467639289,8.55,COSTA COFFEE 43042160
OXFORDSHIRE CC,"CHILDRENS, YOUNG PEOPLE AND FAMILIES","	RIVERSIDE CENTRE",MATERIALS,17/04/2019,000008467639295,46.23,BEELINE BICYCLES LIMIT
OXFORDSHIRE CC,"CHILDRENS, YOUNG PEOPLE AND FAMILIES","	RIVERSIDE CENTRE",CATERING PROVISIONS,17/04/2019,000008467639299,5.00,SAINSBURYS SAC2305SAC
OXFORDSHIRE CC,"CHILDRENS, YOUNG PEOPLE AND FAMILIES","	FAM SUPP CITY 1",MATERIALS,17/04/2019,000008467639323,79.99,ARGOS RETAIL GROUP
OXFORDSHIRE CC,"CHILDRENS, YOUNG PEOPLE AND FAMILIES","	LOOKED AFTER CITY 1",PAYMENTS TO TRANSPORT OPERATORS,16/04/2019,000008463383111,151.90,GWR DIDCOT PKWY TO
OXFORDSHIRE CC,"CHILDRENS, YOUNG PEOPLE AND FAMILIES",FAMILY SUPPORT 2,PAYMENTS TO TRANSPORT OPERATORS,16/04/2019,000008463383113,174.75,WWW.GWR.COM
OXFORDSHIRE CC,"CHILDRENS, YOUNG PEOPLE AND FAMILIES",FAMILY SUPPORT 2,PAYMENTS TO TRANSPORT OPERATORS,16/04/2019,000008463383115,17.20,WWW.GWR.COM
OXFORDSHIRE CC,SOCIAL AND COMMUNITY SERVICES,BICESTER LIBRARY,MEDICAL AND COUNSELLING FEES,16/04/2019,000008463383117,32.00,SHIRE MOBILITY LTD
OXFORDSHIRE CC,"CHILDRENS, YOUNG PEOPLE AND FAMILIES","	DIRECTOR'S OFFICE",PAYMENTS TO TRANSPORT OPERATORS,16/04/2019,000008463383119,90.60,WWW.GWR.COM
OXFORDSHIRE CC,"CHILDRENS, YOUNG PEOPLE AND FAMILIES","	DIRECTOR'S OFFICE",PAYMENTS TO TRANSPORT OPERATORS,16/04/2019,000008463383121,75.70,WWW.GWR.COM
OXFORDSHIRE CC,"CHILDRENS, YOUNG PEOPLE AND FAMILIES","	DIRECTOR'S OFFICE",PAYMENTS TO TRANSPORT OPERATORS,16/04/2019,000008463383123,60.00,WWW.GWR.COM
OXFORDSHIRE CC,"CHILDRENS, YOUNG PEOPLE AND FAMILIES",STH EARLY HELP-DDCOT,PAYMENTS TO VOLUNTARY BODIES,16/04/2019,000008463383125,278.00,FAMILY LINKS
OXFORDSHIRE CC,"CHILDRENS, YOUNG PEOPLE AND FAMILIES",STH EARLY HELP-DDCOT,PAYMENTS TO VOLUNTARY BODIES,16/04/2019,000008463383127,278.00,FAMILY LINKS
OXFORDSHIRE CC,"CHILDRENS, YOUNG PEOPLE AND FAMILIES",NORTH FSS- BANBURY,HIRE OF ACCOMMODATION AND FACILITIES,16/04/2019,000008463383129,"1,345.00",B.COM 3430448-SB6B4 TH
OXFORDSHIRE CC,CORPORATE CORE,"	COMMUNICATIONS","PUBLICITY, PROMOTIONS AND ADVERTISEMENT",16/04/2019,000008463383131,22.13,SNAP    SNAP ADS
OXFORDSHIRE CC,"CHILDRENS, YOUNG PEOPLE AND FAMILIES","	MALTFIELD HOUSE",CATERING PROVISIONS,16/04/2019,000008463382989,8.61,ROSIE'S
OXFORDSHIRE CC,"CHILDRENS, YOUNG PEOPLE AND FAMILIES","	LOOKED AFTER CITY 1",ENTERTAINMENT EXPENSES,16/04/2019,000008463382991,105.51,TRAINLINE.COM
OXFORDSHIRE CC,"CHILDRENS, YOUNG PEOPLE AND FAMILIES",THAME E&A HOME,VEHICLE FUEL,16/04/2019,000008463382993,17.03,THAME BP SF CONNECT
OXFORDSHIRE CC,"CHILDRENS, YOUNG PEOPLE AND FAMILIES","	MUSIC UNALLOCABLE",VEHICLE FUEL,16/04/2019,000008463382995,4.86,SAINSBURYS OPT 0180
OXFORDSHIRE CC,"CHILDRENS, YOUNG PEOPLE AND FAMILIES",PANEL COSTS,HIRE OF ACCOMMODATION AND FACILITIES,16/04/2019,000008463382997,404.18,AIRBNB   HMAPJMPBSD
OXFORDSHIRE CC,"CHILDRENS, YOUNG PEOPLE AND FAMILIES",PANEL COSTS,HIRE OF ACCOMMODATION AND FACILITIES,16/04/2019,000008463382999,70.75,TRAVELODGE
OXFORDSHIRE CC,"CHILDRENS, YOUNG PEOPLE AND FAMILIES","	LOOKED AFTER CITY 1",REGISTRATION AND INSPECTION FEES,16/04/2019,000008463383001,22.00,OCC REGISTRARS (M)
OXFORDSHIRE CC,CORPORATE CORE,LIBRARY COLLECTIONS,"BOOKS, DVDS AND CDS",16/04/2019,000008463383003,"1,244.75",BOLINDA PUBLISHING
OXFORDSHIRE CC,"CHILDRENS, YOUNG PEOPLE AND FAMILIES","	SENSS TRAINING",EDUCATIONAL AND VOCATIONAL TRAINING ,16/04/2019,000008463383005,75.00,PAYPAL  EARTHWATCH
OXFORDSHIRE CC,"CHILDRENS, YOUNG PEOPLE AND FAMILIES","	MUSIC UNALLOCABLE",CAR LEASING - PRIVATE RENTALS,16/04/2019,000008463383017,89.10,EURODRIVE
OXFORDSHIRE CC,"CHILDRENS, YOUNG PEOPLE AND FAMILIES",THAME E&A HOME,CATERING PROVISIONS,16/04/2019,000008463383033,123.30,SAINSBURYS TO YOU 0600
OXFORDSHIRE CC,SOCIAL AND COMMUNITY SERVICES,CSS - OXFORD,"BOOKS, DVDS AND CDS",16/04/2019,000008463383019,16.98,AMZN MKTP UK MZ80N6BN4
OXFORDSHIRE CC,"CHILDRENS, YOUNG PEOPLE AND FAMILIES","	LEAVING CARE CITY 1",OTHER TRANSPORT ARRANGEMENTS,16/04/2019,000008463383023,6.70,APCOA CONNECT - FGW
OXFORDSHIRE CC,"CHILDRENS, YOUNG PEOPLE AND FAMILIES","	LOOKED AFTER CITY 2",OTHER EXPENSES,16/04/2019,000008463383025,55.85,NANDOS (OXFORD WESTGAT
OXFORDSHIRE CC,"CHILDRENS, YOUNG PEOPLE AND FAMILIES","	FOSTER CARE RECRUIT","BOOKS, DVDS AND CDS",16/04/2019,000008463383027,93.00,PARTRIDGE & PRINT
OXFORDSHIRE CC,"CHILDRENS, YOUNG PEOPLE AND FAMILIES","	LOOKED AFTER CITY 2",OTHER TRANSPORT ARRANGEMENTS,16/04/2019,000008463383035,4.00,WESTGATE OXFORD CAR PA
OXFORDSHIRE CC,"CHILDRENS, YOUNG PEOPLE AND FAMILIES",CNTL EARLY HELP-RHIL,MATERIALS,16/04/2019,000008463383029,135.59,AMAZON.CO.UK MZ7YN4884
OXFORDSHIRE CC,"CHILDRENS, YOUNG PEOPLE AND FAMILIES",THAME E&A HOME,VEHICLE FUEL,16/04/2019,000008463383031,2.50,THAME BP SF CONNECT
OXFORDSHIRE CC,"CHILDRENS, YOUNG PEOPLE AND FAMILIES","	LOOKED AFTER CITY 2",CLOTHING AND UNIFORMS,16/04/2019,000008463383037,38.98,NEW LOOK
OXFORDSHIRE CC,"CHILDRENS, YOUNG PEOPLE AND FAMILIES","	MALTFIELD HOUSE",CATERING PROVISIONS,16/04/2019,000008463383041,81.95,SAINSBURYS TO YOU 0600
OXFORDSHIRE CC,"CHILDRENS, YOUNG PEOPLE AND FAMILIES","	LEAVING CARE NORTH",PAYMENTS TO TRANSPORT OPERATORS,16/04/2019,000008463383039,60.55,CROSS COUNTRY TRAINS
OXFORDSHIRE CC,ENVIRONMENT AND ECONOMY,"	LEP",OTHER TRANSPORT ARRANGEMENTS,16/04/2019,000008463383045,6.30,APCOA CONNECT - FGW
OXFORDSHIRE CC,SOCIAL AND COMMUNITY SERVICES,CSS WITNEY,CATERING PROVISIONS,16/04/2019,000008463383047,110.28,TESCO STORES 2008
OXFORDSHIRE CC,SOCIAL AND COMMUNITY SERVICES,CSS WANTAGE,CATERING PROVISIONS,16/04/2019,000008463383049,21.75,SAINSBURYS SACAT 2244
OXFORDSHIRE CC,"CHILDRENS, YOUNG PEOPLE AND FAMILIES",CNTL EARLY HELP-BRTN,MATERIALS,16/04/2019,000008463383055,116.46,AMZNMKTPLACE
OXFORDSHIRE CC,"CHILDRENS, YOUNG PEOPLE AND FAMILIES","	40 THE MOORS",CATERING,16/04/2019,000008463383057,62.70,EASTERN KITCHEN
OXFORDSHIRE CC,"CHILDRENS, YOUNG PEOPLE AND FAMILIES","	40 THE MOORS",OTHER TRANSPORT ARRANGEMENTS,16/04/2019,000008463383059,26.20,SUMUP   UMAR TAXI
OXFORDSHIRE CC,CORPORATE CORE,"	PERSONNEL","SUPPLIES, STATIONERY AND MATERIALS",16/04/2019,000008463383061,256.80,WWW.LOCAL.GOV.UK
OXFORDSHIRE CC,ENVIRONMENT AND ECONOMY,"	TVERC",IT SERVICES,16/04/2019,000008463383067,7.99,DROPBOX QVH6H3FFCCWV
OXFORDSHIRE CC,SOCIAL AND COMMUNITY SERVICES,DIDOCT LIBRARY,MATERIALS,16/04/2019,000008463383069,2.25,WILKO RETAIL LIMIT
OXFORDSHIRE CC,"CHILDRENS, YOUNG PEOPLE AND FAMILIES",BULLINGDON PRISON,"BOOKS, DVDS AND CDS",16/04/2019,000008463383073,35.00,COLES BOOK STORE
OXFORDSHIRE CC,"CHILDRENS, YOUNG PEOPLE AND FAMILIES","	40 THE MOORS",CATERING,16/04/2019,000008463383083,2.95,GREEN DRAGON ECO CAFE
OXFORDSHIRE CC,"CHILDRENS, YOUNG PEOPLE AND FAMILIES","	LEAVING CARE NORTH",PAYMENTS TO TRANSPORT OPERATORS,16/04/2019,000008463383075,6.70,TRANSPORT FOR WALES
OXFORDSHIRE CC,"CHILDRENS, YOUNG PEOPLE AND FAMILIES","	40 THE MOORS",MATERIALS,16/04/2019,000008463383085,9.90,THE FRAMING CTR
OXFORDSHIRE CC,"CHILDRENS, YOUNG PEOPLE AND FAMILIES","	LEAVING CARE NORTH",ENTERTAINMENT EXPENSES,16/04/2019,000008463383077,76.45,AMFBOWLING.CO.UK
OXFORDSHIRE CC,"CHILDRENS, YOUNG PEOPLE AND FAMILIES",CNTL ERLY HELP-BBLEY,CATERING PROVISIONS,16/04/2019,000008463383079,3.00,TESCO STORE 2990
OXFORDSHIRE CC,"CHILDRENS, YOUNG PEOPLE AND FAMILIES","	40 THE MOORS",CATERING PROVISIONS,16/04/2019,000008463383081,21.00,GREEN DRAGON ECO FARM
OXFORDSHIRE CC,"CHILDRENS, YOUNG PEOPLE AND FAMILIES","	40 THE MOORS",MATERIALS,16/04/2019,000008463383087,26.00,THE WORKS
OXFORDSHIRE CC,"CHILDRENS, YOUNG PEOPLE AND FAMILIES","	40 THE MOORS",CATERING,16/04/2019,000008463383089,6.88,MCDONALDS
OXFORDSHIRE CC,"CHILDRENS, YOUNG PEOPLE AND FAMILIES","	LOOKED AFTER CITY 2",PAYMENT TO GOVERNMENT DEPARTMENTS,16/04/2019,000008463383091,38.00,GEN REGISTER OFFICE
OXFORDSHIRE CC,"CHILDRENS, YOUNG PEOPLE AND FAMILIES","	FAMILY SUPPORT S'TH2",PAYMENT TO GOVERNMENT DEPARTMENTS,16/04/2019,000008463383093,180.50,HM PASSPORT OFFICE
OXFORDSHIRE CC,SOCIAL AND COMMUNITY SERVICES,"	SHARED LIVES",OTHER TRAINING COURSES AND QUALIFICATION,16/04/2019,000008463383095,60.00,PAYPAL  AUTISM OXFD
OXFORDSHIRE CC,"CHILDRENS, YOUNG PEOPLE AND FAMILIES","	ASSESS TEAM CITY",HIRE OF ACCOMMODATION AND FACILITIES,16/04/2019,000008463383097,50.00,ALMOND TREE HOTEL
OXFORDSHIRE CC,"CHILDRENS, YOUNG PEOPLE AND FAMILIES","	40 THE MOORS",OTHER TRANSPORT ARRANGEMENTS,16/04/2019,000008463383099,18.80,IZ  F1 TAXI
OXFORDSHIRE CC,"CHILDRENS, YOUNG PEOPLE AND FAMILIES","	40 THE MOORS",CATERING PROVISIONS,16/04/2019,000008463383101,43.53,CO-OPERATIVE FOOD
OXFORDSHIRE CC,"CHILDRENS, YOUNG PEOPLE AND FAMILIES","	40 THE MOORS",ENTERTAINMENT EXPENSES,16/04/2019,000008463383103,17.67,HOLLYWOOD BOWL
OXFORDSHIRE CC,"CHILDRENS, YOUNG PEOPLE AND FAMILIES","	LOOKED AFTER CITY 1",REGISTRATION AND INSPECTION FEES,16/04/2019,000008463383105,60.69,HORSE INSURANCE
OXFORDSHIRE CC,"CHILDRENS, YOUNG PEOPLE AND FAMILIES","	LOOKED AFTER NORTH",OTHER TRANSPORT ARRANGEMENTS,16/04/2019,000008463383107,1.50,3C_ NEWLANDS SHOPPING
OXFORDSHIRE CC,"CHILDRENS, YOUNG PEOPLE AND FAMILIES","	LOOKED AFTER NORTH",CATERING,16/04/2019,000008463383109,2.97,COSTA COFFEE
OXFORDSHIRE CC,SOCIAL AND COMMUNITY SERVICES,CSS - BANBURY,CATERING PROVISIONS,16/04/2019,000008463382857,107.10,SAINSBURYS TO YOU 0642
OXFORDSHIRE CC,SOCIAL AND COMMUNITY SERVICES,CSS BICESTER,MATERIALS,16/04/2019,000008463382859,21.99,AMZNMKTPLACE
OXFORDSHIRE CC,"CHILDRENS, YOUNG PEOPLE AND FAMILIES",THAME E&A HOME,FURNITURE,16/04/2019,000008463382865,49.95,WWW.IKEA.COM
OXFORDSHIRE CC,"CHILDRENS, YOUNG PEOPLE AND FAMILIES",EYNSHAM,REGISTRATION AND INSPECTION FEES,16/04/2019,000008463382867,89.00,CITY MAZE LTD
OXFORDSHIRE CC,"CHILDRENS, YOUNG PEOPLE AND FAMILIES","	MALTFIELD HOUSE",CATERING,16/04/2019,000008463382871,27.00,JUST EAT
OXFORDSHIRE CC,"CHILDRENS, YOUNG PEOPLE AND FAMILIES",EYNSHAM,CATERING PROVISIONS,16/04/2019,000008463382869,89.34,TESCO STORES 2008
OXFORDSHIRE CC,CORPORATE CORE,BANKING,EDUCATIONAL AND VOCATIONAL TRAINING ,16/04/2019,000008463382877,1.00,OXFORDSHIRE CC PDQ1
OXFORDSHIRE CC,CORPORATE CORE,BANKING,EDUCATIONAL AND VOCATIONAL TRAINING ,16/04/2019,000008463382879,1.00,OXFORDSHIRE CC PDQ1
OXFORDSHIRE CC,CORPORATE CORE,BANKING,EDUCATIONAL AND VOCATIONAL TRAINING ,16/04/2019,000008463382881,1.00,OXFORDSHIRE CC PDQ1
OXFORDSHIRE CC,CORPORATE CORE,BANKING,EDUCATIONAL AND VOCATIONAL TRAINING ,16/04/2019,000008463382883,28.20,OXFORDSHIRE CC PDQ1
OXFORDSHIRE CC,CORPORATE CORE,BANKING,EDUCATIONAL AND VOCATIONAL TRAINING ,16/04/2019,000008463382885,10.00,OXFORDSHIRE CC PDQ1
OXFORDSHIRE CC,CORPORATE CORE,BANKING,EDUCATIONAL AND VOCATIONAL TRAINING ,16/04/2019,000008463382887,1.00,OXFORDSHIRE CC PDQ1
OXFORDSHIRE CC,CORPORATE CORE,BANKING,EDUCATIONAL AND VOCATIONAL TRAINING ,16/04/2019,000008463382889,1.00,OXFORDSHIRE CC PDQ1
OXFORDSHIRE CC,CORPORATE CORE,BANKING,EDUCATIONAL AND VOCATIONAL TRAINING ,16/04/2019,000008463382891,-1.00,OXFORDSHIRE CC MOTO1
OXFORDSHIRE CC,CORPORATE CORE,BANKING,EDUCATIONAL AND VOCATIONAL TRAINING ,16/04/2019,000008463382895,-1.00,OXFORDSHIRE CC MOTO1
OXFORDSHIRE CC,CORPORATE CORE,BANKING,EDUCATIONAL AND VOCATIONAL TRAINING ,16/04/2019,000008463382893,-1.00,OXFORDSHIRE CC MOTO1
OXFORDSHIRE CC,ENVIRONMENT AND ECONOMY,"	LEP","SUPPLIES, STATIONERY AND MATERIALS",16/04/2019,000008463382913,253.79,EB  CREATECH 2019
OXFORDSHIRE CC,ENVIRONMENT AND ECONOMY,"	LEP",IT SOFTWARE,16/04/2019,000008463382915,27.17,WORKABLE
OXFORDSHIRE CC,CORPORATE CORE,BANKING,EDUCATIONAL AND VOCATIONAL TRAINING ,16/04/2019,000008463382897,-28.20,OXFORDSHIRE CC MOTO1
OXFORDSHIRE CC,CORPORATE CORE,BANKING,EDUCATIONAL AND VOCATIONAL TRAINING ,16/04/2019,000008463382899,-1.00,OXFORDSHIRE CC MOTO1
OXFORDSHIRE CC,ENVIRONMENT AND ECONOMY,"	LEP",IT SOFTWARE,16/04/2019,000008463382917,27.17,WORKABLE
OXFORDSHIRE CC,CORPORATE CORE,BANKING,EDUCATIONAL AND VOCATIONAL TRAINING ,16/04/2019,000008463382901,-1.00,OXFORDSHIRE CC MOTO1
OXFORDSHIRE CC,"CHILDRENS, YOUNG PEOPLE AND FAMILIES","	LOOKED AFTER SOUTH",CATERING PROVISIONS,16/04/2019,000008463382903,10.00,TESCO STORES 2008
OXFORDSHIRE CC,"CHILDRENS, YOUNG PEOPLE AND FAMILIES","	LOOKED AFTER CITY 1",CATERING PROVISIONS,16/04/2019,000008463382905,7.50,ASDA STORE 4442
OXFORDSHIRE CC,"CHILDRENS, YOUNG PEOPLE AND FAMILIES","	LOOKED AFTER CITY 1",DRUGS AND MEDICAL SUPPLIES,16/04/2019,000008463382907,4.35,SUPERDRUG STORES PLC
OXFORDSHIRE CC,"CHILDRENS, YOUNG PEOPLE AND FAMILIES","	LOOKED AFTER CITY 1",MATERIALS,16/04/2019,000008463382909,64.00,J D SPORTS
OXFORDSHIRE CC,ENVIRONMENT AND ECONOMY,"	LEP","SUPPLIES, STATIONERY AND MATERIALS",16/04/2019,000008463382911,253.79,EB  CREATECH 2019
OXFORDSHIRE CC,ENVIRONMENT AND ECONOMY,"	FM RECHARGES","BOOKS, DVDS AND CDS",16/04/2019,000008463382919,74.48,AMZN MKTP UK MZ0QB8BO4
OXFORDSHIRE CC,ENVIRONMENT AND ECONOMY,HARD FM,EQUIPMENT,16/04/2019,000008463382921,45.36,W F SENATE
OXFORDSHIRE CC,ENVIRONMENT AND ECONOMY,HARD FM,EQUIPMENT,16/04/2019,000008463382923,39.43,WILTS ELECTRICAL
OXFORDSHIRE CC,ENVIRONMENT AND ECONOMY,HARD FM,HARDWARE AND CROCKERY,16/04/2019,000008463382941,82.24,TRAVIS PERKINS
OXFORDSHIRE CC,ENVIRONMENT AND ECONOMY,HARD FM,EQUIPMENT,16/04/2019,000008463382925,20.74,WILTS ELECTRICAL
OXFORDSHIRE CC,ENVIRONMENT AND ECONOMY,HARD FM,EQUIPMENT,16/04/2019,000008463382927,18.46,WILTS ELECTRICAL
OXFORDSHIRE CC,ENVIRONMENT AND ECONOMY,HARD FM,EQUIPMENT,16/04/2019,000008463382929,604.07,WILTS ELECTRICAL
OXFORDSHIRE CC,ENVIRONMENT AND ECONOMY,HARD FM,EQUIPMENT,16/04/2019,000008463382931,221.06,WILTS ELECTRICAL
OXFORDSHIRE CC,ENVIRONMENT AND ECONOMY,HARD FM,HARDWARE AND CROCKERY,16/04/2019,000008463382933,16.70,WICKES OXFORD
OXFORDSHIRE CC,ENVIRONMENT AND ECONOMY,HARD FM,HARDWARE AND CROCKERY,16/04/2019,000008463382935,24.99,SCREWFIX BANBURY
OXFORDSHIRE CC,ENVIRONMENT AND ECONOMY,HARD FM,HARDWARE AND CROCKERY,16/04/2019,000008463382937,72.87,CITY ELECTRICAL FA
OXFORDSHIRE CC,ENVIRONMENT AND ECONOMY,HARD FM,HARDWARE AND CROCKERY,16/04/2019,000008463382939,129.79,TRAVIS PERKINS
OXFORDSHIRE CC,ENVIRONMENT AND ECONOMY,HARD FM,HARDWARE AND CROCKERY,16/04/2019,000008463382943,14.50,B & Q 1156
OXFORDSHIRE CC,ENVIRONMENT AND ECONOMY,HARD FM,HARDWARE AND CROCKERY,16/04/2019,000008463382945,12.07,B & Q 1156
OXFORDSHIRE CC,ENVIRONMENT AND ECONOMY,HARD FM,HARDWARE AND CROCKERY,16/04/2019,000008463382947,27.28,CITY PLUMBING
OXFORDSHIRE CC,ENVIRONMENT AND ECONOMY,HARD FM,EQUIPMENT,16/04/2019,000008463382949,21.64,WILTS ELECTRICAL
OXFORDSHIRE CC,ENVIRONMENT AND ECONOMY,HARD FM,EQUIPMENT,16/04/2019,000008463382951,18.59,WILTS ELECTRICAL
OXFORDSHIRE CC,ENVIRONMENT AND ECONOMY,HARD FM,EQUIPMENT,16/04/2019,000008463382953,145.28,WWW.HAWCO.CO.UK
OXFORDSHIRE CC,ENVIRONMENT AND ECONOMY,HARD FM,HARDWARE AND CROCKERY,16/04/2019,000008463382955,86.46,SCREWFIX DIRECT
OXFORDSHIRE CC,"CHILDRENS, YOUNG PEOPLE AND FAMILIES",THAME E&A HOME,CATERING PROVISIONS,16/04/2019,000008463382957,14.18,WELCOME BREAK
OXFORDSHIRE CC,ENVIRONMENT AND ECONOMY,HARD FM,HARDWARE AND CROCKERY,16/04/2019,000008463382959,20.42,JOHN NICHOLLS KIDLINGT
OXFORDSHIRE CC,ENVIRONMENT AND ECONOMY,HARD FM,HARDWARE AND CROCKERY,16/04/2019,000008463382961,4.60,B & Q 1156
OXFORDSHIRE CC,ENVIRONMENT AND ECONOMY,COUNTY LIBRARY,GENERAL MAINTENANCE,16/04/2019,000008463382963,34.81, WOLSELEY UK
OXFORDSHIRE CC,SOCIAL AND COMMUNITY SERVICES,CSS - OXFORD,CATERING PROVISIONS,16/04/2019,000008463382965,4.65,ALDI STORES 775-142
OXFORDSHIRE CC,SOCIAL AND COMMUNITY SERVICES,CSS - OXFORD,CATERING PROVISIONS,16/04/2019,000008463382967,20.72,ALDI STORES 775-142
OXFORDSHIRE CC,SOCIAL AND COMMUNITY SERVICES,CSS BICESTER,CATERING PROVISIONS,16/04/2019,000008463382969,49.45,SAINSBURYS (2243)
OXFORDSHIRE CC,"CHILDRENS, YOUNG PEOPLE AND FAMILIES",THAME E&A HOME,CATERING,16/04/2019,000008463382973,38.70,HEAVENLY DESSERTS
OXFORDSHIRE CC,"CHILDRENS, YOUNG PEOPLE AND FAMILIES","	FAM SUPP CITY 1",CATERING PROVISIONS,16/04/2019,000008463382977,44.42,MILK&MORE
OXFORDSHIRE CC,"CHILDRENS, YOUNG PEOPLE AND FAMILIES",STH EARLY HELP-DDCOT,MATERIALS,16/04/2019,000008463382979,264.98,WWW.ARGOS.CO.UK
OXFORDSHIRE CC,SOCIAL AND COMMUNITY SERVICES,CSS WALLINGFORD,CATERING PROVISIONS,16/04/2019,000008463382981,218.21,TESCO STORES 2008
OXFORDSHIRE CC,"CHILDRENS, YOUNG PEOPLE AND FAMILIES","	40 THE MOORS",CATERING PROVISIONS,15/04/2019,000008455770285,24.78,CO-OPERATIVE FOOD
OXFORDSHIRE CC,"CHILDRENS, YOUNG PEOPLE AND FAMILIES","	40 THE MOORS",ENTERTAINMENT EXPENSES,15/04/2019,000008455770287,20.00,HOLLYWOOD BOWL
OXFORDSHIRE CC,CORPORATE CORE,,"SUPPLIES, STATIONERY AND MATERIALS",15/04/2019,000008455770289,33.70,LYRECO UK LTD
OXFORDSHIRE CC,"CHILDRENS, YOUNG PEOPLE AND FAMILIES","	LOOKED AFTER NORTH",OTHER TRANSPORT ARRANGEMENTS,15/04/2019,000008455770291,1.50,3C_ STAFFORD GUILDHALL
OXFORDSHIRE CC,"CHILDRENS, YOUNG PEOPLE AND FAMILIES",EYNSHAM,CATERING PROVISIONS,15/04/2019,000008455770293,10.75,SAINSBURYS 0632
OXFORDSHIRE CC,"CHILDRENS, YOUNG PEOPLE AND FAMILIES","	LEAVING CARE NORTH",CATERING PROVISIONS,15/04/2019,000008455770295,10.00,WM MORRISONS STORE
OXFORDSHIRE CC,"CHILDRENS, YOUNG PEOPLE AND FAMILIES","	RIVERSIDE CENTRE",MATERIALS,15/04/2019,000008455770305,4.99,SMITH AND LOW
OXFORDSHIRE CC,"CHILDRENS, YOUNG PEOPLE AND FAMILIES","	RIVERSIDE CENTRE",HARDWARE AND CROCKERY,15/04/2019,000008455770307,14.99,AWBS
OXFORDSHIRE CC,"CHILDRENS, YOUNG PEOPLE AND FAMILIES",DIDCOT MOVE-ON HOME,CATERING PROVISIONS,15/04/2019,000008455769989,8.70,SAINSBURYS SACAT 2067
OXFORDSHIRE CC,"CHILDRENS, YOUNG PEOPLE AND FAMILIES",DIDCOT MOVE-ON HOME,CATERING,15/04/2019,000008455769997,7.40,COSTA COFFEE 43042160
OXFORDSHIRE CC,SOCIAL AND COMMUNITY SERVICES,DIDCOT MOVE-ON HOME,CATERING PROVISIONS,15/04/2019,000008455770001,19.95,SAINSBURYS 2067
OXFORDSHIRE CC,SOCIAL AND COMMUNITY SERVICES,CSS - OXFORD,MATERIALS,15/04/2019,000008455770035,7.99,AMZNMKTPLACE
OXFORDSHIRE CC,SOCIAL AND COMMUNITY SERVICES,CSS - OXFORD,VEHICLE EQUIPMENT AND EXPENSES - OTHER,15/04/2019,000008455770039,93.77,LSW
OXFORDSHIRE CC,SOCIAL AND COMMUNITY SERVICES,CSS - OXFORD,EDUCATIONAL AND VOCATIONAL TRAINING ,15/04/2019,000008455770043,540.00,WWW.ITONLINEACADEMY.CO
OXFORDSHIRE CC,SOCIAL AND COMMUNITY SERVICES,CSS - OXFORD,EDUCATIONAL AND VOCATIONAL TRAINING ,15/04/2019,000008455770045,540.00,WWW.ITONLINEACADEMY.CO
OXFORDSHIRE CC,SOCIAL AND COMMUNITY SERVICES,CSS - OXFORD,MATERIALS,15/04/2019,000008455770049,7.99,AMAZON PRIME MZ7ZY4HF4
OXFORDSHIRE CC,"CHILDRENS, YOUNG PEOPLE AND FAMILIES","	40 THE MOORS",PAYMENT TO GOVERNMENT DEPARTMENTS,15/04/2019,000008455770051,"1,600.00",PAYPAL  LONDONCAREH
OXFORDSHIRE CC,"CHILDRENS, YOUNG PEOPLE AND FAMILIES",NTH FAM SUPRT-BCSTR,HIRE OF ACCOMMODATION AND FACILITIES,15/04/2019,000008455770309,206.00,PREMIER INN
OXFORDSHIRE CC,"CHILDRENS, YOUNG PEOPLE AND FAMILIES","	LOOKED AFTER CITY 2",OTHER EXPENSES,15/04/2019,000008455770059,154.37,FLYBE.COM VE87GK       0
OXFORDSHIRE CC,"CHILDRENS, YOUNG PEOPLE AND FAMILIES","	LEAVING CARE CITY 2",OTHER TRANSPORT ARRANGEMENTS,15/04/2019,000008455770065,2.50,UNION STREET CAR PARK
OXFORDSHIRE CC,"CHILDRENS, YOUNG PEOPLE AND FAMILIES","	MALTFIELD HOUSE",CLOTHING AND UNIFORMS,15/04/2019,000008455770093,6.00,MATALAN
OXFORDSHIRE CC,"CHILDRENS, YOUNG PEOPLE AND FAMILIES","	MALTFIELD HOUSE",CATERING,15/04/2019,000008455770095,3.40,COSTA COFFEE 43043010
OXFORDSHIRE CC,"CHILDRENS, YOUNG PEOPLE AND FAMILIES","	MALTFIELD HOUSE",CATERING,15/04/2019,000008455770097,5.80,MCDONALDS
OXFORDSHIRE CC,"CHILDRENS, YOUNG PEOPLE AND FAMILIES","	MALTFIELD HOUSE",OTHER TRANSPORT ARRANGEMENTS,15/04/2019,000008455770101,3.50,PARKJOCKEY LONDON
OXFORDSHIRE CC,"CHILDRENS, YOUNG PEOPLE AND FAMILIES","	MALTFIELD HOUSE",ENTERTAINMENT EXPENSES,15/04/2019,000008455770103,30.00,CINEWORLD HWY AT
OXFORDSHIRE CC,"CHILDRENS, YOUNG PEOPLE AND FAMILIES","	MALTFIELD HOUSE",ENTERTAINMENT EXPENSES,15/04/2019,000008455770105,4.10,CINEWORLD HWY CP
OXFORDSHIRE CC,"CHILDRENS, YOUNG PEOPLE AND FAMILIES","	MALTFIELD HOUSE",CLOTHING AND UNIFORMS,15/04/2019,000008455770107,16.00,CLAIRE'S ACCESSORIES
OXFORDSHIRE CC,CORPORATE CORE,"	ORGANISATIONAL DEV'T",MATERIALS,15/04/2019,000008455770113,24.40,AMAZON.CO.UK MZ1Q76HT4
OXFORDSHIRE CC,"CHILDRENS, YOUNG PEOPLE AND FAMILIES",CSS WALLINGFORD,MATERIALS,15/04/2019,000008455769637,3.25,CHAMPION
OXFORDSHIRE CC,CORPORATE CORE,"	COMMUNICATIONS","PUBLICITY, PROMOTIONS AND ADVERTISEMENT",15/04/2019,000008455770311,25.58,SNAP    SNAP ADS
OXFORDSHIRE CC,CORPORATE CORE,"	COMMUNICATIONS","PUBLICITY, PROMOTIONS AND ADVERTISEMENT",15/04/2019,000008455770313,6.13,SNAP    SNAP ADS
OXFORDSHIRE CC,CORPORATE CORE,"	COMMUNICATIONS","PUBLICITY, PROMOTIONS AND ADVERTISEMENT",15/04/2019,000008455770315,26.80,SNAP    SNAP ADS
OXFORDSHIRE CC,CORPORATE CORE,"	COMMUNICATIONS","PUBLICITY, PROMOTIONS AND ADVERTISEMENT",15/04/2019,000008455770317,30.66,SNAP    SNAP ADS
OXFORDSHIRE CC,"CHILDRENS, YOUNG PEOPLE AND FAMILIES",THAME E&A HOME,SUBSCRIPTIONS,15/04/2019,000008455769655,25.80,OXFORD ICE RINK
OXFORDSHIRE CC,"CHILDRENS, YOUNG PEOPLE AND FAMILIES",ADMINISTRATION,PAYMENTS TO TRANSPORT OPERATORS,15/04/2019,000008455769661,18.80,TRAINLINE
OXFORDSHIRE CC,SOCIAL AND COMMUNITY SERVICES,LOOKED AFTER NORTH,OTHER TRANSPORT ARRANGEMENTS,15/04/2019,000008455769663,2.00,INDIGO PARK SERVICES U
OXFORDSHIRE CC,"CHILDRENS, YOUNG PEOPLE AND FAMILIES","	RESIDENTIAL STRATEGY",CATERING,15/04/2019,000008455769665,11.45,CRUMBS SANDWICH BAR
OXFORDSHIRE CC,"CHILDRENS, YOUNG PEOPLE AND FAMILIES","	RESIDENTIAL STRATEGY",CATERING,15/04/2019,000008455769667,8.35,SODEXO LTD
OXFORDSHIRE CC,"CHILDRENS, YOUNG PEOPLE AND FAMILIES","	RESIDENTIAL STRATEGY",CATERING PROVISIONS,15/04/2019,000008455769671,24.75,ASDA  STORES 4396
OXFORDSHIRE CC,"CHILDRENS, YOUNG PEOPLE AND FAMILIES",DIDCOT MOVE-ON HOME,CATERING,15/04/2019,000008455770219,5.05,COSTA COFFEE 43037200
OXFORDSHIRE CC,"CHILDRENS, YOUNG PEOPLE AND FAMILIES",DIDCOT MOVE-ON HOME,CATERING PROVISIONS,15/04/2019,000008455770221,76.17,TESCO STORE 2413
OXFORDSHIRE CC,"CHILDRENS, YOUNG PEOPLE AND FAMILIES",0-5 STDS & PROGRESS,IT SERVICES,15/04/2019,000008455770225,24.90,CREATE.NET BRIGHTON
OXFORDSHIRE CC,"CHILDRENS, YOUNG PEOPLE AND FAMILIES",0-5 STDS & PROGRESS,MATERIALS,15/04/2019,000008455770227,25.42,AMAZON.CO.UK MZ4CA25U4
OXFORDSHIRE CC,"CHILDRENS, YOUNG PEOPLE AND FAMILIES",0-5 STDS & PROGRESS,IT SERVICES,15/04/2019,000008455770229,175.92,CREATE.NET BRIGHTON
OXFORDSHIRE CC,"CHILDRENS, YOUNG PEOPLE AND FAMILIES","	HOME SUPPORT","BOOKS, DVDS AND CDS",15/04/2019,000008455770231,7.99,AMZN MKTP UK MZ9N425L4
OXFORDSHIRE CC,"CHILDRENS, YOUNG PEOPLE AND FAMILIES","	YOUNG CARERS WORKER",CLOTHING AND UNIFORMS,15/04/2019,000008455770233,3.50,WWW.AMBROSEWILSON.CO.U
OXFORDSHIRE CC,"CHILDRENS, YOUNG PEOPLE AND FAMILIES","	YOUNG CARERS WORKER",CLOTHING AND UNIFORMS,15/04/2019,000008455770235,22.00,WWW.AMBROSEWILSON.CO.U
OXFORDSHIRE CC,"CHILDRENS, YOUNG PEOPLE AND FAMILIES","	LEAVING CARE CITY 2",OTHER EXPENSES,15/04/2019,000008455770237,15.09,WH SMITH
OXFORDSHIRE CC,"CHILDRENS, YOUNG PEOPLE AND FAMILIES","	LEAVING CARE CITY 2",OTHER EXPENSES,15/04/2019,000008455770239,23.00,DSA THEORY TEST
OXFORDSHIRE CC,"CHILDRENS, YOUNG PEOPLE AND FAMILIES","	40 THE MOORS",MATERIALS,15/04/2019,000008455770241,71.40,PAYPAL  PARTYMANCOM
OXFORDSHIRE CC,ENVIRONMENT AND ECONOMY,COUNTY LIBRARY,GENERAL MAINTENANCE,15/04/2019,000008455769813,41.30, WOLSELEY UK
OXFORDSHIRE CC,SOCIAL AND COMMUNITY SERVICES,RESIDENTIAL STRATEGY,MATERIALS,15/04/2019,000008455769831,15.60,HOBBYCRAFT
OXFORDSHIRE CC,SOCIAL AND COMMUNITY SERVICES,RESIDENTIAL STRATEGY,ENTERTAINMENT EXPENSES,15/04/2019,000008455769833,59.25,RUSH - HIGH WYCOMBE
OXFORDSHIRE CC,ENVIRONMENT AND ECONOMY,"	TVERC",STATIONERY,15/04/2019,000008455769835,4.29,AMZNMKTPLACE AMAZON.CO
OXFORDSHIRE CC,"CHILDRENS, YOUNG PEOPLE AND FAMILIES","	40 THE MOORS",TELEPHONE - EQUIPMENT,15/04/2019,000008455770243,35.00,WWW.THREE.CO.UK
OXFORDSHIRE CC,"CHILDRENS, YOUNG PEOPLE AND FAMILIES","	LEAVING CARE SOUTH",CLOTHING AND UNIFORMS,15/04/2019,000008455770245,9.00,WWW.SIMPLYBE.CO.UK
OXFORDSHIRE CC,"CHILDRENS, YOUNG PEOPLE AND FAMILIES","	LEAVING CARE SOUTH",CLOTHING AND UNIFORMS,15/04/2019,000008455770247,21.60,WWW.SIMPLYBE.CO.UK
OXFORDSHIRE CC,"CHILDRENS, YOUNG PEOPLE AND FAMILIES","	LEAVING CARE SOUTH",CLOTHING AND UNIFORMS,15/04/2019,000008455770249,14.40,WWW.SIMPLYBE.CO.UK
OXFORDSHIRE CC,"CHILDRENS, YOUNG PEOPLE AND FAMILIES","	LEAVING CARE SOUTH",CLOTHING AND UNIFORMS,15/04/2019,000008455770251,10.80,WWW.SIMPLYBE.CO.UK
OXFORDSHIRE CC,"CHILDRENS, YOUNG PEOPLE AND FAMILIES","	LEAVING CARE SOUTH",CLOTHING AND UNIFORMS,15/04/2019,000008455770253,19.44,WWW.SIMPLYBE.CO.UK
OXFORDSHIRE CC,"CHILDRENS, YOUNG PEOPLE AND FAMILIES","	LEAVING CARE SOUTH",CLOTHING AND UNIFORMS,15/04/2019,000008455770255,4.50,WWW.SIMPLYBE.CO.UK
OXFORDSHIRE CC,"CHILDRENS, YOUNG PEOPLE AND FAMILIES",EYNSHAM,CATERING PROVISIONS,15/04/2019,000008455769879,2.00,CO-OPERATIVE FOOD
OXFORDSHIRE CC,"CHILDRENS, YOUNG PEOPLE AND FAMILIES",THAME E&A HOME,CATERING PROVISIONS,15/04/2019,000008455769889,9.10,SAINSBURYS 2096
OXFORDSHIRE CC,"CHILDRENS, YOUNG PEOPLE AND FAMILIES",THAME E&A HOME,OTHER TRANSPORT ARRANGEMENTS,15/04/2019,000008455769893,3.50,OXPENS CAR PARK
OXFORDSHIRE CC,"CHILDRENS, YOUNG PEOPLE AND FAMILIES",THAME E&A HOME,CATERING PROVISIONS,15/04/2019,000008455769899,11.50,SAINSBURYS SACAT 2096
OXFORDSHIRE CC,"CHILDRENS, YOUNG PEOPLE AND FAMILIES","	FAMILY SUPPORT S'TH2",PAYMENT TO GOVERNMENT DEPARTMENTS,15/04/2019,000008455769907,34.00,DVLA DRIVER ONLINE
OXFORDSHIRE CC,"CHILDRENS, YOUNG PEOPLE AND FAMILIES",WITNEY,CATERING PROVISIONS,15/04/2019,000008455769909,30.95,SAINSBURYS SACAT 0632
OXFORDSHIRE CC,"CHILDRENS, YOUNG PEOPLE AND FAMILIES",WITNEY,DRUGS AND MEDICAL SUPPLIES,15/04/2019,000008455769911,15.23,SUPERDRUG STORES PLC
OXFORDSHIRE CC,"CHILDRENS, YOUNG PEOPLE AND FAMILIES","	FAM SUPP CITY 1",SUBSCRIPTIONS,15/04/2019,000008455769917,43.54,AMFBOWLING.CO.UK
OXFORDSHIRE CC,SOCIAL AND COMMUNITY SERVICES,CSS WALLINGFORD,MATERIALS,15/04/2019,000008455769925,87.33,MAKRO SELF SERVICE
OXFORDSHIRE CC,"CHILDRENS, YOUNG PEOPLE AND FAMILIES",DIDCOT MOVE-ON HOME,MANAGEMENT CONSULTANT FEES,15/04/2019,000008455769949,154.50,TVLICENSING.CO.UK
OXFORDSHIRE CC,"CHILDRENS, YOUNG PEOPLE AND FAMILIES",THAME E&A HOME,VEHICLE FUEL,15/04/2019,000008455769951,3.00,SAINSBURYS PFS0184
OXFORDSHIRE CC,"CHILDRENS, YOUNG PEOPLE AND FAMILIES",THAME E&A HOME,CATERING,15/04/2019,000008455769955,20.90,EURO GARAGES STOCK
OXFORDSHIRE CC,"CHILDRENS, YOUNG PEOPLE AND FAMILIES",THAME E&A HOME,ENTERTAINMENT EXPENSES,15/04/2019,000008455769959,23.00,SWINDON KARTING
OXFORDSHIRE CC,"CHILDRENS, YOUNG PEOPLE AND FAMILIES",THAME E&A HOME,ENTERTAINMENT EXPENSES,15/04/2019,000008455769965,11.00,SWINDON KARTING
OXFORDSHIRE CC,"CHILDRENS, YOUNG PEOPLE AND FAMILIES","	LEAVING CARE SOUTH",CLOTHING AND UNIFORMS,15/04/2019,000008455770257,19.80,WWW.SIMPLYBE.CO.UK
OXFORDSHIRE CC,"CHILDRENS, YOUNG PEOPLE AND FAMILIES","	LEAVING CARE SOUTH",CLOTHING AND UNIFORMS,15/04/2019,000008455770259,14.40,WWW.SIMPLYBE.CO.UK
OXFORDSHIRE CC,"CHILDRENS, YOUNG PEOPLE AND FAMILIES","	LEAVING CARE SOUTH",CLOTHING AND UNIFORMS,15/04/2019,000008455770261,18.00,WWW.SIMPLYBE.CO.UK
OXFORDSHIRE CC,"CHILDRENS, YOUNG PEOPLE AND FAMILIES","	LEAVING CARE SOUTH",PAYMENTS TO VOLUNTARY BODIES,15/04/2019,000008455770263,255.77,ALLPAY  SANCTUARY HOUS
OXFORDSHIRE CC,"CHILDRENS, YOUNG PEOPLE AND FAMILIES","	LEAVING CARE SOUTH",OTHER TRANSPORT ARRANGEMENTS,15/04/2019,000008455770265,1.60,NCP PARK PASS
OXFORDSHIRE CC,"CHILDRENS, YOUNG PEOPLE AND FAMILIES","	LEAVING CARE SOUTH",CATERING,15/04/2019,000008455770267,7.15,MCDONALDS
OXFORDSHIRE CC,CORPORATE CORE,ICT OPERATIONS & MAI,PURCHASE OF IT EQUIPMENT,15/04/2019,000008455770269,19.73,GITHUB.COM
OXFORDSHIRE CC,"CHILDRENS, YOUNG PEOPLE AND FAMILIES",EYNSHAM,CATERING,15/04/2019,000008455770271,14.00,THE SHAKE SHOP
OXFORDSHIRE CC,"CHILDRENS, YOUNG PEOPLE AND FAMILIES",FPT SOUTH/VALE,HIRE OF ACCOMMODATION AND FACILITIES,15/04/2019,000008455770273,68.50,PREMIER INN
OXFORDSHIRE CC,"CHILDRENS, YOUNG PEOPLE AND FAMILIES","	40 THE MOORS",MATERIALS,15/04/2019,000008455770275,44.88,AMAZON.CO.UK MZ6CS9564
OXFORDSHIRE CC,"CHILDRENS, YOUNG PEOPLE AND FAMILIES","	40 THE MOORS",MATERIALS,15/04/2019,000008455770277,34.44,AMAZON.CO.UK MZ7NT55A4
OXFORDSHIRE CC,"CHILDRENS, YOUNG PEOPLE AND FAMILIES","	40 THE MOORS",CATERING PROVISIONS,15/04/2019,000008455770279,69.23,TESCO STORE 2788
OXFORDSHIRE CC,"CHILDRENS, YOUNG PEOPLE AND FAMILIES","	40 THE MOORS",OTHER TRANSPORT ARRANGEMENTS,15/04/2019,000008455770281,25.00,THE OXFORDSHIRE TAXI C
OXFORDSHIRE CC,"CHILDRENS, YOUNG PEOPLE AND FAMILIES","	40 THE MOORS",OTHER TRANSPORT ARRANGEMENTS,15/04/2019,000008455770283,25.00,THE OXFORDSHIRE TAXI C
OXFORDSHIRE CC,"CHILDRENS, YOUNG PEOPLE AND FAMILIES",THAME E&A HOME,ENTERTAINMENT EXPENSES,15/04/2019,000008455769971,40.00,SWINDON KARTING
OXFORDSHIRE CC,"CHILDRENS, YOUNG PEOPLE AND FAMILIES",THAME E&A HOME,ENTERTAINMENT EXPENSES,15/04/2019,000008455769975,6.40,SWINDON KARTING
OXFORDSHIRE CC,CORPORATE CORE,"	PERSONNEL","PUBLICITY, PROMOTIONS AND ADVERTISEMENT",15/04/2019,000008455769979,17.00,FACEBK QBPV2KAJ72
OXFORDSHIRE CC,CORPORATE CORE,"	LEGAL SERVICES",LEGAL COSTS,15/04/2019,000008455770127,22.00,OCC REGISTRARS (M)
OXFORDSHIRE CC,"CHILDRENS, YOUNG PEOPLE AND FAMILIES",THAME E&A HOME,CATERING PROVISIONS,15/04/2019,000008455770133,9.00,SAINSBURYS SACAT 2096
OXFORDSHIRE CC,"CHILDRENS, YOUNG PEOPLE AND FAMILIES",THAME E&A HOME,DRUGS AND MEDICAL SUPPLIES,15/04/2019,000008455770135,5.07,SUPERDRUG STORES PLC
OXFORDSHIRE CC,"CHILDRENS, YOUNG PEOPLE AND FAMILIES",THAME E&A HOME,CATERING PROVISIONS,15/04/2019,000008455770137,18.15,SAINSBURYS SACAT 2096
OXFORDSHIRE CC,"CHILDRENS, YOUNG PEOPLE AND FAMILIES","	LEAVING CARE NORTH",MATERIALS,15/04/2019,000008455770145,200.00,J D SPORTS 681
OXFORDSHIRE CC,"CHILDRENS, YOUNG PEOPLE AND FAMILIES","	LEAVING CARE NORTH",MATERIALS,15/04/2019,000008455770149,7.06,CARD FACTORY
OXFORDSHIRE CC,"CHILDRENS, YOUNG PEOPLE AND FAMILIES","	LOOKED AFTER CITY 2",PAYMENT TO GOVERNMENT DEPARTMENTS,15/04/2019,000008455770153,85.00,HM PASSPORT OFFICE
OXFORDSHIRE CC,"CHILDRENS, YOUNG PEOPLE AND FAMILIES","	RESIDENTIAL STRATEGY",OTHER TRANSPORT ARRANGEMENTS,15/04/2019,000008455770161,3.50,3C_ SODEXO LIMITED - S
OXFORDSHIRE CC,"CHILDRENS, YOUNG PEOPLE AND FAMILIES","	LEAVING CARE NORTH",PAYMENTS TO TRANSPORT OPERATORS,15/04/2019,000008455770169,110.10,CROSS COUNTRY TRAINS
OXFORDSHIRE CC,"CHILDRENS, YOUNG PEOPLE AND FAMILIES","	LEAVING CARE NORTH",CLOTHING AND UNIFORMS,15/04/2019,000008455770171,75.00,PAYPAL  JDSPORTS
OXFORDSHIRE CC,"CHILDRENS, YOUNG PEOPLE AND FAMILIES","	LEAVING CARE NORTH",MATERIALS,15/04/2019,000008455770173,21.48,AMZNMKTPLACE AMAZON.CO
OXFORDSHIRE CC,"CHILDRENS, YOUNG PEOPLE AND FAMILIES","	MALTFIELD HOUSE",CATERING PROVISIONS,15/04/2019,000008455770175,8.25,GREGGS GREATER LEYS
OXFORDSHIRE CC,"CHILDRENS, YOUNG PEOPLE AND FAMILIES","	MALTFIELD HOUSE",OTHER TRANSPORT ARRANGEMENTS,15/04/2019,000008455770177,3.00,WESTGATE OXFORD CAR PA
OXFORDSHIRE CC,"CHILDRENS, YOUNG PEOPLE AND FAMILIES","	MALTFIELD HOUSE",CLOTHING AND UNIFORMS,15/04/2019,000008455770179,6.50,PRIMARK 440
OXFORDSHIRE CC,"CHILDRENS, YOUNG PEOPLE AND FAMILIES","	RESIDENTIAL STRATEGY",CATERING PROVISIONS,15/04/2019,000008455769673,10.59,CO-OPERATIVE FOOD
OXFORDSHIRE CC,"CHILDRENS, YOUNG PEOPLE AND FAMILIES",EYNSHAM,CATERING PROVISIONS,15/04/2019,000008455769679,148.80,TESCO STORES 2008
OXFORDSHIRE CC,"CHILDRENS, YOUNG PEOPLE AND FAMILIES","	MALTFIELD HOUSE",CATERING PROVISIONS,15/04/2019,000008455769683,20.73,CO-OPERATIVE FOOD
OXFORDSHIRE CC,"CHILDRENS, YOUNG PEOPLE AND FAMILIES","	OSCB",MATERIALS,15/04/2019,000008455769695,7.99,AMAZON PRIME MZ40Y7HR4
OXFORDSHIRE CC,SOCIAL AND COMMUNITY SERVICES,CSS - DIDCOT,CATERING PROVISIONS,15/04/2019,000008455769705,23.40,CHURCHILLS
OXFORDSHIRE CC,"CHILDRENS, YOUNG PEOPLE AND FAMILIES",CSS WALLINGFORD,CATERING PROVISIONS,15/04/2019,000008455769709,25.37,WAITROSE 675
OXFORDSHIRE CC,"CHILDRENS, YOUNG PEOPLE AND FAMILIES","	RESIDENTIAL STRATEGY",CATERING,15/04/2019,000008455769715,38.10,OXY ORIENTAL
OXFORDSHIRE CC,"CHILDRENS, YOUNG PEOPLE AND FAMILIES","	MALTFIELD HOUSE",CLOTHING AND UNIFORMS,15/04/2019,000008455770181,17.50,PRIMARK 440
OXFORDSHIRE CC,"CHILDRENS, YOUNG PEOPLE AND FAMILIES","	MALTFIELD HOUSE",CLOTHING AND UNIFORMS,15/04/2019,000008455770183,50.00,MATALAN
OXFORDSHIRE CC,"CHILDRENS, YOUNG PEOPLE AND FAMILIES","	MALTFIELD HOUSE",CATERING,15/04/2019,000008455770185,55.00,NANDOS HIGH WYCOMBE
OXFORDSHIRE CC,"CHILDRENS, YOUNG PEOPLE AND FAMILIES","	MALTFIELD HOUSE",ENTERTAINMENT EXPENSES,15/04/2019,000008455770187,20.00,CINEWORLD HWY CP
OXFORDSHIRE CC,ENVIRONMENT AND ECONOMY,"	LEP",MATERIALS,15/04/2019,000008455770189,57.92,MAILCHIMP    MONTHLY
OXFORDSHIRE CC,SOCIAL AND COMMUNITY SERVICES,CSS WANTAGE,"BOOKS, DVDS AND CDS",15/04/2019,000008455770193,6.25,AMZN MKTP UK MZ82C4MB4
OXFORDSHIRE CC,"CHILDRENS, YOUNG PEOPLE AND FAMILIES","	MALTFIELD HOUSE",MATERIALS,15/04/2019,000008455770195,79.00,AMAZON PRIME MZ0KH5HA4
OXFORDSHIRE CC,"CHILDRENS, YOUNG PEOPLE AND FAMILIES","	LOOKED AFTER SOUTH",VEHICLE FUEL,15/04/2019,000008455769723,43.80,SHELL ILMINSTER 68
OXFORDSHIRE CC,"CHILDRENS, YOUNG PEOPLE AND FAMILIES",WITNEY,VEHICLE FUEL,15/04/2019,000008455769727,2.58,SHELL WITNEY
OXFORDSHIRE CC,SOCIAL AND COMMUNITY SERVICES,CSS - OXFORD,MATERIALS,15/04/2019,000008455769733,12.00,WILKO RETAIL LIMIT
OXFORDSHIRE CC,SOCIAL AND COMMUNITY SERVICES,CSS - OXFORD,MATERIALS,15/04/2019,000008455769739,7.99,AMAZON PRIME MZ83P0594
OXFORDSHIRE CC,ENVIRONMENT AND ECONOMY,HARD FM,EQUIPMENT,15/04/2019,000008455769747,6.90,WILTS ELECTRICAL
OXFORDSHIRE CC,ENVIRONMENT AND ECONOMY,HARD FM,GENERAL MAINTENANCE,15/04/2019,000008455769759,16.63, WOLSELEY UK
OXFORDSHIRE CC,ENVIRONMENT AND ECONOMY,HARD FM,HARDWARE AND CROCKERY,15/04/2019,000008455769765,27.82,SCREWFIX ABINGDON
OXFORDSHIRE CC,ENVIRONMENT AND ECONOMY,HARD FM,HARDWARE AND CROCKERY,15/04/2019,000008455769769,41.44,SCREWFIX OXFORD
OXFORDSHIRE CC,ENVIRONMENT AND ECONOMY,HARD FM,HARDWARE AND CROCKERY,15/04/2019,000008455769775,45.54,CITY ELECTRICAL FA
OXFORDSHIRE CC,ENVIRONMENT AND ECONOMY,HARD FM,EQUIPMENT,15/04/2019,000008455769777,148.12,WILTS ELECTRICAL
OXFORDSHIRE CC,ENVIRONMENT AND ECONOMY,HARD FM,HARDWARE AND CROCKERY,15/04/2019,000008455769781,51.99,SCREWFIX BANBURY
OXFORDSHIRE CC,"CHILDRENS, YOUNG PEOPLE AND FAMILIES",THAME E&A HOME,MATERIALS,15/04/2019,000008455769785,10.11,AMZNMKTPLACE
OXFORDSHIRE CC,"CHILDRENS, YOUNG PEOPLE AND FAMILIES",THAME E&A HOME,MATERIALS,15/04/2019,000008455769789,2.99,AMZNMKTPLACE
OXFORDSHIRE CC,"CHILDRENS, YOUNG PEOPLE AND FAMILIES",THAME E&A HOME,MATERIALS,15/04/2019,000008455769791,18.47,AMZNMKTPLACE
OXFORDSHIRE CC,ENVIRONMENT AND ECONOMY,HARD FM,HARDWARE AND CROCKERY,15/04/2019,000008455769797,22.18,CITY PLUMBING
OXFORDSHIRE CC,ENVIRONMENT AND ECONOMY,HARD FM,HARDWARE AND CROCKERY,15/04/2019,000008455769801,144.00,WICKES OXFORD
OXFORDSHIRE CC,ENVIRONMENT AND ECONOMY,HARD FM,HARDWARE AND CROCKERY,15/04/2019,000008455769805,10.99,SCREWFIX OXFORD
OXFORDSHIRE CC,"CHILDRENS, YOUNG PEOPLE AND FAMILIES","	FAMILY SUPPORT CITY3",OTHER TRANSPORT ARRANGEMENTS,15/04/2019,000008455770201,40.50,TRAINLINE
OXFORDSHIRE CC,"CHILDRENS, YOUNG PEOPLE AND FAMILIES","	40 THE MOORS",MATERIALS,15/04/2019,000008455770205,7.99,AMAZON PRIME MZ13D4HP4
OXFORDSHIRE CC,"CHILDRENS, YOUNG PEOPLE AND FAMILIES","	40 THE MOORS",ENTERTAINMENT EXPENSES,15/04/2019,000008455770207,17.75,TJ S
OXFORDSHIRE CC,SOCIAL AND COMMUNITY SERVICES,CSS - BANBURY,MATERIALS,15/04/2019,000008455770209,13.94,AMZNMKTPLACE
OXFORDSHIRE CC,SOCIAL AND COMMUNITY SERVICES,CSS - BANBURY,MATERIALS,15/04/2019,000008455770211,13.98,AMZNMKTPLACE
OXFORDSHIRE CC,SOCIAL AND COMMUNITY SERVICES,CSS - BANBURY,"BOOKS, DVDS AND CDS",15/04/2019,000008455770213,4.22,AMZN MKTP UK MZ3WY9BW4
OXFORDSHIRE CC,SOCIAL AND COMMUNITY SERVICES,CSS - BANBURY,MATERIALS,15/04/2019,000008455770215,4.71,AMZNMKTPLACE
OXFORDSHIRE CC,ENVIRONMENT AND ECONOMY,HARD FM,EQUIPMENT,12/04/2019,000006319703442,115.24,WILTS ELECTRICAL
OXFORDSHIRE CC,ENVIRONMENT AND ECONOMY,HARD FM,EQUIPMENT,12/04/2019,000006319703444,687.75,WILTS ELECTRICAL
OXFORDSHIRE CC,ENVIRONMENT AND ECONOMY,HARD FM,EQUIPMENT,12/04/2019,000006319703446,287.94,WILTS ELECTRICAL
OXFORDSHIRE CC,ENVIRONMENT AND ECONOMY,HARD FM,EQUIPMENT,12/04/2019,000006319703448,29.49,WILTS ELECTRICAL
OXFORDSHIRE CC,"CHILDRENS, YOUNG PEOPLE AND FAMILIES",THAME E&A HOME,ENTERTAINMENT EXPENSES,12/04/2019,000006319703450,2.00,TJ S
OXFORDSHIRE CC,"CHILDRENS, YOUNG PEOPLE AND FAMILIES",THAME E&A HOME,ENTERTAINMENT EXPENSES,12/04/2019,000006319703452,10.65,TJ S
OXFORDSHIRE CC,"CHILDRENS, YOUNG PEOPLE AND FAMILIES",THAME E&A HOME,CATERING,12/04/2019,000006319703454,10.01,MCDONALDS
OXFORDSHIRE CC,ENVIRONMENT AND ECONOMY,HARD FM,HARDWARE AND CROCKERY,12/04/2019,000006319703456,15.00,BUILDBASE - OXFORD
OXFORDSHIRE CC,"CHILDRENS, YOUNG PEOPLE AND FAMILIES","	LEAVING CARE NORTH",PAYMENTS TO TRANSPORT OPERATORS,12/04/2019,000006319703458,6.80,BANBURY STATION T/O
OXFORDSHIRE CC,SOCIAL AND COMMUNITY SERVICES,CSS BICESTER,MATERIALS,12/04/2019,000006319703460,5.97,B&M RETAIL
OXFORDSHIRE CC,SOCIAL AND COMMUNITY SERVICES,UASC 16&17,OTHER TRANSPORT ARRANGEMENTS,12/04/2019,000006319703462,6.00,OCC ON-STREET PARKING
OXFORDSHIRE CC,SOCIAL AND COMMUNITY SERVICES,UASC 16&17,OTHER TRANSPORT ARRANGEMENTS,12/04/2019,000006319703464,4.00,OCC ON-STREET PARKING
OXFORDSHIRE CC,"CHILDRENS, YOUNG PEOPLE AND FAMILIES","	LEAVING CARE CITY 1",OTHER TRANSPORT ARRANGEMENTS,12/04/2019,000006319703466,3.80,STGCOACH/CTYLINK
OXFORDSHIRE CC,"CHILDRENS, YOUNG PEOPLE AND FAMILIES",CNTL EARLY HELP-RHIL,PAYMENT TO GOVERNMENT DEPARTMENTS,12/04/2019,000006319703468,36.00,WWW.CSKILLS.ORG
OXFORDSHIRE CC,"CHILDRENS, YOUNG PEOPLE AND FAMILIES","	LEAVING CARE SOUTH",HIRE OF ACCOMMODATION AND FACILITIES,12/04/2019,000006319703470,89.00,OXFORD ABINGDON HOTEL
OXFORDSHIRE CC,"CHILDRENS, YOUNG PEOPLE AND FAMILIES",DIDCOT MOVE-ON HOME,CATERING PROVISIONS,12/04/2019,000006319703480,21.96,ICELAND
OXFORDSHIRE CC,"CHILDRENS, YOUNG PEOPLE AND FAMILIES","	LOOKED AFTER CITY 1",PAYMENTS TO TRANSPORT OPERATORS,12/04/2019,000006319703482,169.01,TRAINLINE
OXFORDSHIRE CC,CORPORATE CORE,LIBRARY COLLECTIONS,CATERING PROVISIONS,12/04/2019,000006319703484,72.50,MARKS&SPENCER PLC
OXFORDSHIRE CC,ENVIRONMENT AND ECONOMY,"	ROW MAINT",VEHICLE FUEL,12/04/2019,000006319703486,40.10,ESSO MOTO TAMWORTH
OXFORDSHIRE CC,ENVIRONMENT AND ECONOMY,"	WASTE MNGMNT GEN",PAYMENTS TO TRANSPORT OPERATORS,12/04/2019,000006319703488,19.90,WWW.GWR.COM
OXFORDSHIRE CC,"CHILDRENS, YOUNG PEOPLE AND FAMILIES","	MUSIC UNALLOCABLE",CAR LEASING - PRIVATE RENTALS,12/04/2019,000006319703490,89.10,EURODRIVE
OXFORDSHIRE CC,"CHILDRENS, YOUNG PEOPLE AND FAMILIES","	LEAVING CARE CITY 2",PAYMENTS TO TRANSPORT OPERATORS,12/04/2019,000006319703494,43.29,TRAINLINE
OXFORDSHIRE CC,"CHILDRENS, YOUNG PEOPLE AND FAMILIES","	LOOKED AFTER CITY 2",PAYMENTS TO TRANSPORT OPERATORS,12/04/2019,000006319703496,40.40,GWR DIDCOT PKW SST
OXFORDSHIRE CC,"CHILDRENS, YOUNG PEOPLE AND FAMILIES",CNTL EARLY HELP-RHIL,CATERING PROVISIONS,12/04/2019,000006319703498,6.00,CO-OPERATIVE FOOD
OXFORDSHIRE CC,CORPORATE CORE,"	LEGAL SERVICES",POSTAGE AND DELIVERY,12/04/2019,000006319703500,15.24,HEART OF ENGLAND DISTR
OXFORDSHIRE CC,"CHILDRENS, YOUNG PEOPLE AND FAMILIES","	RESIDENTIAL STRATEGY",HIRE OF ACCOMMODATION AND FACILITIES,12/04/2019,000006319703502,750.00,BUCKINGHAM HOTELS
OXFORDSHIRE CC,"CHILDRENS, YOUNG PEOPLE AND FAMILIES","	RESIDENTIAL STRATEGY",HIRE OF ACCOMMODATION AND FACILITIES,12/04/2019,000006319703504,750.00,BUCKINGHAM HOTELS
OXFORDSHIRE CC,SOCIAL AND COMMUNITY SERVICES,LEAVING CARE NORTH,CATERING PROVISIONS,12/04/2019,000006319703506,3.95,TESCO STORE 2124
OXFORDSHIRE CC,SOCIAL AND COMMUNITY SERVICES,"	MTFC",CATERING,12/04/2019,000006319703508,7.10,RUGRATS & HALF PINTS
OXFORDSHIRE CC,SOCIAL AND COMMUNITY SERVICES,"	MTFC",ENTERTAINMENT EXPENSES,12/04/2019,000006319703510,7.50,RUGRATS AND HALF PINTS
OXFORDSHIRE CC,"CHILDRENS, YOUNG PEOPLE AND FAMILIES","	LOOKED AFTER CITY 2",CATERING PROVISIONS,12/04/2019,000006319703512,8.30,SAINSBURYS SACAT (2243
OXFORDSHIRE CC,ENVIRONMENT AND ECONOMY,"	LEP",EDUCATIONAL AND VOCATIONAL TRAINING ,12/04/2019,000006319703514,84.00,KEBLE COLLEGE
OXFORDSHIRE CC,ENVIRONMENT AND ECONOMY,"	FLEET OPERATIONS",TELEPHONE - EQUIPMENT,12/04/2019,000006319703520,64.76,BT BILL PAYMENT 2
OXFORDSHIRE CC,"CHILDRENS, YOUNG PEOPLE AND FAMILIES","	FAMILY SUPPORT CITY3",OTHER TRANSPORT ARRANGEMENTS,12/04/2019,000006319703522,27.83,TRAINLINE
OXFORDSHIRE CC,"CHILDRENS, YOUNG PEOPLE AND FAMILIES",CNTL EARLY HELP-BRTN,FURNITURE,12/04/2019,000006319703524,511.94,WWW.ARGOS.CO.UK
OXFORDSHIRE CC,"CHILDRENS, YOUNG PEOPLE AND FAMILIES","	LOOKED AFTER CITY 1",ENTERTAINMENT EXPENSES,12/04/2019,000006319703526,4.99,VUE ENTERTAINMENT LTD
OXFORDSHIRE CC,"CHILDRENS, YOUNG PEOPLE AND FAMILIES","	LOOKED AFTER CITY 1",CATERING,12/04/2019,000006319703528,2.08,MCDONALDS
OXFORDSHIRE CC,SOCIAL AND COMMUNITY SERVICES,CSS - BANBURY,MATERIALS,12/04/2019,000006319703530,64.12,AMZNMKTPLACE
OXFORDSHIRE CC,ENVIRONMENT AND ECONOMY,OPERATIONS,GENERAL MAINTENANCE,12/04/2019,000006319703532,306.00,GRUNDON WASTE MANAGEME
OXFORDSHIRE CC,"CHILDRENS, YOUNG PEOPLE AND FAMILIES","	LOOKED AFTER SOUTH",CATERING,12/04/2019,000006319703534,6.40,COSTA COFFEE
OXFORDSHIRE CC,"CHILDRENS, YOUNG PEOPLE AND FAMILIES","	LOOKED AFTER SOUTH",ENTERTAINMENT EXPENSES,12/04/2019,000006319703536,5.19,HOLLYWOOD BOWL
OXFORDSHIRE CC,"CHILDRENS, YOUNG PEOPLE AND FAMILIES",KINGFISHER,CATERING,12/04/2019,000006319703538,8.25,COSTA TEMPLAR SQUARE O
OXFORDSHIRE CC,"CHILDRENS, YOUNG PEOPLE AND FAMILIES",0-5 STDS & PROGRESS,"SUPPLIES, STATIONERY AND MATERIALS",12/04/2019,000006319703540,41.94,WWW.TTS-GROUPS.CO.UK
OXFORDSHIRE CC,"CHILDRENS, YOUNG PEOPLE AND FAMILIES",EYNSHAM,CATERING PROVISIONS,12/04/2019,000006319703542,4.55,CO-OPERATIVE FOOD
OXFORDSHIRE CC,ENVIRONMENT AND ECONOMY,MEMBERS SERVICES,CATERING PROVISIONS,12/04/2019,000006319703544,4.00,SAINSBURYS SACAT 0730
OXFORDSHIRE CC,"CHILDRENS, YOUNG PEOPLE AND FAMILIES","	LEAVING CARE NORTH",PAYMENTS TO TRANSPORT OPERATORS,12/04/2019,000006319703546,7.22,TRAINLINE
OXFORDSHIRE CC,"CHILDRENS, YOUNG PEOPLE AND FAMILIES","	LEAVING CARE NORTH",PAYMENTS TO TRANSPORT OPERATORS,12/04/2019,000006319703548,21.88,TRAINLINE
OXFORDSHIRE CC,"CHILDRENS, YOUNG PEOPLE AND FAMILIES","	LEAVING CARE NORTH",REGISTRATION AND INSPECTION FEES,12/04/2019,000006319703550,33.00,OCC REGISTRARS (M)
OXFORDSHIRE CC,"CHILDRENS, YOUNG PEOPLE AND FAMILIES","	LEAVING CARE NORTH",REGISTRATION AND INSPECTION FEES,12/04/2019,000006319703552,33.00,OCC REGISTRARS (M)
OXFORDSHIRE CC,"CHILDRENS, YOUNG PEOPLE AND FAMILIES","	LOOKED AFTER CITY 2",OTHER TRANSPORT ARRANGEMENTS,12/04/2019,000006319703554,83.60,GWR OXFORD SST
OXFORDSHIRE CC,"CHILDRENS, YOUNG PEOPLE AND FAMILIES",UASC POST 18,OTHER TRANSPORT ARRANGEMENTS,12/04/2019,000006319703556,28.00,STAGECOACH OXFORD
OXFORDSHIRE CC,"CHILDRENS, YOUNG PEOPLE AND FAMILIES",UASC POST 18,PAYMENTS TO TRANSPORT OPERATORS,12/04/2019,000006319703558,12.60,NEW SOUTHERN RAILW
OXFORDSHIRE CC,"CHILDRENS, YOUNG PEOPLE AND FAMILIES","	40 THE MOORS",MATERIALS,12/04/2019,000006319703560,54.40,WWW.GRAFF-CITY.COM
OXFORDSHIRE CC,"CHILDRENS, YOUNG PEOPLE AND FAMILIES","	40 THE MOORS",MATERIALS,12/04/2019,000006319703562,131.91,WWW.ARGOS.CO.UK
OXFORDSHIRE CC,"CHILDRENS, YOUNG PEOPLE AND FAMILIES",WITNEY,CATERING,12/04/2019,000006319703564,5.99,TOSSED
OXFORDSHIRE CC,"CHILDRENS, YOUNG PEOPLE AND FAMILIES",WITNEY,OTHER TRANSPORT ARRANGEMENTS,12/04/2019,000006319703566,6.00,WARWICK CASTLE
OXFORDSHIRE CC,"CHILDRENS, YOUNG PEOPLE AND FAMILIES",WITNEY,ENTERTAINMENT EXPENSES,12/04/2019,000006319703568,2.50,WARWICK CASTLE
OXFORDSHIRE CC,"CHILDRENS, YOUNG PEOPLE AND FAMILIES",WITNEY,ENTERTAINMENT EXPENSES,12/04/2019,000006319703570,7.05,WARWICK CASTLE
OXFORDSHIRE CC,"CHILDRENS, YOUNG PEOPLE AND FAMILIES",WITNEY,ENTERTAINMENT EXPENSES,12/04/2019,000006319703572,132.00,WARWICK CASTLE
OXFORDSHIRE CC,"CHILDRENS, YOUNG PEOPLE AND FAMILIES",WITNEY,CATERING,12/04/2019,000006319703574,26.82,SUBWAY
OXFORDSHIRE CC,"CHILDRENS, YOUNG PEOPLE AND FAMILIES",FPT SOUTH/VALE,PAYMENTS TO TRANSPORT OPERATORS,12/04/2019,000006319703576,51.59,TRAINLINE
OXFORDSHIRE CC,"CHILDRENS, YOUNG PEOPLE AND FAMILIES",THAME E&A HOME,DRUGS AND MEDICAL SUPPLIES,12/04/2019,000006319703578,.95,"BOOTS,THAME"
OXFORDSHIRE CC,"CHILDRENS, YOUNG PEOPLE AND FAMILIES",THAME E&A HOME,SUBSCRIPTIONS,12/04/2019,000006319703580,38.70,AQUA VALE SWIMMING
OXFORDSHIRE CC,CORPORATE CORE,,"SUPPLIES, STATIONERY AND MATERIALS",12/04/2019,000006319703582,36.98,LYRECO UK LTD
OXFORDSHIRE CC,CORPORATE CORE,,"SUPPLIES, STATIONERY AND MATERIALS",12/04/2019,000006319703584,24.65,LYRECO UK LTD
OXFORDSHIRE CC,CORPORATE CORE,,"SUPPLIES, STATIONERY AND MATERIALS",12/04/2019,000006319703586,3.48,LYRECO UK LTD
OXFORDSHIRE CC,CORPORATE CORE,,"SUPPLIES, STATIONERY AND MATERIALS",12/04/2019,000006319703588,121.01,LYRECO UK LTD
OXFORDSHIRE CC,CORPORATE CORE,,"SUPPLIES, STATIONERY AND MATERIALS",12/04/2019,000006319703590,183.24,LYRECO UK LTD
OXFORDSHIRE CC,"CHILDRENS, YOUNG PEOPLE AND FAMILIES","	LOOKED AFTER NORTH",OTHER TRANSPORT ARRANGEMENTS,12/04/2019,000006319703592,6.40,M6 TOLL
OXFORDSHIRE CC,"CHILDRENS, YOUNG PEOPLE AND FAMILIES","	LOOKED AFTER NORTH",OTHER TRANSPORT ARRANGEMENTS,12/04/2019,000006319703594,6.40,M6 TOLL
OXFORDSHIRE CC,"CHILDRENS, YOUNG PEOPLE AND FAMILIES","	LOOKED AFTER NORTH",VEHICLE FUEL,12/04/2019,000006319703596,35.02,SHELL ECCLESHALL
OXFORDSHIRE CC,"CHILDRENS, YOUNG PEOPLE AND FAMILIES",UASC 16&17,DRUGS AND MEDICAL SUPPLIES,12/04/2019,000006319703598,16.38,"BOOTS,OXFORD"
OXFORDSHIRE CC,ENVIRONMENT AND ECONOMY,"	SAMUELSON HOUSE",CATERING PROVISIONS,12/04/2019,000006319703600,7.00,WM MORRISONS STORE
OXFORDSHIRE CC,"CHILDRENS, YOUNG PEOPLE AND FAMILIES",FAMILY SUPPORT 2,PAYMENTS TO TRANSPORT OPERATORS,12/04/2019,000006319703602,13.40,WWW.GWR.COM
OXFORDSHIRE CC,"CHILDRENS, YOUNG PEOPLE AND FAMILIES",FAMILY SUPPORT 2,PAYMENTS TO TRANSPORT OPERATORS,12/04/2019,000006319703604,6.80,WWW.GWR.COM
OXFORDSHIRE CC,"CHILDRENS, YOUNG PEOPLE AND FAMILIES",FAMILY SUPPORT 2,MATERIALS,12/04/2019,000006319703606,126.90,SENSORY DIRECT
OXFORDSHIRE CC,"CHILDRENS, YOUNG PEOPLE AND FAMILIES","	LOOKED AFTER SOUTH",VEHICLE FUEL,12/04/2019,000006319703608,24.85,TESCO PAYAT PUMP 3700
OXFORDSHIRE CC,CORPORATE CORE,"	COMMUNICATIONS","PUBLICITY, PROMOTIONS AND ADVERTISEMENT",12/04/2019,000006319703612,25.73,SNAP    SNAP ADS
OXFORDSHIRE CC,"CHILDRENS, YOUNG PEOPLE AND FAMILIES",NTH FAM SUPRT-BCSTR,PAYMENT TO GOVERNMENT DEPARTMENTS,12/04/2019,000006319703378,262.50,DVLA VEHICLE TAX
OXFORDSHIRE CC,SOCIAL AND COMMUNITY SERVICES,CSS - BANBURY,CATERING PROVISIONS,12/04/2019,000006319703380,20.02,TESCO STORE 2064
OXFORDSHIRE CC,SOCIAL AND COMMUNITY SERVICES,LOOKED AFTER SOUTH,POSTAGE AND DELIVERY,12/04/2019,000006319703404,3.80,POST OFFICE COUNTER
OXFORDSHIRE CC,"CHILDRENS, YOUNG PEOPLE AND FAMILIES",ATV ADOPTION WOODLEY,MATERIALS,12/04/2019,000006319703412,35.00,AMAZON.CO.UK MZ1MV35M4
OXFORDSHIRE CC,"CHILDRENS, YOUNG PEOPLE AND FAMILIES","	MALTFIELD HOUSE",CATERING,12/04/2019,000006319703414,13.90,OLD CROWN HOTEL
OXFORDSHIRE CC,"CHILDRENS, YOUNG PEOPLE AND FAMILIES","	MALTFIELD HOUSE",CATERING,12/04/2019,000006319703416,8.80,MCDONALDS
OXFORDSHIRE CC,"CHILDRENS, YOUNG PEOPLE AND FAMILIES",THAME E&A HOME,VEHICLE FUEL,12/04/2019,000006319703418,13.23,THAME BP SF CONNECT
OXFORDSHIRE CC,ENVIRONMENT AND ECONOMY,HARD FM,HARDWARE AND CROCKERY,12/04/2019,000006319703420,2.99,CITY ELECTRICAL FA
OXFORDSHIRE CC,ENVIRONMENT AND ECONOMY,HARD FM,GENERAL MAINTENANCE,12/04/2019,000006319703422,521.69, WOLSELEY UK
OXFORDSHIRE CC,ENVIRONMENT AND ECONOMY,HARD FM,GENERAL MAINTENANCE,12/04/2019,000006319703424,248.64, WOLSELEY UK
OXFORDSHIRE CC,ENVIRONMENT AND ECONOMY,HARD FM,GENERAL MAINTENANCE,12/04/2019,000006319703426,370.93, WOLSELEY UK
OXFORDSHIRE CC,ENVIRONMENT AND ECONOMY,HARD FM,GENERAL MAINTENANCE,12/04/2019,000006319703428,15.64, WOLSELEY UK
OXFORDSHIRE CC,ENVIRONMENT AND ECONOMY,HARD FM,HARDWARE AND CROCKERY,12/04/2019,000006319703430,22.12,JOHN NICHOLLS KIDLINGT
OXFORDSHIRE CC,ENVIRONMENT AND ECONOMY,HARD FM,GENERAL MAINTENANCE,12/04/2019,000006319703432,89.94, WOLSELEY UK
OXFORDSHIRE CC,ENVIRONMENT AND ECONOMY,HARD FM,EQUIPMENT,12/04/2019,000006319703434,94.32,BSS OXFORD
OXFORDSHIRE CC,ENVIRONMENT AND ECONOMY,HARD FM,HARDWARE AND CROCKERY,12/04/2019,000006319703436,19.98,SCREWFIX OXFORD BOTLEY
OXFORDSHIRE CC,ENVIRONMENT AND ECONOMY,HARD FM,HARDWARE AND CROCKERY,12/04/2019,000006319703438,8.90,SCREWFIX ABINGDON
OXFORDSHIRE CC,ENVIRONMENT AND ECONOMY,HARD FM,EQUIPMENT,12/04/2019,000006319703440,878.32,WILTS ELECTRICAL
OXFORDSHIRE CC,"CHILDRENS, YOUNG PEOPLE AND FAMILIES","	FAMILY SUPPORT CITY3",OTHER TRANSPORT ARRANGEMENTS,11/04/2019,000006314268996,4.00,WESTGATE OXFORD CAR PA
OXFORDSHIRE CC,"CHILDRENS, YOUNG PEOPLE AND FAMILIES","	FAMILY SUPPORT CITY3",CATERING PROVISIONS,11/04/2019,000006314268998,30.00,ASDA SUPERSTORE
OXFORDSHIRE CC,SOCIAL AND COMMUNITY SERVICES,LOOKED AFTER NORTH,VEHICLE FUEL,11/04/2019,000006314269000,31.94,BP FAMILY FARM CONNECT
OXFORDSHIRE CC,SOCIAL AND COMMUNITY SERVICES,LOOKED AFTER NORTH,ENTERTAINMENT EXPENSES,11/04/2019,000006314269002,23.00,REBOUNDREVOLUTION.CO.U
OXFORDSHIRE CC,"CHILDRENS, YOUNG PEOPLE AND FAMILIES","	RESIDENTIAL STRATEGY",CATERING PROVISIONS,11/04/2019,000006314269006,2.44,CO-OPERATIVE FOOD
OXFORDSHIRE CC,"CHILDRENS, YOUNG PEOPLE AND FAMILIES",EYNSHAM,ENTERTAINMENT EXPENSES,11/04/2019,000006314269008,17.45,CINEWORLD WIT CP
OXFORDSHIRE CC,CORPORATE CORE,INCOME TEAM,REGISTRATION AND INSPECTION FEES,11/04/2019,000006314269190,11.00,OCC REGISTRARS (M)
OXFORDSHIRE CC,"CHILDRENS, YOUNG PEOPLE AND FAMILIES","	FAMILY SUPPORT CITY3",CATERING PROVISIONS,11/04/2019,000006314269192,15.16,TESCO STORE 2994
OXFORDSHIRE CC,"CHILDRENS, YOUNG PEOPLE AND FAMILIES",NTH FAM SUPRT-BCSTR,"SUPPLIES, STATIONERY AND MATERIALS",11/04/2019,000006314269194,46.80,EB  COOPER SCHOOL HOLI
OXFORDSHIRE CC,CORPORATE CORE,"	COMMUNICATIONS","PUBLICITY, PROMOTIONS AND ADVERTISEMENT",11/04/2019,000006314269196,12.96,SNAP    SNAP ADS
OXFORDSHIRE CC,"CHILDRENS, YOUNG PEOPLE AND FAMILIES",WITNEY,MATERIALS,11/04/2019,000006314269010,5.99,AMZNMKTPLACE
OXFORDSHIRE CC,"CHILDRENS, YOUNG PEOPLE AND FAMILIES",WITNEY,CATERING PROVISIONS,11/04/2019,000006314269012,2.10,SAINSBURYS SACAT 0632
OXFORDSHIRE CC,"CHILDRENS, YOUNG PEOPLE AND FAMILIES",WITNEY,CATERING PROVISIONS,11/04/2019,000006314269014,1.40,SAINSBURYS SACAT 0632
OXFORDSHIRE CC,"CHILDRENS, YOUNG PEOPLE AND FAMILIES",WITNEY,MATERIALS,11/04/2019,000006314269016,29.45,AMAZON.CO.UK MZ8YL0MJ4
OXFORDSHIRE CC,"CHILDRENS, YOUNG PEOPLE AND FAMILIES",THAME E&A HOME,CATERING PROVISIONS,11/04/2019,000006314269022,35.35,ASDA SUPERSTORE
OXFORDSHIRE CC,"CHILDRENS, YOUNG PEOPLE AND FAMILIES",WITNEY,CATERING PROVISIONS,11/04/2019,000006314269024,18.05,SAINSBURYS SACAT 0632
OXFORDSHIRE CC,ENVIRONMENT AND ECONOMY,"	LEP",RECRUTIMENT EXPENSES (EXCL. ADVERTISING),11/04/2019,000006314269026,42.33,WORKABLE
OXFORDSHIRE CC,"CHILDRENS, YOUNG PEOPLE AND FAMILIES","	NCS",IT SOFTWARE,11/04/2019,000006314269028,18.01,FASTSPRING
OXFORDSHIRE CC,"CHILDRENS, YOUNG PEOPLE AND FAMILIES","	SM QUALITY ASSURANCE",PAYMENTS TO TRANSPORT OPERATORS,11/04/2019,000006314269030,74.80,TRAINLINE
OXFORDSHIRE CC,"CHILDRENS, YOUNG PEOPLE AND FAMILIES","	LOOKED AFTER CITY 1",VEHICLE FUEL,11/04/2019,000006314269032,38.00,BP THINFORD NORTH
OXFORDSHIRE CC,ENVIRONMENT AND ECONOMY,HARD FM,HARDWARE AND CROCKERY,11/04/2019,000006314269034,60.05,JOHN NICHOLLS WITNEY P
OXFORDSHIRE CC,ENVIRONMENT AND ECONOMY,HARD FM,FURNITURE,11/04/2019,000006314269036,500.00,REYNOLDS BLINDS
OXFORDSHIRE CC,ENVIRONMENT AND ECONOMY,HARD FM,FURNITURE,11/04/2019,000006314269038,650.00,REYNOLDS BLINDS
OXFORDSHIRE CC,ENVIRONMENT AND ECONOMY,HARD FM,GENERAL MAINTENANCE,11/04/2019,000006314269040,179.26, WOLSELEY UK
OXFORDSHIRE CC,ENVIRONMENT AND ECONOMY,HARD FM,GENERAL MAINTENANCE,11/04/2019,000006314269042,53.90, WOLSELEY UK
OXFORDSHIRE CC,ENVIRONMENT AND ECONOMY,HARD FM,GENERAL MAINTENANCE,11/04/2019,000006314269044,53.10, WOLSELEY UK
OXFORDSHIRE CC,ENVIRONMENT AND ECONOMY,HARD FM,EQUIPMENT,11/04/2019,000006314269046,28.80,TLC SOUTHERN LTD
OXFORDSHIRE CC,ENVIRONMENT AND ECONOMY,HARD FM,EQUIPMENT,11/04/2019,000006314269048,47.58,WILTS ELECTRICAL
OXFORDSHIRE CC,ENVIRONMENT AND ECONOMY,HARD FM,EQUIPMENT,11/04/2019,000006314269050,67.17,WILTS ELECTRICAL
OXFORDSHIRE CC,ENVIRONMENT AND ECONOMY,HARD FM,MATERIALS,11/04/2019,000006314269052,7.99,AMAZON PRIME MZ5PW7VH4
OXFORDSHIRE CC,ENVIRONMENT AND ECONOMY,COUNTY LIBRARY,GENERAL MAINTENANCE,11/04/2019,000006314269054,40.94, WOLSELEY UK
OXFORDSHIRE CC,ENVIRONMENT AND ECONOMY,WASTE REDUCTION GEN,ENTERTAINMENT EXPENSES,11/04/2019,000006314269056,73.77,TRAINLINE.COM
OXFORDSHIRE CC,"CHILDRENS, YOUNG PEOPLE AND FAMILIES","	LEAVING CARE CITY 1",OTHER EXPENSES,11/04/2019,000006314269058,189.27,CURRYS OXFORD 2401
OXFORDSHIRE CC,"CHILDRENS, YOUNG PEOPLE AND FAMILIES",CNTL EARLY HELP-RHIL,PAYMENT TO GOVERNMENT DEPARTMENTS,11/04/2019,000006314269060,85.00,OXFORD DISTRICT SERVIC
OXFORDSHIRE CC,"CHILDRENS, YOUNG PEOPLE AND FAMILIES","	LEAVING CARE SOUTH",HIRE OF ACCOMMODATION AND FACILITIES,11/04/2019,000006314269062,87.20,B.COM 115979-JPDSY OXF
OXFORDSHIRE CC,ENTERPRISEVC,OTFC TEAM,CATERING,11/04/2019,000006314269064,10.50,BLENHEIM PALACE(SEARCY
OXFORDSHIRE CC,ENTERPRISEVC,OTFC TEAM,MATERIALS,11/04/2019,000006314269066,24.30,BLENHEIM PALACE
OXFORDSHIRE CC,ENTERPRISEVC,OTFC TEAM,MATERIALS,11/04/2019,000006314269068,16.00,BLENHEIM VISITORS
OXFORDSHIRE CC,"CHILDRENS, YOUNG PEOPLE AND FAMILIES",DIDCOT MOVE-ON HOME,PAYMENTS TO TRANSPORT OPERATORS,11/04/2019,000006314269070,10.10,GWR DIDCOT PKWY TO
OXFORDSHIRE CC,"CHILDRENS, YOUNG PEOPLE AND FAMILIES",THAME E&A HOME,MATERIALS,11/04/2019,000006314269072,7.99,AMAZON PRIME MZ53F9VE4
OXFORDSHIRE CC,"CHILDRENS, YOUNG PEOPLE AND FAMILIES","	MUSIC UNALLOCABLE",HARDWARE AND CROCKERY,11/04/2019,000006314269074,319.91,BLANCHFORD & CO
OXFORDSHIRE CC,SOCIAL AND COMMUNITY SERVICES,DIDCOT MOVE-ON HOME,CATERING PROVISIONS,11/04/2019,000006314269076,25.90,SAINSBURYS 2067
OXFORDSHIRE CC,ENVIRONMENT AND ECONOMY,"	COUNTY HALL",EQUIPMENT,11/04/2019,000006314269080,19.84,WWW.BUYSPARES.CO.UK
OXFORDSHIRE CC,SOCIAL AND COMMUNITY SERVICES,CORP PROC SERVICE,PAYMENTS TO TRANSPORT OPERATORS,11/04/2019,000006314269082,127.50,WARWICK PWAY SSTP
OXFORDSHIRE CC,"CHILDRENS, YOUNG PEOPLE AND FAMILIES","	LEAVING CARE CITY 2",OTHER TRANSPORT ARRANGEMENTS,11/04/2019,000006314269084,4.38,MKC PARKING RINGGO
OXFORDSHIRE CC,"CHILDRENS, YOUNG PEOPLE AND FAMILIES","	MALTFIELD HOUSE",TELEPHONE - EQUIPMENT,11/04/2019,000006314269086,10.00,GIFFGAFF
OXFORDSHIRE CC,"CHILDRENS, YOUNG PEOPLE AND FAMILIES","	RIVERSIDE CENTRE",CATERING PROVISIONS,11/04/2019,000006314269088,5.25,TESCO STORES 4377
OXFORDSHIRE CC,"CHILDRENS, YOUNG PEOPLE AND FAMILIES","	LOOKED AFTER CITY 2",MATERIALS,11/04/2019,000006314269090,27.96,AMZNMKTPLACE AMAZON.CO
OXFORDSHIRE CC,"CHILDRENS, YOUNG PEOPLE AND FAMILIES","	LOOKED AFTER CITY 2",MATERIALS,11/04/2019,000006314269092,39.88,AMZNMKTPLACE AMAZON.CO
OXFORDSHIRE CC,"CHILDRENS, YOUNG PEOPLE AND FAMILIES","	MALTFIELD HOUSE",TELEPHONE - EQUIPMENT,11/04/2019,000006314269098,10.00,GIFFGAFF
OXFORDSHIRE CC,SOCIAL AND COMMUNITY SERVICES,"	MTFC",CATERING,11/04/2019,000006314269100,9.90,BLENHEIM PALACE(SEARCY
OXFORDSHIRE CC,"CHILDRENS, YOUNG PEOPLE AND FAMILIES","	LEAVING CARE NORTH",CATERING,11/04/2019,000006314269106,43.64,FRANKIE & BENNYS 5639
OXFORDSHIRE CC,"CHILDRENS, YOUNG PEOPLE AND FAMILIES",KINGFISHER,HIRE OF ACCOMMODATION AND FACILITIES,11/04/2019,000006314269108,394.50,PREMIER INN
OXFORDSHIRE CC,SOCIAL AND COMMUNITY SERVICES,CSS WANTAGE,"BOOKS, DVDS AND CDS",11/04/2019,000006314269112,23.95,AMZN MKTP UK MZ65O9V14
OXFORDSHIRE CC,SOCIAL AND COMMUNITY SERVICES,CSS WANTAGE,MATERIALS,11/04/2019,000006314269114,3.99,AMZNMKTPLACE
OXFORDSHIRE CC,SOCIAL AND COMMUNITY SERVICES,CSS WANTAGE,MATERIALS,11/04/2019,000006314269116,9.50,AMZNMKTPLACE
OXFORDSHIRE CC,SOCIAL AND COMMUNITY SERVICES,CSS WANTAGE,IT SOFTWARE,11/04/2019,000006314269118,14.95,GLOWTOPIA
OXFORDSHIRE CC,SOCIAL AND COMMUNITY SERVICES,CSS WANTAGE,MATERIALS,11/04/2019,000006314269120,6.29,AMZNMKTPLACE
OXFORDSHIRE CC,"CHILDRENS, YOUNG PEOPLE AND FAMILIES",CNTL EARLY HELP-BRTN,OTHER EXPENSES,11/04/2019,000006314269124,37.63,AMZNMKTPLACE
OXFORDSHIRE CC,"CHILDRENS, YOUNG PEOPLE AND FAMILIES","	40 THE MOORS",ENTERTAINMENT EXPENSES,11/04/2019,000006314269126,25.00,REBOUNDREVOLUTION.CO.U
OXFORDSHIRE CC,SOCIAL AND COMMUNITY SERVICES,CSS - DIDCOT,CATERING PROVISIONS,11/04/2019,000006314269130,1.80,CO-OP FOOD
OXFORDSHIRE CC,"CHILDRENS, YOUNG PEOPLE AND FAMILIES","	HOME SUPPORT",MATERIALS,11/04/2019,000006314269136,18.48,AMZNMKTPLACE AMAZON.CO
OXFORDSHIRE CC,"CHILDRENS, YOUNG PEOPLE AND FAMILIES",BULLINGDON PRISON,CATERING PROVISIONS,11/04/2019,000006314269138,196.42,MARTIN MCCOLL
OXFORDSHIRE CC,"CHILDRENS, YOUNG PEOPLE AND FAMILIES","	LEAVING CARE NORTH",POSTAGE AND DELIVERY,11/04/2019,000006314269140,136.50,THE POST OFFICE
OXFORDSHIRE CC,"CHILDRENS, YOUNG PEOPLE AND FAMILIES","	LEAVING CARE NORTH",REGISTRATION AND INSPECTION FEES,11/04/2019,000006314269142,22.00,OCC REGISTRARS (M)
OXFORDSHIRE CC,"CHILDRENS, YOUNG PEOPLE AND FAMILIES","	LEAVING CARE NORTH",CATERING PROVISIONS,11/04/2019,000006314269144,2.00,WM MORRISONS STORE
OXFORDSHIRE CC,"CHILDRENS, YOUNG PEOPLE AND FAMILIES","	LEAVING CARE NORTH",PAYMENT TO GOVERNMENT DEPARTMENTS,11/04/2019,000006314269146,-7.50,GEN REGISTER OFFICE
OXFORDSHIRE CC,"CHILDRENS, YOUNG PEOPLE AND FAMILIES","	LEAVING CARE SOUTH",CATERING,11/04/2019,000006314269148,7.42,MCDONALDS
OXFORDSHIRE CC,"CHILDRENS, YOUNG PEOPLE AND FAMILIES","	LEAVING CARE SOUTH",SUBSCRIPTIONS,11/04/2019,000006314269150,40.37,AMFBOWLING.CO.UK
OXFORDSHIRE CC,"CHILDRENS, YOUNG PEOPLE AND FAMILIES",WITNEY,CATERING PROVISIONS,11/04/2019,000006314269152,46.30,SAINSBURYS 0632
OXFORDSHIRE CC,"CHILDRENS, YOUNG PEOPLE AND FAMILIES",UASC POST 18,ENTERTAINMENT EXPENSES,11/04/2019,000006314269154,40.29,FEEL FIT GYM
OXFORDSHIRE CC,"CHILDRENS, YOUNG PEOPLE AND FAMILIES",UASC POST 18,FURNITURE,11/04/2019,000006314269156,55.95,WILKO RETAIL LIMIT
OXFORDSHIRE CC,"CHILDRENS, YOUNG PEOPLE AND FAMILIES",EYNSHAM,CATERING PROVISIONS,11/04/2019,000006314269158,18.04,ALDI STORES 775-141
OXFORDSHIRE CC,"CHILDRENS, YOUNG PEOPLE AND FAMILIES",FAMILY SUPPORT 2,PAYMENTS TO TRANSPORT OPERATORS,11/04/2019,000006314269160,39.30,WWW.GWR.COM
OXFORDSHIRE CC,"CHILDRENS, YOUNG PEOPLE AND FAMILIES",FAMILY SUPPORT 2,PAYMENTS TO TRANSPORT OPERATORS,11/04/2019,000006314269162,39.30,WWW.GWR.COM
OXFORDSHIRE CC,"CHILDRENS, YOUNG PEOPLE AND FAMILIES","	LEAVING CARE NORTH",CATERING,11/04/2019,000006314269164,5.54,WEST CONRWALL
OXFORDSHIRE CC,"CHILDRENS, YOUNG PEOPLE AND FAMILIES","	LEAVING CARE NORTH",PAYMENTS TO TRANSPORT OPERATORS,11/04/2019,000006314269166,46.20,BANBURY SSTP
OXFORDSHIRE CC,"CHILDRENS, YOUNG PEOPLE AND FAMILIES","	LEAVING CARE NORTH",CATERING PROVISIONS,11/04/2019,000006314269168,57.02,WWW.ICELAND.CO.UK
OXFORDSHIRE CC,"CHILDRENS, YOUNG PEOPLE AND FAMILIES","	LOOKED AFTER SOUTH",MATERIALS,11/04/2019,000006314269170,2.81,AMZNMKTPLACE
OXFORDSHIRE CC,SOCIAL AND COMMUNITY SERVICES,CSS - BANBURY,HARDWARE AND CROCKERY,11/04/2019,000006314268980,16.00,FARNBOROUGH G.C.
OXFORDSHIRE CC,SOCIAL AND COMMUNITY SERVICES,CSS - BANBURY,HARDWARE AND CROCKERY,11/04/2019,000006314268982,100.00,FARNBOROUGH G.C.
OXFORDSHIRE CC,"CHILDRENS, YOUNG PEOPLE AND FAMILIES","	LOOKED AFTER SOUTH",MATERIALS,11/04/2019,000006314269172,23.76,AMAZON.CO.UK MZ91A5VL4
OXFORDSHIRE CC,SOCIAL AND COMMUNITY SERVICES,CSS BICESTER,CATERING PROVISIONS,11/04/2019,000006314268984,2.00,SAINSBURYS SACAT (2243
OXFORDSHIRE CC,SOCIAL AND COMMUNITY SERVICES,CSS BICESTER,MATERIALS,11/04/2019,000006314268986,5.00,THEWORKS.CO.UK
OXFORDSHIRE CC,"CHILDRENS, YOUNG PEOPLE AND FAMILIES","	FAMILY SUPPORT S'TH2",CLIENT LODGINGS AND ACCOMMODATION,11/04/2019,000006314268988,70.00,THE GEORGE HOTEL
OXFORDSHIRE CC,SOCIAL AND COMMUNITY SERVICES,LOOKED AFTER SOUTH,VEHICLE FUEL,11/04/2019,000006314268990,10.37,MARLBOROUGH RD 395
OXFORDSHIRE CC,SOCIAL AND COMMUNITY SERVICES,LOOKED AFTER SOUTH,VEHICLE FUEL,11/04/2019,000006314268992,50.05,MFG FORDHOUSES
OXFORDSHIRE CC,ENVIRONMENT AND ECONOMY,AREA OPERATIONS SOUTH STAFF,"SUPPLIES, STATIONERY AND MATERIALS",11/04/2019,000006314268994,161.98,HIPPOBAG
OXFORDSHIRE CC,ENTERPRISEVC,,CAR LEASING - PRIVATE RENTALS,10/04/2019,000006308760464,32.76,ENTERPRISE RENT-A-CAR
OXFORDSHIRE CC,"CHILDRENS, YOUNG PEOPLE AND FAMILIES",EYNSHAM,CATERING PROVISIONS,10/04/2019,000006308760486,100.34,TESCO STORES 2008
OXFORDSHIRE CC,ENTERPRISEVC,,CAR LEASING - PRIVATE RENTALS,10/04/2019,000006308760466,48.22,ENTERPRISE RENT-A-CAR
OXFORDSHIRE CC,ENTERPRISEVC,,CAR LEASING - PRIVATE RENTALS,10/04/2019,000006308760468,-53.11,ENTERPRISE RENT-A-CAR
OXFORDSHIRE CC,"CHILDRENS, YOUNG PEOPLE AND FAMILIES","	LEAVING CARE NORTH",PAYMENTS TO TRANSPORT OPERATORS,10/04/2019,000006308760470,188.05,PAYPAL  VIRGINTRAIN
OXFORDSHIRE CC,"CHILDRENS, YOUNG PEOPLE AND FAMILIES","	LOOKED AFTER SOUTH",MATERIALS,10/04/2019,000006308760472,7.51,AMZNMKTPLACE
OXFORDSHIRE CC,CORPORATE CORE,"	COMMUNICATIONS","PUBLICITY, PROMOTIONS AND ADVERTISEMENT",10/04/2019,000006308760482,500.00,FACEBK  NF223LW9Z2
OXFORDSHIRE CC,"CHILDRENS, YOUNG PEOPLE AND FAMILIES",EYNSHAM,ENTERTAINMENT EXPENSES,10/04/2019,000006308760484,57.60,CINEWORLD
OXFORDSHIRE CC,"CHILDRENS, YOUNG PEOPLE AND FAMILIES",EYNSHAM,OTHER TRANSPORT ARRANGEMENTS,10/04/2019,000006308760488,-10.00,WWW.THEKEY.CO.UK
OXFORDSHIRE CC,SOCIAL AND COMMUNITY SERVICES,CSS BICESTER,CATERING PROVISIONS,10/04/2019,000006308760186,46.75,ALDI 49 775
OXFORDSHIRE CC,"CHILDRENS, YOUNG PEOPLE AND FAMILIES",THAME E&A HOME,CATERING PROVISIONS,10/04/2019,000006308760190,70.48,SAINSBURYS TO YOU 0600
OXFORDSHIRE CC,"CHILDRENS, YOUNG PEOPLE AND FAMILIES",THAME E&A HOME,CATERING PROVISIONS,10/04/2019,000006308760192,-2.00,SAINSBURYS TO YOU 0600
OXFORDSHIRE CC,"CHILDRENS, YOUNG PEOPLE AND FAMILIES","	LOOKED AFTER SOUTH",HIRE OF ACCOMMODATION AND FACILITIES,10/04/2019,000006308760210,128.50,PREMIER INN
OXFORDSHIRE CC,"CHILDRENS, YOUNG PEOPLE AND FAMILIES",KINGFISHER,CATERING,10/04/2019,000006308760194,7.66,MCDONALDS
OXFORDSHIRE CC,"CHILDRENS, YOUNG PEOPLE AND FAMILIES",THAME E&A HOME,MATERIALS,10/04/2019,000006308760198,8.99,AMZNMKTPLACE AMAZON.CO
OXFORDSHIRE CC,"CHILDRENS, YOUNG PEOPLE AND FAMILIES",THAME E&A HOME,MATERIALS,10/04/2019,000006308760200,5.89,AMAZON.CO.UK MZ5PJ6XV4
OXFORDSHIRE CC,"CHILDRENS, YOUNG PEOPLE AND FAMILIES",THAME E&A HOME,CATERING,10/04/2019,000006308760202,50.78,FRANKIE & BENNYS 5260
OXFORDSHIRE CC,"CHILDRENS, YOUNG PEOPLE AND FAMILIES","	FAMILY SUPPORT CITY3",CATERING,10/04/2019,000006308760204,8.50,SUBWAY
OXFORDSHIRE CC,SOCIAL AND COMMUNITY SERVICES,LOOKED AFTER NORTH,CATERING,10/04/2019,000006308760206,14.55,NANDOS LEICESTER MERID
OXFORDSHIRE CC,"CHILDRENS, YOUNG PEOPLE AND FAMILIES","	LOOKED AFTER SOUTH",OTHER TRANSPORT ARRANGEMENTS,10/04/2019,000006308760208,87.00,STAGECOACH SERVICE
OXFORDSHIRE CC,"CHILDRENS, YOUNG PEOPLE AND FAMILIES","	LOOKED AFTER SOUTH",HIRE OF ACCOMMODATION AND FACILITIES,10/04/2019,000006308760212,74.50,PREMIER INN
OXFORDSHIRE CC,"CHILDRENS, YOUNG PEOPLE AND FAMILIES","	LOOKED AFTER SOUTH",PAYMENTS TO TRANSPORT OPERATORS,10/04/2019,000006308760214,60.60,WWW.GWR.COM
OXFORDSHIRE CC,"CHILDRENS, YOUNG PEOPLE AND FAMILIES","	RESIDENTIAL STRATEGY",HIRE OF ACCOMMODATION AND FACILITIES,10/04/2019,000006308760216,170.00,B.COM 35959-5LJNZ CAMP
OXFORDSHIRE CC,"CHILDRENS, YOUNG PEOPLE AND FAMILIES",WITNEY,CATERING,10/04/2019,000006308760218,3.75,COSTA COFFEE 43036290
OXFORDSHIRE CC,"CHILDRENS, YOUNG PEOPLE AND FAMILIES",WITNEY,MATERIALS,10/04/2019,000006308760220,11.00,THEWORKS
OXFORDSHIRE CC,"CHILDRENS, YOUNG PEOPLE AND FAMILIES",WITNEY,CATERING PROVISIONS,10/04/2019,000006308760222,8.03,LAKELAND
OXFORDSHIRE CC,"CHILDRENS, YOUNG PEOPLE AND FAMILIES",WITNEY,CATERING PROVISIONS,10/04/2019,000006308760224,6.08,ALDI STORES 775-142
OXFORDSHIRE CC,"CHILDRENS, YOUNG PEOPLE AND FAMILIES","	RESIDENTIAL STRATEGY",CATERING,10/04/2019,000006308760230,21.10,HEAVENLY DESSERTS
OXFORDSHIRE CC,CORPORATE CORE,BANKING,REGISTRATION AND INSPECTION FEES,10/04/2019,000006308760234,-2.00,OCC MUSIC SERVICES
OXFORDSHIRE CC,"CHILDRENS, YOUNG PEOPLE AND FAMILIES",THAME E&A HOME,CATERING,10/04/2019,000006308760236,10.69,MCDONALDS
OXFORDSHIRE CC,ENVIRONMENT AND ECONOMY,HARD FM,GENERAL MAINTENANCE,10/04/2019,000006308760256,738.53, WOLSELEY UK
OXFORDSHIRE CC,"CHILDRENS, YOUNG PEOPLE AND FAMILIES","	LOOKED AFTER CITY 1",HIRE OF ACCOMMODATION AND FACILITIES,10/04/2019,000006308760242,65.00,KEY INNS LTD
OXFORDSHIRE CC,"CHILDRENS, YOUNG PEOPLE AND FAMILIES",UASC 16&17,CATERING PROVISIONS,10/04/2019,000006308760244,1.17,CO-OPERATIVE FOOD
OXFORDSHIRE CC,ENVIRONMENT AND ECONOMY,HARD FM,EQUIPMENT,10/04/2019,000006308760246,66.66,W F SENATE
OXFORDSHIRE CC,ENVIRONMENT AND ECONOMY,HARD FM,HARDWARE AND CROCKERY,10/04/2019,000006308760248,36.17,WICKES OXFORD
OXFORDSHIRE CC,ENVIRONMENT AND ECONOMY,HARD FM,HARDWARE AND CROCKERY,10/04/2019,000006308760250,24.86,SCREWFIX OXFORD BOTLEY
OXFORDSHIRE CC,ENVIRONMENT AND ECONOMY,HARD FM,HARDWARE AND CROCKERY,10/04/2019,000006308760252,10.95,JOHN NICHOLLS KIDLINGT
OXFORDSHIRE CC,ENVIRONMENT AND ECONOMY,HARD FM,HARDWARE AND CROCKERY,10/04/2019,000006308760254,11.28,TRAVIS PERKINS
OXFORDSHIRE CC,ENVIRONMENT AND ECONOMY,HARD FM,GENERAL MAINTENANCE,10/04/2019,000006308760258,132.74, WOLSELEY UK
OXFORDSHIRE CC,"CHILDRENS, YOUNG PEOPLE AND FAMILIES",THAME E&A HOME,CATERING,10/04/2019,000006308760260,50.78,FRANKIE & BENNYS 5260
OXFORDSHIRE CC,"CHILDRENS, YOUNG PEOPLE AND FAMILIES",THAME E&A HOME,VEHICLE FUEL,10/04/2019,000006308760278,2.58,THAME BP SF CONNECT
OXFORDSHIRE CC,"CHILDRENS, YOUNG PEOPLE AND FAMILIES",THAME E&A HOME,ENTERTAINMENT EXPENSES,10/04/2019,000006308760262,76.25,RUSH - HIGH WYCOMBE
OXFORDSHIRE CC,ENVIRONMENT AND ECONOMY,COUNTY LIBRARY,EQUIPMENT,10/04/2019,000006308760264,3.78,EDMUNDSON ELECTRIC
OXFORDSHIRE CC,SOCIAL AND COMMUNITY SERVICES,CSS - OXFORD,CATERING PROVISIONS,10/04/2019,000006308760266,25.61,ALDI STORES 775-142
OXFORDSHIRE CC,"CHILDRENS, YOUNG PEOPLE AND FAMILIES",THAME E&A HOME,CATERING,10/04/2019,000006308760268,50.79,FRANKIE & BENNYS 5260
OXFORDSHIRE CC,"CHILDRENS, YOUNG PEOPLE AND FAMILIES",THAME E&A HOME,ENTERTAINMENT EXPENSES,10/04/2019,000006308760270,7.00,RUSH - HIGH WYCOMBE
OXFORDSHIRE CC,"CHILDRENS, YOUNG PEOPLE AND FAMILIES","	LEAVING CARE CITY 1",CATERING PROVISIONS,10/04/2019,000006308760272,2.75,SAINSBURYS SAC2305SAC
OXFORDSHIRE CC,"CHILDRENS, YOUNG PEOPLE AND FAMILIES",EYNSHAM,DAY ACTIVITIES,10/04/2019,000006308760274,12.00,OXFORD GOLF CENTRE
OXFORDSHIRE CC,"CHILDRENS, YOUNG PEOPLE AND FAMILIES",EYNSHAM,DAY ACTIVITIES,10/04/2019,000006308760276,10.00,OXFORD GOLF CENTRE
OXFORDSHIRE CC,"CHILDRENS, YOUNG PEOPLE AND FAMILIES",CYPF ADMIN,MATERIALS,10/04/2019,000006308760280,-42.99,AMZ VULU GLOBAL
OXFORDSHIRE CC,"CHILDRENS, YOUNG PEOPLE AND FAMILIES",CYPF ADMIN,MATERIALS,10/04/2019,000006308760282,-42.99,AMZ VULU GLOBAL
OXFORDSHIRE CC,"CHILDRENS, YOUNG PEOPLE AND FAMILIES",CNTL EARLY HELP-RHIL,MATERIALS,10/04/2019,000006308760284,224.99,WWW.ARGOS.CO.UK
OXFORDSHIRE CC,"CHILDRENS, YOUNG PEOPLE AND FAMILIES",CNTL EARLY HELP-RHIL,MATERIALS,10/04/2019,000006308760286,183.92,WWW.ARGOS.CO.UK
OXFORDSHIRE CC,SOCIAL AND COMMUNITY SERVICES,CSS WALLINGFORD,MATERIALS,10/04/2019,000006308760288,10.00,KERI THE FLORIST
OXFORDSHIRE CC,SOCIAL AND COMMUNITY SERVICES,CSS WALLINGFORD,PAYMENTS TO VOLUNTARY BODIES,10/04/2019,000006308760290,274.80,WWW.MIND.ORG.UK
OXFORDSHIRE CC,SOCIAL AND COMMUNITY SERVICES,CSS WALLINGFORD,PAYMENTS TO VOLUNTARY BODIES,10/04/2019,000006308760292,274.80,WWW.MIND.ORG.UK
OXFORDSHIRE CC,SOCIAL AND COMMUNITY SERVICES,DIDCOT MOVE-ON HOME,CATERING PROVISIONS,10/04/2019,000006308760304,21.35,SAINSBURYS 2067
OXFORDSHIRE CC,ENVIRONMENT AND ECONOMY,AREA OPERATIONS SOUTH STAFF,MATERIALS,10/04/2019,000006308760294,215.00,ARGOS LTD
OXFORDSHIRE CC,"CHILDRENS, YOUNG PEOPLE AND FAMILIES",NORTH FSS- BANBURY,PAYMENT TO GOVERNMENT DEPARTMENTS,10/04/2019,000006308760296,42.00,GEN REGISTER OFFICE
OXFORDSHIRE CC,"CHILDRENS, YOUNG PEOPLE AND FAMILIES",NORTH FSS- BANBURY,OTHER TRANSPORT ARRANGEMENTS,10/04/2019,000006308760298,660.22,VIRGIN ATLANTIC
OXFORDSHIRE CC,"CHILDRENS, YOUNG PEOPLE AND FAMILIES",NORTH FSS- BANBURY,OTHER TRANSPORT ARRANGEMENTS,10/04/2019,000006308760300,593.22,VIRGIN ATLANTIC
OXFORDSHIRE CC,"CHILDRENS, YOUNG PEOPLE AND FAMILIES",THAME E&A HOME,CATERING,10/04/2019,000006308760302,10.00,SUMUP   WRAPNSHAKE
OXFORDSHIRE CC,SOCIAL AND COMMUNITY SERVICES,DIDCOT MOVE-ON HOME,MATERIALS,10/04/2019,000006308760306,4.15,CARD FACTORY
OXFORDSHIRE CC,"CHILDRENS, YOUNG PEOPLE AND FAMILIES","	LOOKED AFTER CITY 1",BANK CHARGES,10/04/2019,000006308760308,500.00,BIBBY FACTORS SLOUGH L
OXFORDSHIRE CC,"CHILDRENS, YOUNG PEOPLE AND FAMILIES","	LOOKED AFTER CITY 1",BANK CHARGES,10/04/2019,000006308760310,260.00,BIBBY FACTORS SLOUGH L
OXFORDSHIRE CC,ENVIRONMENT AND ECONOMY,"	ROW MAINT",MATERIALS,10/04/2019,000006308760312,99.85,T H WHITE LTD
OXFORDSHIRE CC,ENVIRONMENT AND ECONOMY,"	MINERALS & WASTE",PAYMENTS TO TRANSPORT OPERATORS,10/04/2019,000006308760318,20.75,GWR OXFORD TO
OXFORDSHIRE CC,SOCIAL AND COMMUNITY SERVICES,"	VISUAL IMP. TEAM",EDUCATIONAL AND VOCATIONAL TRAINING ,10/04/2019,000006308760320,10.00,OXFORDSHIRE CC MOTO1
OXFORDSHIRE CC,SOCIAL AND COMMUNITY SERVICES,"	VISUAL IMP. TEAM",EDUCATIONAL AND VOCATIONAL TRAINING ,10/04/2019,000006308760322,10.00,OXFORDSHIRE CC MOTO1
OXFORDSHIRE CC,SOCIAL AND COMMUNITY SERVICES,CSS - OXFORD,MATERIALS,10/04/2019,000006308760324,9.92,AMAZON.CO.UK MZ9MA9V04
OXFORDSHIRE CC,SOCIAL AND COMMUNITY SERVICES,CSS - OXFORD,ENTERTAINMENT EXPENSES,10/04/2019,000006308760326,116.41,CADBURY WORLD INTERNET
OXFORDSHIRE CC,"CHILDRENS, YOUNG PEOPLE AND FAMILIES","	MALTFIELD HOUSE",PAYMENT TO GOVERNMENT DEPARTMENTS,10/04/2019,000006308760328,"3,046.00",OFSTED MOTO
OXFORDSHIRE CC,"CHILDRENS, YOUNG PEOPLE AND FAMILIES","	LOOKED AFTER CITY 2",PAYMENTS TO TRANSPORT OPERATORS,10/04/2019,000006308760332,44.77,TRAINLINE
OXFORDSHIRE CC,"CHILDRENS, YOUNG PEOPLE AND FAMILIES","	LOOKED AFTER CITY 2",CATERING,10/04/2019,000006308760334,5.90,COSTA COFFEE
OXFORDSHIRE CC,"CHILDRENS, YOUNG PEOPLE AND FAMILIES","	MALTFIELD HOUSE",CATERING,10/04/2019,000006308760336,2.95,COSTA COFFEE 43037200
OXFORDSHIRE CC,"CHILDRENS, YOUNG PEOPLE AND FAMILIES","	MALTFIELD HOUSE",DRUGS AND MEDICAL SUPPLIES,10/04/2019,000006308760338,7.64,FROSTS PHARMACY LTD
OXFORDSHIRE CC,"CHILDRENS, YOUNG PEOPLE AND FAMILIES","	MALTFIELD HOUSE",CATERING,10/04/2019,000006308760340,13.90,MCDONALDS
OXFORDSHIRE CC,CORPORATE CORE,"	LEGAL SERVICES",LEGAL COSTS,10/04/2019,000006308760342,11.00,OCC REGISTRARS (M)
OXFORDSHIRE CC,"CHILDRENS, YOUNG PEOPLE AND FAMILIES",THAME E&A HOME,CATERING PROVISIONS,10/04/2019,000006308760344,22.45,SAINSBURYS SACAT 0600
OXFORDSHIRE CC,"CHILDRENS, YOUNG PEOPLE AND FAMILIES","	LEAVING CARE NORTH",CATERING,10/04/2019,000006308760346,17.70,FIVE GUYS
OXFORDSHIRE CC,"CHILDRENS, YOUNG PEOPLE AND FAMILIES","	LEAVING CARE NORTH",OTHER TRANSPORT ARRANGEMENTS,10/04/2019,000006308760348,6.00,WORCESTER STREET CAR P
OXFORDSHIRE CC,"CHILDRENS, YOUNG PEOPLE AND FAMILIES","	LOOKED AFTER CITY 2",MATERIALS,10/04/2019,000006308760350,4.99,AMZNMKTPLACE AMAZON.CO
OXFORDSHIRE CC,"CHILDRENS, YOUNG PEOPLE AND FAMILIES","	LOOKED AFTER CITY 2",MATERIALS,10/04/2019,000006308760352,39.75,AMZNMKTPLACE AMAZON.CO
OXFORDSHIRE CC,"CHILDRENS, YOUNG PEOPLE AND FAMILIES","	LOOKED AFTER CITY 2",CATERING,10/04/2019,000006308760354,4.05,STARBUCKS COFFEE
OXFORDSHIRE CC,"CHILDRENS, YOUNG PEOPLE AND FAMILIES","	LOOKED AFTER CITY 2",MATERIALS,10/04/2019,000006308760356,12.00,WILKO RETAIL LIMIT
OXFORDSHIRE CC,SOCIAL AND COMMUNITY SERVICES,"	MUSEUMS COLLECTIONS",CATERING PROVISIONS,10/04/2019,000006308760360,24.50,TESCO STORES 2008
OXFORDSHIRE CC,SOCIAL AND COMMUNITY SERVICES,"	MUSEUMS COLLECTIONS",MATERIALS,10/04/2019,000006308760362,75.69,AMZNMKTPLACE
OXFORDSHIRE CC,"CHILDRENS, YOUNG PEOPLE AND FAMILIES","	LEAVING CARE NORTH",CLOTHING AND UNIFORMS,10/04/2019,000006308760364,34.00,NEXT RETAIL LTD
OXFORDSHIRE CC,"CHILDRENS, YOUNG PEOPLE AND FAMILIES","	MALTFIELD HOUSE",CATERING PROVISIONS,10/04/2019,000006308760366,-.85,SAINSBURYS TO YOU 0600
OXFORDSHIRE CC,SOCIAL AND COMMUNITY SERVICES,CSS WITNEY,"BOOKS, DVDS AND CDS",10/04/2019,000006308760368,18.90,AMZN MKTP UK MZ0X06GW4
OXFORDSHIRE CC,SOCIAL AND COMMUNITY SERVICES,CSS WANTAGE,"BOOKS, DVDS AND CDS",10/04/2019,000006308760370,1.14,AMZN MKTP UK MZ5OW8VP4
OXFORDSHIRE CC,SOCIAL AND COMMUNITY SERVICES,CSS WANTAGE,MATERIALS,10/04/2019,000006308760372,19.94,AMZNMKTPLACE
OXFORDSHIRE CC,"CHILDRENS, YOUNG PEOPLE AND FAMILIES","	FAMILY SUPPORT CITY3",OTHER TRANSPORT ARRANGEMENTS,10/04/2019,000006308760374,70.72,TRAINLINE.COM
OXFORDSHIRE CC,"CHILDRENS, YOUNG PEOPLE AND FAMILIES","	YOUNG CARERS WORKER",ENTERTAINMENT EXPENSES,10/04/2019,000006308760378,2.50,PEGASUS THEATRE
OXFORDSHIRE CC,"CHILDRENS, YOUNG PEOPLE AND FAMILIES",CNTL EARLY HELP-BRTN,OTHER EXPENSES,10/04/2019,000006308760376,18.99,AMZNMKTPLACE
OXFORDSHIRE CC,"CHILDRENS, YOUNG PEOPLE AND FAMILIES","	40 THE MOORS",CATERING,10/04/2019,000006308760382,53.80,TIFFINS
OXFORDSHIRE CC,"CHILDRENS, YOUNG PEOPLE AND FAMILIES","	40 THE MOORS",CATERING,10/04/2019,000006308760384,9.99,WWW.DOMINOS.CO.UK
OXFORDSHIRE CC,"CHILDRENS, YOUNG PEOPLE AND FAMILIES","	40 THE MOORS",ENTERTAINMENT EXPENSES,10/04/2019,000006308760386,12.70,TJ S
OXFORDSHIRE CC,"CHILDRENS, YOUNG PEOPLE AND FAMILIES","	40 THE MOORS",ENTERTAINMENT EXPENSES,10/04/2019,000006308760388,6.20,TJ S
OXFORDSHIRE CC,SOCIAL AND COMMUNITY SERVICES,CSS - DIDCOT,LAUNDRY AND DRY CLEANING,10/04/2019,000006308760390,17.00,TIMPSON LTD
OXFORDSHIRE CC,SOCIAL AND COMMUNITY SERVICES,CSS - DIDCOT,CATERING PROVISIONS,10/04/2019,000006308760392,8.25,TESCO STORE 2413
OXFORDSHIRE CC,SOCIAL AND COMMUNITY SERVICES,CSS - DIDCOT,MATERIALS,10/04/2019,000006308760394,35.97,ARGOS RETAIL GROUP
OXFORDSHIRE CC,SOCIAL AND COMMUNITY SERVICES,CSS - DIDCOT,MATERIALS,10/04/2019,000006308760396,4.00,THE WORKS
OXFORDSHIRE CC,SOCIAL AND COMMUNITY SERVICES,CSS - DIDCOT,MATERIALS,10/04/2019,000006308760398,3.00,WILKO RETAIL LIMIT
OXFORDSHIRE CC,"CHILDRENS, YOUNG PEOPLE AND FAMILIES",STEP INTO TRAINING,"BOOKS, DVDS AND CDS",10/04/2019,000006308760402,36.20,AMAZON.CO.UK MZ3P50XU4
OXFORDSHIRE CC,"CHILDRENS, YOUNG PEOPLE AND FAMILIES","	HOME SUPPORT",MATERIALS,10/04/2019,000006308760404,2.84,AMZNMKTPLACE AMAZON.CO
OXFORDSHIRE CC,"CHILDRENS, YOUNG PEOPLE AND FAMILIES","	40 THE MOORS",CATERING PROVISIONS,10/04/2019,000006308760418,13.00,TESCO STORE 2788
OXFORDSHIRE CC,ENVIRONMENT AND ECONOMY,"	MUSEUM DEV OFFICER",PAYMENTS TO TRANSPORT OPERATORS,10/04/2019,000006308760406,3.00,AYLESBURY PWY SSTP
OXFORDSHIRE CC,"CHILDRENS, YOUNG PEOPLE AND FAMILIES",EYNSHAM,CATERING PROVISIONS,10/04/2019,000006308760408,13.21,CO-OPERATIVE FOOD
OXFORDSHIRE CC,"CHILDRENS, YOUNG PEOPLE AND FAMILIES","	FAM SUPP CITY 1",MATERIALS,10/04/2019,000006308760420,38.99,WWW.ARGOS.CO.UK
OXFORDSHIRE CC,ENVIRONMENT AND ECONOMY,"	LOWER WINDRUSH PROJ",MATERIALS,10/04/2019,000006308760410,32.22,THE SIGN SHED
OXFORDSHIRE CC,SOCIAL AND COMMUNITY SERVICES,ABINGDON LIBRARY,"NEWSPAPERS, PERIODICALS AND PUBLICATIONS",10/04/2019,000006308760412,12.00,ER GOFF
OXFORDSHIRE CC,"CHILDRENS, YOUNG PEOPLE AND FAMILIES","	LOOKED AFTER CITY 2",DAY ACTIVITIES,10/04/2019,000006308760414,39.24,AMFBOWLING.CO.UK
OXFORDSHIRE CC,"CHILDRENS, YOUNG PEOPLE AND FAMILIES","	40 THE MOORS",PAYMENTS TO TRANSPORT OPERATORS,10/04/2019,000006308760416,47.10,WWW.GWR.COM
OXFORDSHIRE CC,"CHILDRENS, YOUNG PEOPLE AND FAMILIES","	40 THE MOORS",CATERING PROVISIONS,10/04/2019,000006308760422,167.00,SAINSBURYS 0631
OXFORDSHIRE CC,"CHILDRENS, YOUNG PEOPLE AND FAMILIES","	40 THE MOORS",MATERIALS,10/04/2019,000006308760424,24.80,AMZNMKTPLACE
OXFORDSHIRE CC,CORPORATE CORE,,"SUPPLIES, STATIONERY AND MATERIALS",10/04/2019,000006308760426,173.11,LYRECO UK LTD
OXFORDSHIRE CC,CORPORATE CORE,,"SUPPLIES, STATIONERY AND MATERIALS",10/04/2019,000006308760428,7.39,LYRECO UK LTD
OXFORDSHIRE CC,ENTERPRISEVC,,CAR LEASING - PRIVATE RENTALS,10/04/2019,000006308760440,62.08,ENTERPRISE RENT-A-CAR
OXFORDSHIRE CC,CORPORATE CORE,,"SUPPLIES, STATIONERY AND MATERIALS",10/04/2019,000006308760430,69.91,LYRECO UK LTD
OXFORDSHIRE CC,"CHILDRENS, YOUNG PEOPLE AND FAMILIES",THAME E&A HOME,CATERING,10/04/2019,000006308760432,5.95,PRET A MANGER
OXFORDSHIRE CC,"CHILDRENS, YOUNG PEOPLE AND FAMILIES","	LOOKED AFTER NORTH",VEHICLE FUEL,10/04/2019,000006308760434,2.77,TESCO PFS 4267
OXFORDSHIRE CC,"CHILDRENS, YOUNG PEOPLE AND FAMILIES","	LOOKED AFTER NORTH",CATERING,10/04/2019,000006308760436,5.59,MCDONALDS
OXFORDSHIRE CC,ENTERPRISEVC,,CAR LEASING - PRIVATE RENTALS,10/04/2019,000006308760438,43.18,ENTERPRISE RENT-A-CAR
OXFORDSHIRE CC,ENTERPRISEVC,,CAR LEASING - PRIVATE RENTALS,10/04/2019,000006308760442,52.32,ENTERPRISE RENT-A-CAR
OXFORDSHIRE CC,ENTERPRISEVC,,CAR LEASING - PRIVATE RENTALS,10/04/2019,000006308760444,48.58,ENTERPRISE RENT-A-CAR
OXFORDSHIRE CC,ENTERPRISEVC,,CAR LEASING - PRIVATE RENTALS,10/04/2019,000006308760446,140.51,ENTERPRISE RENT-A-CAR
OXFORDSHIRE CC,ENTERPRISEVC,,CAR LEASING - PRIVATE RENTALS,10/04/2019,000006308760448,49.78,ENTERPRISE RENT-A-CAR
OXFORDSHIRE CC,ENTERPRISEVC,,CAR LEASING - PRIVATE RENTALS,10/04/2019,000006308760450,97.01,ENTERPRISE RENT-A-CAR
OXFORDSHIRE CC,ENTERPRISEVC,,CAR LEASING - PRIVATE RENTALS,10/04/2019,000006308760452,24.82,ENTERPRISE RENT-A-CAR
OXFORDSHIRE CC,ENTERPRISEVC,,CAR LEASING - PRIVATE RENTALS,10/04/2019,000006308760454,94.33,ENTERPRISE RENT-A-CAR
OXFORDSHIRE CC,ENTERPRISEVC,,CAR LEASING - PRIVATE RENTALS,10/04/2019,000006308760456,34.21,ENTERPRISE RENT-A-CAR
OXFORDSHIRE CC,ENTERPRISEVC,,CAR LEASING - PRIVATE RENTALS,10/04/2019,000006308760458,83.83,ENTERPRISE RENT-A-CAR
OXFORDSHIRE CC,ENTERPRISEVC,,CAR LEASING - PRIVATE RENTALS,10/04/2019,000006308760460,110.68,ENTERPRISE RENT-A-CAR
OXFORDSHIRE CC,ENTERPRISEVC,,CAR LEASING - PRIVATE RENTALS,10/04/2019,000006308760462,72.36,ENTERPRISE RENT-A-CAR
OXFORDSHIRE CC,ENVIRONMENT AND ECONOMY,HARD FM,MATERIALS,09/04/2019,000006304650348,22.78,TOOLSTATION LTD
OXFORDSHIRE CC,ENVIRONMENT AND ECONOMY,HARD FM,HARDWARE AND CROCKERY,09/04/2019,000006304650350,16.20,WICKES OXFORD
OXFORDSHIRE CC,ENVIRONMENT AND ECONOMY,HARD FM,HARDWARE AND CROCKERY,09/04/2019,000006304650352,52.19,JEWSON LTD
OXFORDSHIRE CC,ENVIRONMENT AND ECONOMY,HARD FM,HARDWARE AND CROCKERY,09/04/2019,000006304650354,119.15,WICKES OXFORD
OXFORDSHIRE CC,ENVIRONMENT AND ECONOMY,HARD FM,HARDWARE AND CROCKERY,09/04/2019,000006304650356,21.61,JOHN NICHOLLS KIDLINGT
OXFORDSHIRE CC,ENVIRONMENT AND ECONOMY,HARD FM,HARDWARE AND CROCKERY,09/04/2019,000006304650358,4.90,SCREWFIX OXFORD
OXFORDSHIRE CC,ENVIRONMENT AND ECONOMY,HARD FM,EQUIPMENT,09/04/2019,000006304650360,230.66,WILTS ELECTRICAL
OXFORDSHIRE CC,ENVIRONMENT AND ECONOMY,HARD FM,EQUIPMENT,09/04/2019,000006304650362,47.98,THAME PLUMBING SUPPLIE
OXFORDSHIRE CC,ENVIRONMENT AND ECONOMY,HARD FM,EQUIPMENT,09/04/2019,000006304650364,46.25,THAME PLUMBING SUPPLIE
OXFORDSHIRE CC,ENVIRONMENT AND ECONOMY,HARD FM,MATERIALS,09/04/2019,000006304650366,23.50,TOOLSTATION
OXFORDSHIRE CC,SOCIAL AND COMMUNITY SERVICES,CSS BICESTER,CATERING PROVISIONS,09/04/2019,000006304650368,92.00,SAINSBURYS (2243)
OXFORDSHIRE CC,SOCIAL AND COMMUNITY SERVICES,BOTLEY LIBRARY,"NEWSPAPERS, PERIODICALS AND PUBLICATIONS",09/04/2019,000006304650370,7.00,MARTIN MCCOLL
OXFORDSHIRE CC,SOCIAL AND COMMUNITY SERVICES,CSS - OXFORD,EDUCATIONAL AND VOCATIONAL TRAINING ,09/04/2019,000006304650372,373.75,TRAILER TRAINING UK LT
OXFORDSHIRE CC,"CHILDRENS, YOUNG PEOPLE AND FAMILIES",THAME E&A HOME,ENTERTAINMENT EXPENSES,09/04/2019,000006304650378,47.00,ODEON/BOOKIT
OXFORDSHIRE CC,"CHILDRENS, YOUNG PEOPLE AND FAMILIES",THAME E&A HOME,ENTERTAINMENT EXPENSES,09/04/2019,000006304650380,17.68,ODEON
OXFORDSHIRE CC,CORPORATE CORE,BUSINESS SUPPORT,LEGAL COSTS,09/04/2019,000006304650384,420.00,WWW.HIGGSANDSONS.CO.UK
OXFORDSHIRE CC,CORPORATE CORE,"	PERSONNEL",PAYMENTS TO TRANSPORT OPERATORS,09/04/2019,000006304650388,31.40,WWW.GWR.COM
OXFORDSHIRE CC,"CHILDRENS, YOUNG PEOPLE AND FAMILIES",CNTL ERLY HELP-BBLEY,CATERING PROVISIONS,09/04/2019,000006304650390,14.99,TESCO STORE 2994
OXFORDSHIRE CC,"CHILDRENS, YOUNG PEOPLE AND FAMILIES","	MUSIC UNALLOCABLE",VEHICLE FUEL,09/04/2019,000006304650392,7.50,TESCO PAYAT PUMP 3700
OXFORDSHIRE CC,"CHILDRENS, YOUNG PEOPLE AND FAMILIES",PANEL COSTS,ENTERTAINMENT EXPENSES,09/04/2019,000006304650394,50.00,ROVES FARM
OXFORDSHIRE CC,"CHILDRENS, YOUNG PEOPLE AND FAMILIES","	FAMILY SUPPORT S'TH2",SUBSCRIPTIONS,09/04/2019,000006304650396,18.37,AMFBOWLING.CO.UK
OXFORDSHIRE CC,"CHILDRENS, YOUNG PEOPLE AND FAMILIES","	MUSIC UNALLOCABLE",CATERING PROVISIONS,09/04/2019,000006304650398,2.20,SAINSBURYS 2067
OXFORDSHIRE CC,CORPORATE CORE,"	AUDIT SERVICES",OTHER TRAINING COURSES AND QUALIFICATION,09/04/2019,000006304650400,858.00,WWW.ACCOUNTS@IIA.ORG.U
OXFORDSHIRE CC,CORPORATE CORE,"	AUDIT SERVICES",OTHER TRAINING COURSES AND QUALIFICATION,09/04/2019,000006304650402,858.00,WWW.ACCOUNTS@IIA.ORG.U
OXFORDSHIRE CC,ENVIRONMENT AND ECONOMY,"	E&I STAFF",PAYMENTS TO TRANSPORT OPERATORS,09/04/2019,000006304650408,92.60,WWW.GWR.COM
OXFORDSHIRE CC,"CHILDRENS, YOUNG PEOPLE AND FAMILIES","	LOOKED AFTER CITY 2",SUBSCRIPTIONS,09/04/2019,000006304650410,35.05,AMFBOWLING.CO.UK
OXFORDSHIRE CC,SOCIAL AND COMMUNITY SERVICES,"	MTFC",CATERING,09/04/2019,000006304650416,8.28,MCDONALDS
OXFORDSHIRE CC,SOCIAL AND COMMUNITY SERVICES,"	MUSEUMS COLLECTIONS",MATERIALS,09/04/2019,000006304650418,15.98,AMZNMKTPLACE
OXFORDSHIRE CC,SOCIAL AND COMMUNITY SERVICES,"	MUSEUMS COLLECTIONS",CONTRACT CLEANING,09/04/2019,000006304650420,114.24,KILLGERMS CHEMICAL
OXFORDSHIRE CC,"CHILDRENS, YOUNG PEOPLE AND FAMILIES","	MALTFIELD HOUSE",CATERING PROVISIONS,09/04/2019,000006304650422,83.18,SAINSBURYS TO YOU 0600
OXFORDSHIRE CC,SOCIAL AND COMMUNITY SERVICES,CSS WITNEY,MATERIALS,09/04/2019,000006304650428,7.98,AMZNMKTPLACE AMAZON.CO
OXFORDSHIRE CC,SOCIAL AND COMMUNITY SERVICES,CSS WITNEY,"BOOKS, DVDS AND CDS",09/04/2019,000006304650430,17.99,AMZN MKTP UK MZ0R93P34
OXFORDSHIRE CC,SOCIAL AND COMMUNITY SERVICES,CSS WITNEY,CATERING PROVISIONS,09/04/2019,000006304650432,146.73,TESCO STORES 2008
OXFORDSHIRE CC,SOCIAL AND COMMUNITY SERVICES,CSS WANTAGE,CATERING PROVISIONS,09/04/2019,000006304650434,16.25,SAINSBURYS SACAT 2244
OXFORDSHIRE CC,SOCIAL AND COMMUNITY SERVICES,CSS WANTAGE,VEHICLE FUEL,09/04/2019,000006304650436,19.96,SAINSBURYS PFS1244
OXFORDSHIRE CC,SOCIAL AND COMMUNITY SERVICES,CSS WANTAGE,MATERIALS,09/04/2019,000006304650438,23.00,ARGOS LTD
OXFORDSHIRE CC,"CHILDRENS, YOUNG PEOPLE AND FAMILIES","	MARLBOROUGH",IT SOFTWARE,09/04/2019,000006304650440,228.00,SP   DYSLEXIA BOX
OXFORDSHIRE CC,CORPORATE CORE,REGISTRAR,PAYMENTS TO TRANSPORT OPERATORS,09/04/2019,000006304650442,94.80,BANBURY STATION T/O
OXFORDSHIRE CC,CORPORATE CORE,"	PERSONNEL",PAYMENTS TO TRANSPORT OPERATORS,09/04/2019,000006304650448,47.70,TRAINLINE
OXFORDSHIRE CC,"CHILDRENS, YOUNG PEOPLE AND FAMILIES","	40 THE MOORS",CATERING,09/04/2019,000006304650450,12.46,KFC
OXFORDSHIRE CC,"CHILDRENS, YOUNG PEOPLE AND FAMILIES","	40 THE MOORS",PROFESSIONAL SUBSCRIPTIONS,09/04/2019,000006304650452,59.97,PAYPAL  ADVANCEGYML
OXFORDSHIRE CC,"CHILDRENS, YOUNG PEOPLE AND FAMILIES","	40 THE MOORS",MATERIALS,09/04/2019,000006304650454,39.99,ARGOS LTD
OXFORDSHIRE CC,"CHILDRENS, YOUNG PEOPLE AND FAMILIES",DIDCOT MOVE-ON HOME,CATERING PROVISIONS,09/04/2019,000006304650460,15.25,SAINSBURYS SACAT 2067
OXFORDSHIRE CC,"CHILDRENS, YOUNG PEOPLE AND FAMILIES",EYNSHAM,MATERIALS,09/04/2019,000006304650468,39.75,HOBBYCRAFT
OXFORDSHIRE CC,"CHILDRENS, YOUNG PEOPLE AND FAMILIES",EYNSHAM,HARDWARE AND CROCKERY,09/04/2019,000006304650470,26.00,B & Q 1156
OXFORDSHIRE CC,"CHILDRENS, YOUNG PEOPLE AND FAMILIES",EYNSHAM,CATERING PROVISIONS,09/04/2019,000006304650472,6.10,CO-OPERATIVE FOOD
OXFORDSHIRE CC,ENVIRONMENT AND ECONOMY,"	LOWER WINDRUSH PROJ",MATERIALS,09/04/2019,000006304650474,8.99,WWW.LEISURE.ORDNANCE
OXFORDSHIRE CC,"CHILDRENS, YOUNG PEOPLE AND FAMILIES","	LEAVING CARE SOUTH",CLOTHING AND UNIFORMS,09/04/2019,000006304650478,135.94,WWW.BIGDUDECLOTHING.CO
OXFORDSHIRE CC,"CHILDRENS, YOUNG PEOPLE AND FAMILIES","	MALTFIELD HOUSE",CLEANING MATERIALS,09/04/2019,000006304650480,17.45,AMZNMKTPLACE AMAZON.CO
OXFORDSHIRE CC,"CHILDRENS, YOUNG PEOPLE AND FAMILIES","	MALTFIELD HOUSE",CLEANING MATERIALS,09/04/2019,000006304650482,13.49,AMZNMKTPLACE AMAZON.CO
OXFORDSHIRE CC,"CHILDRENS, YOUNG PEOPLE AND FAMILIES",WITNEY,ENTERTAINMENT EXPENSES,09/04/2019,000006304650484,63.50,COTSWOLD WILDLIFE PARK
OXFORDSHIRE CC,"CHILDRENS, YOUNG PEOPLE AND FAMILIES",WITNEY,ENTERTAINMENT EXPENSES,09/04/2019,000006304650486,34.35,COTSWOLD WILDLIFE PARK
OXFORDSHIRE CC,"CHILDRENS, YOUNG PEOPLE AND FAMILIES","	40 THE MOORS",CATERING,09/04/2019,000006304650492,35.74,FRANKIE & BENNYS 5829
OXFORDSHIRE CC,"CHILDRENS, YOUNG PEOPLE AND FAMILIES","	40 THE MOORS",VEHICLE FUEL,09/04/2019,000006304650494,36.05,TESCO PFS 3418
OXFORDSHIRE CC,"CHILDRENS, YOUNG PEOPLE AND FAMILIES","	40 THE MOORS",ENTERTAINMENT EXPENSES,09/04/2019,000006304650496,8.90,CINEWORLD WIT CP
OXFORDSHIRE CC,"CHILDRENS, YOUNG PEOPLE AND FAMILIES","	40 THE MOORS",ENTERTAINMENT EXPENSES,09/04/2019,000006304650498,10.97,CINEWORLD WIT CP
OXFORDSHIRE CC,CORPORATE CORE,,"SUPPLIES, STATIONERY AND MATERIALS",09/04/2019,000006304650500,34.55,LYRECO UK LTD
OXFORDSHIRE CC,"CHILDRENS, YOUNG PEOPLE AND FAMILIES","	LOOKED AFTER SOUTH",ENTERTAINMENT EXPENSES,09/04/2019,000006304650502,2.00,RUSH - HIGH WYCOMBE
OXFORDSHIRE CC,CORPORATE CORE,INCOME TEAM,REGISTRATION AND INSPECTION FEES,09/04/2019,000006304650504,10.00,WWW.GOV.UK
OXFORDSHIRE CC,"CHILDRENS, YOUNG PEOPLE AND FAMILIES",EYNSHAM,CATERING PROVISIONS,09/04/2019,000006304650508,67.95,SAINSBURYS SACAT 0632
OXFORDSHIRE CC,"CHILDRENS, YOUNG PEOPLE AND FAMILIES",EYNSHAM,OTHER TRANSPORT ARRANGEMENTS,09/04/2019,000006304650510,604.99,WWW.THEKEY.CO.UK
OXFORDSHIRE CC,SOCIAL AND COMMUNITY SERVICES,CSS - DIDCOT,CATERING PROVISIONS,09/04/2019,000006304650304,101.09,TESCO STORE 2919
OXFORDSHIRE CC,SOCIAL AND COMMUNITY SERVICES,CSS - BANBURY,CATERING PROVISIONS,09/04/2019,000006304650306,101.42,SAINSBURYS TO YOU 0642
OXFORDSHIRE CC,SOCIAL AND COMMUNITY SERVICES,CSS - BANBURY,CATERING PROVISIONS,09/04/2019,000006304650308,9.50,TESCO STORE 2064
OXFORDSHIRE CC,SOCIAL AND COMMUNITY SERVICES,CSS BICESTER,CATERING PROVISIONS,09/04/2019,000006304650310,1.09,ALDI 49 775
OXFORDSHIRE CC,SOCIAL AND COMMUNITY SERVICES,CSS WITNEY,CATERING PROVISIONS,09/04/2019,000006304650312,10.10,SAINSBURYS SACAT 0632
OXFORDSHIRE CC,SOCIAL AND COMMUNITY SERVICES,CSS WITNEY,CATERING PROVISIONS,09/04/2019,000006304650314,10.73,POUNDSTRETCHER 700
OXFORDSHIRE CC,"CHILDRENS, YOUNG PEOPLE AND FAMILIES",THAME E&A HOME,"SUPPLIES, STATIONERY AND MATERIALS",09/04/2019,000006304650318,20.84,PAPERSTONE LIMITED
OXFORDSHIRE CC,"CHILDRENS, YOUNG PEOPLE AND FAMILIES",THAME E&A HOME,VEHICLES REPAIRS AND MAINTENANCE,09/04/2019,000006304650320,351.49,1ST CHOICE DOMESTICS L
OXFORDSHIRE CC,"CHILDRENS, YOUNG PEOPLE AND FAMILIES","	LOOKED AFTER SOUTH",HIRE OF ACCOMMODATION AND FACILITIES,09/04/2019,000006304650322,83.25,TRAVELODGE
OXFORDSHIRE CC,"CHILDRENS, YOUNG PEOPLE AND FAMILIES",EYNSHAM,MATERIALS,09/04/2019,000006304650326,28.11,AMZNMKTPLACE
OXFORDSHIRE CC,"CHILDRENS, YOUNG PEOPLE AND FAMILIES",EYNSHAM,CATERING PROVISIONS,09/04/2019,000006304650328,2.00,CO-OPERATIVE FOOD
OXFORDSHIRE CC,SOCIAL AND COMMUNITY SERVICES,CSS - ABINGDON,CATERING PROVISIONS,09/04/2019,000006304650330,27.80,WAITROSE 211
OXFORDSHIRE CC,ENVIRONMENT AND ECONOMY,"	NAT TRAILS GENERAL",CATERING PROVISIONS,09/04/2019,000006304650332,10.93,CO-OPERATIVE FOOD
OXFORDSHIRE CC,"CHILDRENS, YOUNG PEOPLE AND FAMILIES",THAME E&A HOME,CATERING,09/04/2019,000006304650334,19.10,BAY TREE CAFE
OXFORDSHIRE CC,"CHILDRENS, YOUNG PEOPLE AND FAMILIES",THAME E&A HOME,CATERING,09/04/2019,000006304650336,10.74,MCDONALDS
OXFORDSHIRE CC,"CHILDRENS, YOUNG PEOPLE AND FAMILIES","	MANAGEMENT & ADMIN",PAYMENTS TO TRANSPORT OPERATORS,09/04/2019,000006304650338,87.80,TRAINLINE
OXFORDSHIRE CC,"CHILDRENS, YOUNG PEOPLE AND FAMILIES","	NCS",IT SOFTWARE,09/04/2019,000006304650340,432.04,TEXTMARKETER
OXFORDSHIRE CC,ENVIRONMENT AND ECONOMY,HARD FM,EQUIPMENT,09/04/2019,000006304650344,37.20,W F SENATE
OXFORDSHIRE CC,ENVIRONMENT AND ECONOMY,HARD FM,HARDWARE AND CROCKERY,09/04/2019,000006304650346,8.29,SCREWFIX WITNEY
OXFORDSHIRE CC,"CHILDRENS, YOUNG PEOPLE AND FAMILIES","	MUSIC UNALLOCABLE",HIRED AND CONTRACTED SERVICES,08/04/2019,000006296477226,500.00,SPLAAT MEDIA LTD
OXFORDSHIRE CC,"CHILDRENS, YOUNG PEOPLE AND FAMILIES",EYNSHAM,CATERING PROVISIONS,08/04/2019,000006296476872,7.10,CO-OPERATIVE FOOD
OXFORDSHIRE CC,"CHILDRENS, YOUNG PEOPLE AND FAMILIES","	RESIDENTIAL STRATEGY",CATERING,08/04/2019,000006296476876,5.15,COSTA COFFEE 43035710
OXFORDSHIRE CC,"CHILDRENS, YOUNG PEOPLE AND FAMILIES","	RESIDENTIAL STRATEGY",CATERING,08/04/2019,000006296476878,8.37,MCDONALDS
OXFORDSHIRE CC,ENVIRONMENT AND ECONOMY,"	NAT TRAILS GENERAL",ENTERTAINMENT EXPENSES,08/04/2019,000006296476890,-100.00,MARLOW COMMUNITY ASSOC
OXFORDSHIRE CC,"CHILDRENS, YOUNG PEOPLE AND FAMILIES","	MUSIC UNALLOCABLE",HIRED AND CONTRACTED SERVICES,08/04/2019,000006296477228,500.00,SPLAAT MEDIA LTD
OXFORDSHIRE CC,"CHILDRENS, YOUNG PEOPLE AND FAMILIES","	MUSIC UNALLOCABLE",HIRED AND CONTRACTED SERVICES,08/04/2019,000006296477230,62.00,SPLAAT MEDIA LTD
OXFORDSHIRE CC,"CHILDRENS, YOUNG PEOPLE AND FAMILIES","	MUSIC UNALLOCABLE",CATERING PROVISIONS,08/04/2019,000006296477232,34.83,WAITROSE 211
OXFORDSHIRE CC,"CHILDRENS, YOUNG PEOPLE AND FAMILIES","	MUSIC UNALLOCABLE",CATERING PROVISIONS,08/04/2019,000006296477234,55.00,WAITROSE 211
OXFORDSHIRE CC,"CHILDRENS, YOUNG PEOPLE AND FAMILIES","	LOOKED AFTER CITY 1",ENTERTAINMENT EXPENSES,08/04/2019,000006296477236,40.90,BICESTER BOWLS ONLINE
OXFORDSHIRE CC,"CHILDRENS, YOUNG PEOPLE AND FAMILIES",KINGFISHER,CATERING PROVISIONS,08/04/2019,000006296477108,50.35,SAINSBURYS 0600
OXFORDSHIRE CC,"CHILDRENS, YOUNG PEOPLE AND FAMILIES","	MALTFIELD HOUSE",CATERING PROVISIONS,08/04/2019,000006296477110,106.38,SAINSBURYS TO YOU 0600
OXFORDSHIRE CC,"CHILDRENS, YOUNG PEOPLE AND FAMILIES","	MALTFIELD HOUSE",CATERING,08/04/2019,000006296477112,9.00,THE SHAKE LAB
OXFORDSHIRE CC,"CHILDRENS, YOUNG PEOPLE AND FAMILIES","	MALTFIELD HOUSE",MATERIALS,08/04/2019,000006296477114,20.00,J D SPORTS FASHION
OXFORDSHIRE CC,"CHILDRENS, YOUNG PEOPLE AND FAMILIES","	MALTFIELD HOUSE",MATERIALS,08/04/2019,000006296477116,45.00,J D SPORTS FASHION
OXFORDSHIRE CC,"CHILDRENS, YOUNG PEOPLE AND FAMILIES","	MALTFIELD HOUSE",CLOTHING AND UNIFORMS,08/04/2019,000006296477118,40.00,PRIMARK 440
OXFORDSHIRE CC,"CHILDRENS, YOUNG PEOPLE AND FAMILIES","	MALTFIELD HOUSE",CATERING,08/04/2019,000006296477120,4.60,OLD CROWN HOTEL
OXFORDSHIRE CC,"CHILDRENS, YOUNG PEOPLE AND FAMILIES","	MALTFIELD HOUSE",CATERING,08/04/2019,000006296477122,17.90,OLD CROWN HOTEL
OXFORDSHIRE CC,"CHILDRENS, YOUNG PEOPLE AND FAMILIES","	MALTFIELD HOUSE",CATERING,08/04/2019,000006296477124,12.60,OLD CROWN HOTEL
OXFORDSHIRE CC,"CHILDRENS, YOUNG PEOPLE AND FAMILIES","	MALTFIELD HOUSE",CATERING,08/04/2019,000006296477126,2.30,OLD CROWN HOTEL
OXFORDSHIRE CC,"CHILDRENS, YOUNG PEOPLE AND FAMILIES","	MALTFIELD HOUSE",CATERING PROVISIONS,08/04/2019,000006296477128,26.45,TESCO STORES 4338
OXFORDSHIRE CC,"CHILDRENS, YOUNG PEOPLE AND FAMILIES","	MALTFIELD HOUSE","BOOKS, DVDS AND CDS",08/04/2019,000006296477130,9.99,WATERSTONES
OXFORDSHIRE CC,"CHILDRENS, YOUNG PEOPLE AND FAMILIES","	MALTFIELD HOUSE",CLOTHING AND UNIFORMS,08/04/2019,000006296477132,62.00,PRIMARK 440
OXFORDSHIRE CC,"CHILDRENS, YOUNG PEOPLE AND FAMILIES","	MALTFIELD HOUSE",CATERING,08/04/2019,000006296477134,14.97,MCDONALDS
OXFORDSHIRE CC,ENVIRONMENT AND ECONOMY,"	LEP",PAYMENT TO GOVERNMENT DEPARTMENTS,08/04/2019,000006296477140,13.00,COMPANIES HOUSE
OXFORDSHIRE CC,SOCIAL AND COMMUNITY SERVICES,CSS WITNEY,MATERIALS,08/04/2019,000006296477142,4.88,AMZNMKTPLACE
OXFORDSHIRE CC,SOCIAL AND COMMUNITY SERVICES,CSS WITNEY,MATERIALS,08/04/2019,000006296477144,18.53,AMZNMKTPLACE
OXFORDSHIRE CC,"CHILDRENS, YOUNG PEOPLE AND FAMILIES","	LOOKED AFTER CITY 1",ENTERTAINMENT EXPENSES,08/04/2019,000006296477154,75.00,SQ  ESCAPE HUNT OXFORD
OXFORDSHIRE CC,"CHILDRENS, YOUNG PEOPLE AND FAMILIES","	40 THE MOORS",MATERIALS,08/04/2019,000006296477156,20.00,GAME RETAIL
OXFORDSHIRE CC,"CHILDRENS, YOUNG PEOPLE AND FAMILIES","	40 THE MOORS",TELEPHONE - EQUIPMENT,08/04/2019,000006296477158,25.00,EE TOP UP VESTA
OXFORDSHIRE CC,"CHILDRENS, YOUNG PEOPLE AND FAMILIES","	40 THE MOORS",CATERING,08/04/2019,000006296477160,11.38,MCDONALDS
OXFORDSHIRE CC,"CHILDRENS, YOUNG PEOPLE AND FAMILIES","	40 THE MOORS",MATERIALS,08/04/2019,000006296477162,128.98,PROFESSIONAL MUSIC
OXFORDSHIRE CC,"CHILDRENS, YOUNG PEOPLE AND FAMILIES","	40 THE MOORS",CATERING,08/04/2019,000006296477164,10.95,COSTA COWLEY ROAD OXFO
OXFORDSHIRE CC,SOCIAL AND COMMUNITY SERVICES,CSS - BANBURY,MATERIALS,08/04/2019,000006296477168,13.81,AMZNMKTPLACE AMAZON.CO
OXFORDSHIRE CC,"CHILDRENS, YOUNG PEOPLE AND FAMILIES","	LOOKED AFTER NORTH",HIRE OF ACCOMMODATION AND FACILITIES,08/04/2019,000006296477278,352.00,PREMIER INN
OXFORDSHIRE CC,ENVIRONMENT AND ECONOMY,"	SAMUELSON HOUSE",MATERIALS,08/04/2019,000006296477282,5.50,WILKO RETAIL LIMIT
OXFORDSHIRE CC,"CHILDRENS, YOUNG PEOPLE AND FAMILIES",FAMILY SUPPORT 2,PAYMENTS TO TRANSPORT OPERATORS,08/04/2019,000006296477284,6.70,WWW.GWR.COM
OXFORDSHIRE CC,"CHILDRENS, YOUNG PEOPLE AND FAMILIES",FAMILY SUPPORT 2,PAYMENTS TO TRANSPORT OPERATORS,08/04/2019,000006296477286,80.55,WWW.GWR.COM
OXFORDSHIRE CC,"CHILDRENS, YOUNG PEOPLE AND FAMILIES",FAMILY SUPPORT 2,PAYMENTS TO TRANSPORT OPERATORS,08/04/2019,000006296477288,17.20,WWW.GWR.COM
OXFORDSHIRE CC,"CHILDRENS, YOUNG PEOPLE AND FAMILIES",CNTL ERLY HELP-BBLEY,CATERING PROVISIONS,08/04/2019,000006296477290,3.00,TESCO STORE 2990
OXFORDSHIRE CC,"CHILDRENS, YOUNG PEOPLE AND FAMILIES",CNTL ERLY HELP-BBLEY,CATERING PROVISIONS,08/04/2019,000006296477292,4.36,TESCO STORE 2990
OXFORDSHIRE CC,"CHILDRENS, YOUNG PEOPLE AND FAMILIES",THAME E&A HOME,OTHER TRANSPORT ARRANGEMENTS,08/04/2019,000006296476940,3.50,OXPENS CAR PARK
OXFORDSHIRE CC,"CHILDRENS, YOUNG PEOPLE AND FAMILIES","	LEAVING CARE NORTH",PAYMENTS TO TRANSPORT OPERATORS,08/04/2019,000006296476942,6.80,BANBURY STATION T/O
OXFORDSHIRE CC,"CHILDRENS, YOUNG PEOPLE AND FAMILIES","	LEAVING CARE NORTH",MATERIALS,08/04/2019,000006296476944,80.00,J D SPORTS FASHION
OXFORDSHIRE CC,"CHILDRENS, YOUNG PEOPLE AND FAMILIES","	LEAVING CARE NORTH",CLOTHING AND UNIFORMS,08/04/2019,000006296476946,27.30,PRIMARK 440
OXFORDSHIRE CC,SOCIAL AND COMMUNITY SERVICES,CSS - OXFORD,MATERIALS,08/04/2019,000006296476948,14.95,B&M RETAIL LTD
OXFORDSHIRE CC,SOCIAL AND COMMUNITY SERVICES,CSS BICESTER,CATERING PROVISIONS,08/04/2019,000006296476950,4.00,MARTIN MCCOLL
OXFORDSHIRE CC,SOCIAL AND COMMUNITY SERVICES,CSS BICESTER,MATERIALS,08/04/2019,000006296476952,31.00,POUNDLAND LTD 1505
OXFORDSHIRE CC,"CHILDRENS, YOUNG PEOPLE AND FAMILIES",LEADERSHIP TEAM,MATERIALS,08/04/2019,000006296476954,9.85,WH SMITH
OXFORDSHIRE CC,"CHILDRENS, YOUNG PEOPLE AND FAMILIES",LEADERSHIP TEAM,OTHER TRANSPORT ARRANGEMENTS,08/04/2019,000006296476956,17.80,CMT UK LTD TAXI FARE
OXFORDSHIRE CC,SOCIAL AND COMMUNITY SERVICES,CSS - BANBURY,"BOOKS, DVDS AND CDS",08/04/2019,000006296477170,17.13,AMZN MKTP UK MZ3HK9EN4
OXFORDSHIRE CC,SOCIAL AND COMMUNITY SERVICES,CSS - BANBURY,MATERIALS,08/04/2019,000006296477172,75.60,AMZNMKTPLACE AMAZON.CO
OXFORDSHIRE CC,"CHILDRENS, YOUNG PEOPLE AND FAMILIES",KINGFISHER,CATERING,08/04/2019,000006296477178,6.06,MCDONALDS
OXFORDSHIRE CC,CORPORATE CORE,"	PERSONNEL",PAYMENTS TO TRANSPORT OPERATORS,08/04/2019,000006296477180,8.25,TRAINLINE
OXFORDSHIRE CC,"CHILDRENS, YOUNG PEOPLE AND FAMILIES","	40 THE MOORS",CATERING PROVISIONS,08/04/2019,000006296477182,8.05,COSTA KIDLINGTON
OXFORDSHIRE CC,"CHILDRENS, YOUNG PEOPLE AND FAMILIES","	MALTFIELD HOUSE",ENTERTAINMENT EXPENSES,08/04/2019,000006296477184,17.22,VUE BSL LTD
OXFORDSHIRE CC,SOCIAL AND COMMUNITY SERVICES,CSS WANTAGE,MATERIALS,08/04/2019,000006296476848,54.95,WWW.ARGOS.CO.UK
OXFORDSHIRE CC,"CHILDRENS, YOUNG PEOPLE AND FAMILIES",CSS WALLINGFORD,CATERING PROVISIONS,08/04/2019,000006296476850,19.05,WAITROSE 675
OXFORDSHIRE CC,SOCIAL AND COMMUNITY SERVICES,LOOKED AFTER SOUTH,OTHER TRANSPORT ARRANGEMENTS,08/04/2019,000006296476852,3.00,OXPENS CAR PARK
OXFORDSHIRE CC,"CHILDRENS, YOUNG PEOPLE AND FAMILIES",THAME E&A HOME,MATERIALS,08/04/2019,000006296476854,7.99,AMAZON PRIME MZ5NZ6114
OXFORDSHIRE CC,"CHILDRENS, YOUNG PEOPLE AND FAMILIES",DIDCOT MOVE-ON HOME,CATERING PROVISIONS,08/04/2019,000006296477204,17.91,SAINSBURYS 2067
OXFORDSHIRE CC,"CHILDRENS, YOUNG PEOPLE AND FAMILIES",DIDCOT MOVE-ON HOME,CATERING PROVISIONS,08/04/2019,000006296477206,28.09,TESCO STORE 2413
OXFORDSHIRE CC,"CHILDRENS, YOUNG PEOPLE AND FAMILIES",DIDCOT MOVE-ON HOME,CATERING PROVISIONS,08/04/2019,000006296477208,9.75,SAINSBURYS SACAT 2067
OXFORDSHIRE CC,"CHILDRENS, YOUNG PEOPLE AND FAMILIES",DIDCOT MOVE-ON HOME,MATERIALS,08/04/2019,000006296477210,24.99,B & M RETAIL
OXFORDSHIRE CC,"CHILDRENS, YOUNG PEOPLE AND FAMILIES","	MANAGEMENT & ADMIN",CATERING PROVISIONS,08/04/2019,000006296477214,42.00,SAINSBURYS 0631
OXFORDSHIRE CC,ENVIRONMENT AND ECONOMY,"	MUSEUM DEV OFFICER",OTHER TRANSPORT ARRANGEMENTS,08/04/2019,000006296477216,2.00,3C_ OXFORDSHIRE COUNTY
OXFORDSHIRE CC,ENVIRONMENT AND ECONOMY,"	MUSEUM DEV OFFICER",PAYMENTS TO TRANSPORT OPERATORS,08/04/2019,000006296477218,7.30,OXFORD PARKWAY SSTP
OXFORDSHIRE CC,ENVIRONMENT AND ECONOMY,"	ROW MAINT",EQUIPMENT,08/04/2019,000006296477032,312.00,CENTREWIRE
OXFORDSHIRE CC,"CHILDRENS, YOUNG PEOPLE AND FAMILIES","	SENSS TRAINING",EDUCATIONAL AND VOCATIONAL TRAINING ,08/04/2019,000006296477034,225.00,PAYPAL  SLTCOMMCOUR
OXFORDSHIRE CC,"CHILDRENS, YOUNG PEOPLE AND FAMILIES","	MUSIC UNALLOCABLE",HARDWARE AND CROCKERY,08/04/2019,000006296477044,8.00,HOMEBASE LTD 091
OXFORDSHIRE CC,"CHILDRENS, YOUNG PEOPLE AND FAMILIES","	MUSIC UNALLOCABLE",PHOTOCOPYING,08/04/2019,000006296477046,34.80,STK SHUTTERSTOCK
OXFORDSHIRE CC,"CHILDRENS, YOUNG PEOPLE AND FAMILIES","	MUSIC UNALLOCABLE",PHOTOCOPYING,08/04/2019,000006296477048,34.80,STK SHUTTERSTOCK
OXFORDSHIRE CC,"CHILDRENS, YOUNG PEOPLE AND FAMILIES","	MUSIC UNALLOCABLE",PHOTOCOPYING,08/04/2019,000006296477050,34.80,STK SHUTTERSTOCK
OXFORDSHIRE CC,SOCIAL AND COMMUNITY SERVICES,CSS - OXFORD,EQUIPMENT,08/04/2019,000006296477052,7.00,TIMPSON LTD
OXFORDSHIRE CC,ENVIRONMENT AND ECONOMY,"	COUNTY HALL",EDUCATIONAL AND VOCATIONAL TRAINING ,08/04/2019,000006296477054,299.00,ABINGDON AND WITNE
OXFORDSHIRE CC,"CHILDRENS, YOUNG PEOPLE AND FAMILIES",NTH EARLY HELP-BCSTR,HIRE OF ACCOMMODATION AND FACILITIES,08/04/2019,000006296477056,60.00,PREMIER INN
OXFORDSHIRE CC,"CHILDRENS, YOUNG PEOPLE AND FAMILIES",NTH EARLY HELP-BCSTR,HIRE OF ACCOMMODATION AND FACILITIES,08/04/2019,000006296477058,206.00,PREMIER INN
OXFORDSHIRE CC,ENVIRONMENT AND ECONOMY,"	BRIDGES GENERAL",MATERIALS,08/04/2019,000006296477060,55.96,ARGOS BANBURY INSI
OXFORDSHIRE CC,"CHILDRENS, YOUNG PEOPLE AND FAMILIES","	MALTFIELD HOUSE",CLEANING MATERIALS,08/04/2019,000006296477242,7.20,AMAZON.CO.UK MZ8YD6P54
OXFORDSHIRE CC,"CHILDRENS, YOUNG PEOPLE AND FAMILIES","	MALTFIELD HOUSE",OTHER EXPENSES,08/04/2019,000006296477244,12.68,VUE ENTERTAINMENT LTD
OXFORDSHIRE CC,"CHILDRENS, YOUNG PEOPLE AND FAMILIES",WITNEY,CATERING PROVISIONS,08/04/2019,000006296477246,5.99,LLOYDS AT SAINSBURYS
OXFORDSHIRE CC,"CHILDRENS, YOUNG PEOPLE AND FAMILIES",WITNEY,CATERING PROVISIONS,08/04/2019,000006296477248,21.00,SAINSBURYS 0632
OXFORDSHIRE CC,SOCIAL AND COMMUNITY SERVICES,"	SHARED LIVES",OTHER TRAINING COURSES AND QUALIFICATION,08/04/2019,000006296477250,60.00,PAYPAL  AUTISM OXFD
OXFORDSHIRE CC,"CHILDRENS, YOUNG PEOPLE AND FAMILIES",CSS - DIDCOT,CATERING,08/04/2019,000006296476892,15.70,CHURCHILLS
OXFORDSHIRE CC,"CHILDRENS, YOUNG PEOPLE AND FAMILIES","	LOOKED AFTER NORTH",PAYMENTS TO TRANSPORT OPERATORS,08/04/2019,000006296476902,13.00,BANBURY SSTP
OXFORDSHIRE CC,"CHILDRENS, YOUNG PEOPLE AND FAMILIES","	MANAGEMENT & ADMIN",MATERIALS,08/04/2019,000006296476904,4.31,AMAZON.CO.UK MZ2VB50U4
OXFORDSHIRE CC,"CHILDRENS, YOUNG PEOPLE AND FAMILIES",THAME E&A HOME,CATERING PROVISIONS,08/04/2019,000006296476906,97.72,ASDA SUPERSTORE
OXFORDSHIRE CC,"CHILDRENS, YOUNG PEOPLE AND FAMILIES",WITNEY,CATERING PROVISIONS,08/04/2019,000006296476908,11.80,SAINSBURYS SACAT 0632
OXFORDSHIRE CC,ENVIRONMENT AND ECONOMY,"	LEP",OTHER TRANSPORT ARRANGEMENTS,08/04/2019,000006296476910,13.30,GO GREEN TAXIS LTD
OXFORDSHIRE CC,"CHILDRENS, YOUNG PEOPLE AND FAMILIES","	SM QUALITY ASSURANCE",HIRE OF ACCOMMODATION AND FACILITIES,08/04/2019,000006296476912,56.00,HOTEL ON BOOKING.COM
OXFORDSHIRE CC,"CHILDRENS, YOUNG PEOPLE AND FAMILIES","	40 THE MOORS",CATERING PROVISIONS,08/04/2019,000006296477252,155.20,SAINSBURYS (2243)
OXFORDSHIRE CC,"CHILDRENS, YOUNG PEOPLE AND FAMILIES",THAME E&A HOME,CATERING PROVISIONS,08/04/2019,000006296477254,8.75,COSTA BICESTER
OXFORDSHIRE CC,"CHILDRENS, YOUNG PEOPLE AND FAMILIES",THAME E&A HOME,CATERING PROVISIONS,08/04/2019,000006296477256,.82,COSTA BICESTER
OXFORDSHIRE CC,SOCIAL AND COMMUNITY SERVICES,"	EMERGENCY DUTY TEAM",HIRE OF ACCOMMODATION AND FACILITIES,08/04/2019,000006296477258,227.00,OXFORD ABINGDON HOTEL
OXFORDSHIRE CC,SOCIAL AND COMMUNITY SERVICES,"	EMERGENCY DUTY TEAM",HIRE OF ACCOMMODATION AND FACILITIES,08/04/2019,000006296477260,89.25,TRAVELODGE
OXFORDSHIRE CC,CORPORATE CORE,,"SUPPLIES, STATIONERY AND MATERIALS",08/04/2019,000006296477264,46.44,LYRECO UK LTD
OXFORDSHIRE CC,CORPORATE CORE,,"SUPPLIES, STATIONERY AND MATERIALS",08/04/2019,000006296477266,18.11,LYRECO UK LTD
OXFORDSHIRE CC,CORPORATE CORE,,"SUPPLIES, STATIONERY AND MATERIALS",08/04/2019,000006296477268,8.42,LYRECO UK LTD
OXFORDSHIRE CC,CORPORATE CORE,,"SUPPLIES, STATIONERY AND MATERIALS",08/04/2019,000006296477270,463.20,LYRECO UK LTD
OXFORDSHIRE CC,"CHILDRENS, YOUNG PEOPLE AND FAMILIES",THAME E&A HOME,SUBSCRIPTIONS,08/04/2019,000006296477272,12.90,OXFORD ICE RINK
OXFORDSHIRE CC,"CHILDRENS, YOUNG PEOPLE AND FAMILIES",UASC 16&17,CATERING PROVISIONS,08/04/2019,000006296476922,15.00,ASDA STORE 4442
